Service Area,Service Division,Expense Type,Expense Code,Detailed Expense Type,Payment Date,Transaction Number,Amount Exc Vat,Supplier Name
Children and Young Peoples Services,Head of Education,Supplies and Services,384540,Miscellaneous Expenses,02-Jan-2018,3381352-425669,"1,961.61",BAUER RADIO LTD.
Regeneration and Local Services,Direct Services,Transport,210057,Repair and Maintenance of Vehicles,02-Jan-2018,3381369-SI-169997,"5,632.88",BUNCE (ASHBURY) LTD.
Regeneration and Local Services,Direct Services,Transport,210057,Repair and Maintenance of Vehicles,02-Jan-2018,3381369-SI-170101,"1,120.22",BUNCE (ASHBURY) LTD.
Adult and Health Services,Head of Adults,Supplies and Services,338366,Services,02-Jan-2018,3381372-46269,"1,622.00",CARE ABILITY.
Adult and Health Services,Head of Adults,Supplies and Services,338366,Services,02-Jan-2018,3381372-46270,983.35,CARE ABILITY.
Adult and Health Services,Head of Adults,Supplies and Services,338366,Services,02-Jan-2018,3381372-46271,"1,477.00",CARE ABILITY.
Adult and Health Services,Head of Adults,Supplies and Services,338366,Services,02-Jan-2018,3381372-46272,"1,133.45",CARE ABILITY.
Regeneration and Local Services,Direct Services,Third Party Payments,430100,Rendered by Private Contractors,02-Jan-2018,3381376-3289,990.00,CATHEDRAL LOCK & SAFE SERVICES LTD.
Regeneration and Local Services,Direct Services,Transport,210057,Repair and Maintenance of Vehicles,02-Jan-2018,3381382-668818,"1,345.73",CHATFIELDS.
Regeneration and Local Services,Neighbourhood central costs,Creditors,952031,Creditor-gas contract,02-Jan-2018,3381401-NEI-EXP-12-2017-013,"273,427.32",CORONA ENERGY RETAIL 2 LTD.
Children and Young Peoples Services,Head of Education,Transport,230008,Contract Hire,02-Jan-2018,3381411-3166601,"1,523.20",DARLINGTON BOROUGH COUNCIL.
Children and Young Peoples Services,Head of Looked After Provision Permanence and Care Leavers,Employees,080025,Agency Staff,02-Jan-2018,3381413-1019827,"98,107.22",DE POEL MANAGED SERVICES LTD.
Regeneration and Local Services,Direct Services,Transport,210057,Repair and Maintenance of Vehicles,02-Jan-2018,3381416-96350460,789.62,DENNIS EAGLE LTD T/A TERBERG MATEC (UK) LTD.
Regeneration and Local Services,Direct Services,Third Party Payments,430101,Rendered by Private Contractors,02-Jan-2018,3381418-IV947129,"2,013.50",DIRECT TYRE MANAGEMENT (DTM).
Regeneration and Local Services,Spatial Policy Planning Assets & Environment,Creditors,952146,Creditor-Section 106 agreement,02-Jan-2018,3381443-RED-12-2017-225,"3,417.00",EXCEL ACADEMY PARTNERSHIP T/A FRAMWELLGATE SCHOOL DURHAM.
Regeneration and Local Services,Technical Services,Third Party Payments,430128,Rendered by Private Contractors,02-Jan-2018,3381445-198,664.00,F WARD FARM.
Regeneration and Local Services,Direct Services,Third Party Payments,430100,Rendered by Private Contractors,02-Jan-2018,3381453-10508,925.00,FROSTREE LTD.
Regeneration and Local Services,Economic Development and Housing,Cap Exp on Grants & Other Financial Assistance (REFCUS),918401,Capital grants,02-Jan-2018,3381469-RED-12-2017-214,"5,086.00",HES GROUP UK LTD.
Regeneration and Local Services,Economic Development and Housing,Cap Exp on Grants & Other Financial Assistance (REFCUS),918401,Capital grants,02-Jan-2018,3381469-RED-12-2017-215,"3,060.04",HES GROUP UK LTD.
Regeneration and Local Services,Economic Development and Housing,Cap Exp on Grants & Other Financial Assistance (REFCUS),918401,Capital grants,02-Jan-2018,3381469-RED-12-2017-216,"3,137.00",HES GROUP UK LTD.
Regeneration and Local Services,Economic Development and Housing,Cap Exp on Grants & Other Financial Assistance (REFCUS),918401,Capital grants,02-Jan-2018,3381469-RED-12-2017-217,"1,749.64",HES GROUP UK LTD.
Regeneration and Local Services,Economic Development and Housing,Cap Exp on Grants & Other Financial Assistance (REFCUS),918401,Capital grants,02-Jan-2018,3381469-RED-12-2017-218,"3,305.00",HES GROUP UK LTD.
Regeneration and Local Services,Economic Development and Housing,Cap Exp on Grants & Other Financial Assistance (REFCUS),918401,Capital grants,02-Jan-2018,3381469-RED-12-2017-219,"3,144.02",HES GROUP UK LTD.
Regeneration and Local Services,Economic Development and Housing,Cap Exp on Grants & Other Financial Assistance (REFCUS),918401,Capital grants,02-Jan-2018,3381469-RED-12-2017-220,"3,441.00",HES GROUP UK LTD.
Regeneration and Local Services,Direct Services,Third Party Payments,430100,Rendered by Private Contractors,02-Jan-2018,3381474-9001,554.90,HILLCREST AUTO ELECTRICS.
Regeneration and Local Services,Direct Services,Transport,210057,Repair and Maintenance of Vehicles,02-Jan-2018,3381474-8983,509.50,HILLCREST AUTO ELECTRICS.
Regeneration and Local Services,Direct Services,Third Party Payments,430100,Rendered by Private Contractors,02-Jan-2018,3381475-70930,947.00,HOGARTH COACHWORKS LTD.
Children and Young Peoples Services,Head of Education,Construction Work,908105,Construction work,02-Jan-2018,3381478-DURH/0800,"102,225.00",INSPIREDSPACES DURHAM LTD.
Regeneration and Local Services,Culture & Sport,Supplies and Services,338047,Services,02-Jan-2018,3381482-XX/6979,"1,266.81",JANET PLATER MANAGEMENT LTD.
Regeneration and Local Services,Direct Services,Transport,210057,Repair and Maintenance of Vehicles,02-Jan-2018,3381487-184993,910.57,JG PAXTON & SONS LTD.
Regeneration and Local Services,Technical Services,Supplies and Services,304358,Equipment and Materials,02-Jan-2018,3381492-27273,"1,043.00",JOHN R BUTTERFIELD LTD.
Regeneration and Local Services,Technical Services,Supplies and Services,304358,Equipment and Materials,02-Jan-2018,3381492-27335,888.00,JOHN R BUTTERFIELD LTD.
Regeneration and Local Services,Technical Services,Supplies and Services,304358,Equipment and Materials,02-Jan-2018,3381492-27505,"1,245.00",JOHN R BUTTERFIELD LTD.
Regeneration and Local Services,Technical Services,Supplies and Services,304358,Equipment and Materials,02-Jan-2018,3381499-1887,585.00,KEVIN SNOWDON GROUNDWORKS LTD.
Regeneration and Local Services,Technical Services,Supplies and Services,304358,Equipment and Materials,02-Jan-2018,3381499-1889,555.00,KEVIN SNOWDON GROUNDWORKS LTD.
Regeneration and Local Services,Technical Services,Supplies and Services,304358,Equipment and Materials,02-Jan-2018,3381499-1890,569.00,KEVIN SNOWDON GROUNDWORKS LTD.
Regeneration and Local Services,Technical Services,Supplies and Services,304358,Equipment and Materials,02-Jan-2018,3381499-1892,525.50,KEVIN SNOWDON GROUNDWORKS LTD.
Regeneration and Local Services,Technical Services,Supplies and Services,304358,Equipment and Materials,02-Jan-2018,3381499-1893,746.00,KEVIN SNOWDON GROUNDWORKS LTD.
Regeneration and Local Services,Technical Services,Supplies and Services,304358,Equipment and Materials,02-Jan-2018,3381499-1896,536.00,KEVIN SNOWDON GROUNDWORKS LTD.
Regeneration and Local Services,Technical Services,Supplies and Services,304358,Equipment and Materials,02-Jan-2018,3381499-1900,741.00,KEVIN SNOWDON GROUNDWORKS LTD.
Regeneration and Local Services,Technical Services,Supplies and Services,304358,Equipment and Materials,02-Jan-2018,3381499-1901,741.00,KEVIN SNOWDON GROUNDWORKS LTD.
Regeneration and Local Services,Technical Services,Supplies and Services,304358,Equipment and Materials,02-Jan-2018,3381499-1902,741.00,KEVIN SNOWDON GROUNDWORKS LTD.
Regeneration and Local Services,Technical Services,Supplies and Services,304358,Equipment and Materials,02-Jan-2018,3381499-1903,897.00,KEVIN SNOWDON GROUNDWORKS LTD.
Regeneration and Local Services,Technical Services,Supplies and Services,304358,Equipment and Materials,02-Jan-2018,3381499-1904,610.50,KEVIN SNOWDON GROUNDWORKS LTD.
Regeneration and Local Services,Technical Services,Supplies and Services,304358,Equipment and Materials,02-Jan-2018,3381499-1905,610.50,KEVIN SNOWDON GROUNDWORKS LTD.
Regeneration and Local Services,Technical Services,Supplies and Services,304358,Equipment and Materials,02-Jan-2018,3381499-1906,533.00,KEVIN SNOWDON GROUNDWORKS LTD.
Regeneration and Local Services,Technical Services,Supplies and Services,304358,Equipment and Materials,02-Jan-2018,3381499-1908,535.00,KEVIN SNOWDON GROUNDWORKS LTD.
Regeneration and Local Services,Technical Services,Supplies and Services,304358,Equipment and Materials,02-Jan-2018,3381499-1909,"1,083.50",KEVIN SNOWDON GROUNDWORKS LTD.
Regeneration and Local Services,Technical Services,Supplies and Services,304358,Equipment and Materials,02-Jan-2018,3381499-1910,610.50,KEVIN SNOWDON GROUNDWORKS LTD.
Regeneration and Local Services,Technical Services,Supplies and Services,304358,Equipment and Materials,02-Jan-2018,3381499-1911,851.00,KEVIN SNOWDON GROUNDWORKS LTD.
Regeneration and Local Services,Technical Services,Supplies and Services,304358,Equipment and Materials,02-Jan-2018,3381499-1912,851.00,KEVIN SNOWDON GROUNDWORKS LTD.
Regeneration and Local Services,Technical Services,Supplies and Services,304358,Equipment and Materials,02-Jan-2018,3381499-1914,692.00,KEVIN SNOWDON GROUNDWORKS LTD.
Regeneration and Local Services,Technical Services,Supplies and Services,304358,Equipment and Materials,02-Jan-2018,3381499-1915,585.00,KEVIN SNOWDON GROUNDWORKS LTD.
Regeneration and Local Services,Technical Services,Supplies and Services,304358,Equipment and Materials,02-Jan-2018,3381499-1916,805.00,KEVIN SNOWDON GROUNDWORKS LTD.
Regeneration and Local Services,Direct Services,Supplies and Services,304358,Equipment and Materials,02-Jan-2018,3381499-1917,920.00,KEVIN SNOWDON GROUNDWORKS LTD.
Regeneration and Local Services,Direct Services,Supplies and Services,304221,Equipment and Materials,02-Jan-2018,3381517-4169665,"3,100.50",LONDON GENERAL SALES LTD.
Regeneration and Local Services,Spatial Policy Planning Assets & Environment,Supplies and Services,384199,Miscellaneous Expenses,02-Jan-2018,3381524-952,580.00,MARK CONNELLY CONSERVATION LTD.
Regeneration and Local Services,Technical Services,Supplies and Services,384194,Miscellaneous Expenses,02-Jan-2018,3381545-93438,"2,228.60",NIRAMAX GROUP LTD.
Regeneration and Local Services,Direct Services,Supplies and Services,304221,Equipment and Materials,02-Jan-2018,3381555-OP/I103702,814.00,NORTHSTONE (NI) LTD T/A CUBIS SYSTEMS.
Regeneration and Local Services,Direct Services,Third Party Payments,430100,Rendered by Private Contractors,02-Jan-2018,3381558-7018,"8,892.00",OMEGA SECURITY SYSTEMS LTD.
Adult and Health Services,Head of Adults,Supplies and Services,308011,Furniture,02-Jan-2018,3381567-912,915.00,PETE`S REMOVALS & CLEARANCES.
Dedicated Schools Grant,Dedicated Schools Grant,Supplies and Services,304259,Equipment and Materials,02-Jan-2018,3381568-2591920442,"1,719.20",PHONAK UK LTD.
Adult and Health Services,Public Health,Third Party Payments,460803,Contract Payments,02-Jan-2018,3381570-15837/18,"25,000.00",PIONEERING CARE PARTNERSHIP.
Regeneration and Local Services,Direct Services,Supplies and Services,338078,Services,02-Jan-2018,3381578-105291,"2,167.52",QW SECURITY LTD.
Regeneration and Local Services,Business Support,Supplies and Services,340001,Postages,02-Jan-2018,3381591-9055545471,"1,698.79",ROYAL MAIL GROUP PLC.
Regeneration and Local Services,Business Support,Supplies and Services,340001,Postages,02-Jan-2018,3381591-9055586837,"1,433.42",ROYAL MAIL GROUP PLC.
Resources,Digital and Customer Services,Supplies and Services,340001,Postages,02-Jan-2018,3381591-9055582998,"10,957.30",ROYAL MAIL GROUP PLC.
Regeneration and Local Services,Economic Development and Housing,Supplies and Services,344033,Telephones,02-Jan-2018,3381592-0047190,655.24,RUSSELL NETWORK SOLUTIONS LTD.
Children and Young Peoples Services,Head of Looked After Provision Permanence and Care Leavers,Supplies and Services,336005,Advertising,02-Jan-2018,3381597-3835,900.00,SAVILLS UK LTD.
Adult and Health Services,Commissioning inc Supporting People,Third Party Payments,473111,Purchase of Care,02-Jan-2018,3381622-LH623,"40,953.00",ST MARGARETS CENTRE.
Regeneration and Local Services,Technical Services,Supplies and Services,304221,Equipment and Materials,02-Jan-2018,3381635-9037352587,"1,259.61",TARMAC TRADING LTD.
Children and Young Peoples Services,Head of Early Help Assessment and Safeguarding,Supplies and Services,384964,Miscellaneous Expenses,02-Jan-2018,3381643-INV20189529,"1,552.00",THE BIG WORD.
Regeneration and Local Services,Technical Services,Supplies and Services,304221,Equipment and Materials,02-Jan-2018,3381660-181037,"1,116.05",TYNEDALE ROADSTONE LTD.
Regeneration and Local Services,Technical Services,Supplies and Services,304221,Equipment and Materials,02-Jan-2018,3381660-181460,803.00,TYNEDALE ROADSTONE LTD.
Regeneration and Local Services,Technical Services,Supplies and Services,304221,Equipment and Materials,02-Jan-2018,3381660-181461,"1,003.70",TYNEDALE ROADSTONE LTD.
Resources,Corporate Finance,Supplies and Services,384999,Miscellaneous Expenses,02-Jan-2018,3381672-668550,"2,913.00",WARD HADAWAY.
Children and Young Peoples Services,Head of Early Help Assessment and Safeguarding,Third Party Payments,425023,Rendered by Voluntary Organisations,02-Jan-2018,3381678-525,"27,200.82",WITHERSLACK GROUP LTD.
Regeneration and Local Services,Technical Services,Supplies and Services,304358,Equipment and Materials,02-Jan-2018,3381683-6590,"2,366.25",YOULL CONSTRUCTION LTD.
Regeneration and Local Services,Technical Services,Supplies and Services,304358,Equipment and Materials,02-Jan-2018,3381683-6659,"2,158.75",YOULL CONSTRUCTION LTD.
Regeneration and Local Services,Technical Services,Supplies and Services,304358,Equipment and Materials,02-Jan-2018,3381684-6664,"2,158.75",YOULL CONSTRUCTION LTD.
Regeneration and Local Services,Technical Services,Supplies and Services,304358,Equipment and Materials,02-Jan-2018,3381684-6678,"2,158.75",YOULL CONSTRUCTION LTD.
Regeneration and Local Services,Technical Services,Supplies and Services,304358,Equipment and Materials,02-Jan-2018,3381684-6685,"1,584.63",YOULL CONSTRUCTION LTD.
Regeneration and Local Services,Technical Services,Supplies and Services,304358,Equipment and Materials,02-Jan-2018,3381684-6695,"2,158.75",YOULL CONSTRUCTION LTD.
Regeneration and Local Services,Direct Services,Third Party Payments,430100,Rendered by Private Contractors,02-Jan-2018,3381685-113629,527.47,ZOELLER WASTE SYSTEMS LTD.
Regeneration and Local Services,Direct Services,Third Party Payments,430100,Rendered by Private Contractors,02-Jan-2018,3381685-113634,960.27,ZOELLER WASTE SYSTEMS LTD.
Regeneration and Local Services,Economic Development and Housing,Supplies and Services,384700,Miscellaneous Expenses,03-Jan-2018,3381688-1294420,524.90,4IMPRINT DIRECT LTD.
Children and Young Peoples Services,Head of Education,Transport,230008,Contract Hire,03-Jan-2018,3381692-21/17A,"1,860.00",ADVANCE TRAVEL.
Children and Young Peoples Services,Head of Early Help Assessment and Safeguarding,Supplies and Services,338044,Services,03-Jan-2018,3381697-18780,"1,054.00",ALPHA BIOLABORATORIES LTD.
Regeneration and Local Services,Culture & Sport,Supplies and Services,384199,Miscellaneous Expenses,03-Jan-2018,3381701-WPDEC17,720.00,ANDREA DIXON T/A ANIMALS ABOUT TOWN FARM & EDUCATION.
Children and Young Peoples Services,Head of Looked After Provision Permanence and Care Leavers,Third Party Payments,425040,Rendered by Voluntary Organisations,03-Jan-2018,3381706-ARC1718-156,"18,000.00",ARC ADOPTION NORTH EAST.
Regeneration and Local Services,Transport and Contracted Services,Supplies and Services,384899,Miscellaneous Expenses,03-Jan-2018,3381717-RED-01-2018-004,500.00,BELMONT PARISH COUNCIL.
Regeneration and Local Services,Direct Services,Premises,120037,Energy Costs,03-Jan-2018,3381720-0000036549,539.13,BILLINGTON BIOENERGY LTD.
Regeneration and Local Services,Direct Services,Supplies and Services,304221,Equipment and Materials,03-Jan-2018,3381730-INV220668,"3,198.00",BROXAP LTD.
Children and Young Peoples Services,Head of Education,Transport,230008,Contract Hire,03-Jan-2018,3381740-INV-012,"1,200.00",CLARE LYNSEY STEWART T/A K&C TAXIS.
Regeneration and Local Services,Direct Services,Third Party Payments,430100,Rendered by Private Contractors,03-Jan-2018,3381742-AVI7227,"2,460.00",CLOCKWORK AUDIO VISUAL LTD.
Regeneration and Local Services,Direct Services,Third Party Payments,430100,Rendered by Private Contractors,03-Jan-2018,3381745-7642,500.00,COMMERCIAL COVERINGS LTD.
Children and Young Peoples Services,Head of Early Help Assessment and Safeguarding,Transfer Payments,525033,Other,03-Jan-2018,3381754-THK0014,"1,337.00",COUNTY DURHAM FURNITURE HELP SCHEME (CDFHS).
Regeneration and Local Services,Technical Services,Third Party Payments,430127,Rendered by Private Contractors,03-Jan-2018,3381757-43-2017,"1,831.50",D & L HOPPS.
Resources,Legal & Democratic Services,Supplies and Services,338042,Services,03-Jan-2018,3381763-335073/INVMM275,550.00,DERE STREET BARRISTERS.
Resources,Legal & Democratic Services,Supplies and Services,338042,Services,03-Jan-2018,3381763-335764/INFM232,660.00,DERE STREET BARRISTERS.
Resources,Legal & Democratic Services,Supplies and Services,338057,Services,03-Jan-2018,3381767-SEPTEMBER-17U,871.20,DR SREE MUSSUNOOR.
Resources,Legal & Democratic Services,Supplies and Services,338057,Services,03-Jan-2018,3381768-SEPTEMBER-17D,"2,400.00",DR SREE MUSSUNOOR.
Children and Young Peoples Services,Head of Early Help Assessment and Safeguarding,Third Party Payments,486029,Service Level Agreements,03-Jan-2018,3381788-22788,"17,993.08",FAMILY ACTION.
Adult and Health Services,Head of Adults,Premises,125009,Rents,03-Jan-2018,3381792-FTL0682,"4,250.00",FINCHALE TRADING LTD.
Regeneration and Local Services,Economic Development and Housing,Supplies and Services,336005,Advertising,03-Jan-2018,3381794-2044,"1,345.50",FIREFLY NEW MEDIA UK.
Regeneration and Local Services,Economic Development and Housing,Fees,901002,Professional fees,03-Jan-2018,3381801-107644960,841.60,GATESHEAD COUNCIL.
Regeneration and Local Services,Technical Services,Supplies and Services,338027,Services,03-Jan-2018,3381801-107625894,504.00,GATESHEAD COUNCIL.
Adult and Health Services,Head of Adults,Supplies and Services,308011,Furniture,03-Jan-2018,3381802-2094,839.00,GET LAID PROFESSIONALLY LTD.
Children and Young Peoples Services,Head of Education,Fees,901002,Professional fees,03-Jan-2018,3381812-0040249207,594.44,HARTLEPOOL BOROUGH COUNCIL.
Regeneration and Local Services,Technical Services,Supplies and Services,338027,Services,03-Jan-2018,3381812-0040249205,"9,827.00",HARTLEPOOL BOROUGH COUNCIL.
Children and Young Peoples Services,Head of Looked After Provision Permanence and Care Leavers,Third Party Payments,425021,Rendered by Voluntary Organisations,03-Jan-2018,3381815-4379,"3,520.00",HOWARD HOUSE CARE LTD.
Regeneration and Local Services,Culture & Sport,Premises,125009,Rents,03-Jan-2018,3381818-11086,"36,141.25",IMPALA ESTATES LTD.
Resources,Digital and Customer Services,Supplies and Services,304303,Equipment and Materials,03-Jan-2018,3381820-SIN419953,551.00,INFORMATION & DATA NETWORK SUPPLIES LTD (IDN).
Regeneration and Local Services,Technical Services,Supplies and Services,338066,Services,03-Jan-2018,3381831-B225H005-030,"3,308.40",JACOBS UK LTD.
Regeneration and Local Services,Direct Services,Supplies and Services,304357,Equipment and Materials,03-Jan-2018,3381836-1946515,602.82,JOHN NIXON LTD.
Children and Young Peoples Services,Head of Education,Supplies and Services,338094,Services,03-Jan-2018,3381849-2016475,"1,764.00",LEISUREWORKS.
Regeneration and Local Services,Technical Services,Third Party Payments,430100,Rendered by Private Contractors,03-Jan-2018,3381851-911258,"6,258.00",LIGHTING & ILLUMINATION TECHNOLOGY EXPERIENCE LTD (LITE).
Regeneration and Local Services,Direct Services,Supplies and Services,304221,Equipment and Materials,03-Jan-2018,3381852-4175062,"1,180.97",LONDON GENERAL SALES LTD.
Regeneration and Local Services,Direct Services,Supplies and Services,304221,Equipment and Materials,03-Jan-2018,3381852-4175063,502.37,LONDON GENERAL SALES LTD.
Regeneration and Local Services,Direct Services,Third Party Payments,430100,Rendered by Private Contractors,03-Jan-2018,3381877-658015,"1,856.00",NATIONWIDE CHIMNEY COMPONENTS LTD.
Regeneration and Local Services,Direct Services,Third Party Payments,430100,Rendered by Private Contractors,03-Jan-2018,3381877-658020,"1,595.00",NATIONWIDE CHIMNEY COMPONENTS LTD.
Regeneration and Local Services,Direct Services,Supplies and Services,304083,Equipment and Materials,03-Jan-2018,3381878-43176,"7,310.00",NATIONWIDE RETAIL SYSTEMS LTD.
Regeneration and Local Services,Direct Services,Supplies and Services,304259,Equipment and Materials,03-Jan-2018,3381885-2570898,"1,195.00",NORTHERN TOOLS & ACCESSORIES.
Regeneration and Local Services,Technical Services,Premises,120009,Energy Costs,03-Jan-2018,3381886-NNO722MN,"173,742.02",NPOWER.
Regeneration and Local Services,Economic Development and Housing,Premises,120009,Energy Costs,03-Jan-2018,3381886-NNO7288W,"8,954.30",NPOWER.
Regeneration and Local Services,Economic Development and Housing,Premises,120009,Energy Costs,03-Jan-2018,3381886-NNO7288X,"2,389.93",NPOWER.
Regeneration and Local Services,Technical Services,Premises,120009,Energy Costs,03-Jan-2018,3381886-NNO72925,"3,160.81",NPOWER.
Regeneration and Local Services,Economic Development and Housing,Premises,120009,Energy Costs,03-Jan-2018,3381886-NNO729XB,"1,852.46",NPOWER.
Regeneration and Local Services,Economic Development and Housing,Premises,120009,Energy Costs,03-Jan-2018,3381886-NNO729XV,840.86,NPOWER.
Regeneration and Local Services,Economic Development and Housing,Premises,120009,Energy Costs,03-Jan-2018,3381886-NNO729ZY,"3,155.03",NPOWER.
Regeneration and Local Services,Economic Development and Housing,Premises,135005,Water Services,03-Jan-2018,3381889-31337960014472748,"1,130.66",NWG BUSINESS LTD (NORTHUMBRIAN WATER GROUP).
Regeneration and Local Services,Economic Development and Housing,Premises,135005,Water Services,03-Jan-2018,3381889-4473178,"3,654.89",NWG BUSINESS LTD (NORTHUMBRIAN WATER GROUP).
Regeneration and Local Services,Culture & Sport,Supplies and Services,304259,Equipment and Materials,03-Jan-2018,3381892-CN19575946,920.55,OCS GROUP UK LTD T/A CANNON HYGIENE.
Regeneration and Local Services,Technical Services,Stock,926900,Stock in hand-Inventory system,03-Jan-2018,3381893-287942,513.90,OIL NRG LTD.
Resources,Digital and Customer Services,Supplies and Services,342051,Computers and Communications,03-Jan-2018,3381896-1577444,"2,340.63",ORACLE CORPORATION UK LTD.
Regeneration and Local Services,Direct Services,Supplies and Services,304221,Equipment and Materials,03-Jan-2018,3381901-XL214853,756.00,PARK ELECTRICAL DISTRIBUTORS LTD.
Regeneration and Local Services,Technical Services,Stock,926900,Stock in hand-Inventory system,03-Jan-2018,3381901-XL214854,720.00,PARK ELECTRICAL DISTRIBUTORS LTD.
Children and Young Peoples Services,Head of Early Help Assessment and Safeguarding,Premises,125009,Rents,03-Jan-2018,3381903-L91469,"1,216.00",PARKINSON BAILIFF SERVICES LTD DEBT COLLECTION DEPARTMENT.
Children and Young Peoples Services,Head of Early Help Assessment and Safeguarding,Supplies and Services,384964,Miscellaneous Expenses,03-Jan-2018,3381906-PCSC-0036,"4,000.00",PAUSE CREATING SPACE FOR CHANGE.
Regeneration and Local Services,Direct Services,Construction Work,908105,Construction work,03-Jan-2018,3381909-306279,"1,055.00",PEART FENCING LTD.
Resources,Digital and Customer Services,Supplies and Services,342033,Computers and Communications,03-Jan-2018,3381912-OP/I811129,"2,737.33",PHOENIX SOFTWARE LTD.
Adult and Health Services,Head of Adults,Third Party Payments,478151,Purchase of Care,03-Jan-2018,3381919-4473,574.84,POTENSIAL LTD T/A POTENS
Resources,Digital and Customer Services,Supplies and Services,332029,Printing Stationery and Gen Off Exps,03-Jan-2018,3381920-652958,"4,910.00",POTTS PRINTERS LTD.
Regeneration and Local Services,Transport and Contracted Services,Supplies and Services,384199,Miscellaneous Expenses,03-Jan-2018,3381922-149266,"13,476.50",PREMIER TRAFFIC MANAGEMENT LTD.
Adult and Health Services,Head of Adults,Third Party Payments,478151,Purchase of Care,03-Jan-2018,3381925-1300006541,849.12,PROGRESS CARE HOUSING ASSOCIATION LTD.
Regeneration and Local Services,Economic Development and Housing,Cap Exp on Grants & Other Financial Assistance (REFCUS),918401,Capital grants,03-Jan-2018,3381931-RED-12-2017-213,"26,108.00",R TINDALE (BUILDER) LTD.
Regeneration and Local Services,Technical Services,Third Party Payments,430128,Rendered by Private Contractors,03-Jan-2018,308738-4-16/10/17,500.00,RE SHANN.
Children and Young Peoples Services,Head of Early Help Assessment and Safeguarding,Supplies and Services,338043,Services,03-Jan-2018,3381938-RAI0036/1-NH-MCKL,"1,446.00",RICHMOND ANDERSON GOUDIE.
Regeneration and Local Services,Direct Services,Supplies and Services,304221,Equipment and Materials,03-Jan-2018,3381939-RSIN0244464,528.00,RIGBY TAYLOR LTD.
Resources,Legal & Democratic Services,Premises,125009,Rents,03-Jan-2018,3381941-9497,533.00,RIVERGREEN DEVELOPMENTS PLC.
Children and Young Peoples Services,Head of Looked After Provision Permanence and Care Leavers,Supplies and Services,364352,Grants to Voluntary Organisations,03-Jan-2018,3381944-1339,"2,084.45",ROCSOLID.
Resources,Legal & Democratic Services,Supplies and Services,340001,Postages,03-Jan-2018,3381945-9055684324,"1,137.09",ROYAL MAIL GROUP PLC.
Regeneration and Local Services,Technical Services,Third Party Payments,430100,Rendered by Private Contractors,03-Jan-2018,3381949-1342,795.00,SCHMUCK WHORLTON LTD.
Resources,Digital and Customer Services,Intangible Assets,917001,Software capitalised licence fees,03-Jan-2018,3381952-0033601352,"1,600.00",SERVELEC SYNERGY LTD.
Regeneration and Local Services,Transport and Contracted Services,Supplies and Services,384899,Miscellaneous Expenses,03-Jan-2018,3381953-RED-01-2018-002,"1,200.00",SHADFORTH PARISH COUNCIL.
Dedicated Schools Grant,Dedicated Schools Grant,Supplies and Services,384199,Miscellaneous Expenses,03-Jan-2018,3381955-02,"1,530.00",SHARON HOWARD T/A SH COUNSELLING SERVICES.
Adult and Health Services,Head of Adults,Third Party Payments,478151,Purchase of Care,03-Jan-2018,3381962-81217,"3,289.20",SOVEREIGN CARE NORTH EAST LTD T/A MAPLE HOUSE.
Dedicated Schools Grant,Dedicated Schools Grant,Supplies and Services,384199,Miscellaneous Expenses,03-Jan-2018,3381965-98610,"3,060.00",SPEECH LINK MULTIMEDIA LTD.
Children and Young Peoples Services,Head of Early Help Assessment and Safeguarding,Third Party Payments,425028,Rendered by Voluntary Organisations,03-Jan-2018,3381967-1096,"4,025.00",SPORT WORKS LTD.
Regeneration and Local Services,Direct Services,Third Party Payments,430100,Rendered by Private Contractors,03-Jan-2018,3381969-6029,"11,700.00",ST ASTIER LTD.
Children and Young Peoples Services,Head of Looked After Provision Permanence and Care Leavers,Third Party Payments,425021,Rendered by Voluntary Organisations,03-Jan-2018,3381970-996337,"2,250.00",ST FRANCIS CHILDRENS SOCIETY.
Regeneration and Local Services,Culture & Sport,Supplies and Services,304259,Equipment and Materials,03-Jan-2018,3381972-00336307,"1,207.66",STAGE ELECTRICS.
Regeneration and Local Services,Culture & Sport,Supplies and Services,338047,Services,03-Jan-2018,3381972-00335969,"1,208.67",STAGE ELECTRICS.
Adult and Health Services,Public Health,Third Party Payments,460803,Contract Payments,03-Jan-2018,3381984-7793,"2,783.80",SUPPORTIVE SRC LTD.
Regeneration and Local Services,Technical Services,Supplies and Services,304221,Equipment and Materials,03-Jan-2018,3381988-9037359860,654.06,TARMAC TRADING LTD.
Dedicated Schools Grant,Dedicated Schools Grant,Supplies and Services,338091,Services,03-Jan-2018,3381993-4810010876,920.58,TEES ESK & WEAR VALLEYS NHS FOUNDATION TRUST.
Children and Young Peoples Services,Head of Education,Transfer Payments,510026,School Children,03-Jan-2018,3381998-THENURSERY0036,"1,012.50",THE NURSERY.
Regeneration and Local Services,Direct Services,Third Party Payments,430100,Rendered by Private Contractors,03-Jan-2018,3382000-0000102586,652.56,THE SEKURA GROUP.
Adult and Health Services,Head of Adults,Third Party Payments,478151,Purchase of Care,03-Jan-2018,3382002-TNX-INV-0000003557,840.00,THERA NORTH TRADING LTD.
Regeneration and Local Services,Technical Services,Stock,926900,Stock in hand-Inventory system,03-Jan-2018,3382003-N/IN211567,581.08,THOMAS OWEN & SONS (NEWCASTLE) LTD.
Regeneration and Local Services,Direct Services,Supplies and Services,304221,Equipment and Materials,03-Jan-2018,3382006-100390,"4,698.00",TOTAL RENTAL SOLUTIONS.
Regeneration and Local Services,Transport and Contracted Services,Third Party Payments,430100,Rendered by Private Contractors,03-Jan-2018,3382011-RED-01-2018-007,"8,000.00",TRAFFIC ENFORCEMENT CENTRE (TEC).
Children and Young Peoples Services,Head of Education,Transport,230008,Contract Hire,03-Jan-2018,3382012-99,840.00,TRIDENT TAXIS.
Regeneration and Local Services,Technical Services,Supplies and Services,304221,Equipment and Materials,03-Jan-2018,3382015-181462,"1,115.12",TYNEDALE ROADSTONE LTD.
Regeneration and Local Services,Technical Services,Supplies and Services,304221,Equipment and Materials,03-Jan-2018,3382015-181464,822.08,TYNEDALE ROADSTONE LTD.
Regeneration and Local Services,Technical Services,Supplies and Services,304221,Equipment and Materials,03-Jan-2018,3382015-181465,732.80,TYNEDALE ROADSTONE LTD.
Regeneration and Local Services,Technical Services,Supplies and Services,304221,Equipment and Materials,03-Jan-2018,3382015-181466,985.70,TYNEDALE ROADSTONE LTD.
Children and Young Peoples Services,Head of Looked After Provision Permanence and Care Leavers,Third Party Payments,440039,Other Third Party Payments,03-Jan-2018,3382016-111AGB061310655,"1,032.00",UNITE INTEGRATED SOLUTIONS PLC.
Regeneration and Local Services,Technical Services,Third Party Payments,430100,Rendered by Private Contractors,03-Jan-2018,3382018-INV045287,"4,781.98",URBIS SCHREDER LTD.
Regeneration and Local Services,Technical Services,Stock,926900,Stock in hand-Inventory system,03-Jan-2018,3382018-INV045286,"7,350.00",URBIS SCHREDER LTD.
Children and Young Peoples Services,Head of Education,Transport,230008,Contract Hire,03-Jan-2018,3382025-GAP/23,900.00,WAYSIDE TAXIS.
Children and Young Peoples Services,Head of Looked After Provision Permanence and Care Leavers,Supplies and Services,342513,Computers and Communications,04-Jan-2018,3382040-16121,600.00,ACEDA LTD.
Transformation and Partnerships,Partnerships & Community Engagement Div.,Cap Exp on Grants & Other Financial Assistance (REFCUS),918004,Contributions to other bodies,04-Jan-2018,3382065-VOUCHER17NB-TEES007,"2,000.00",BOWES FOOTBALL CLUB.
Regeneration and Local Services,Culture & Sport,Supplies and Services,384700,Miscellaneous Expenses,04-Jan-2018,3382066-4791,"2,000.00",BOWES MUSEUM.
Resources,Legal & Democratic Services,Premises,120021,Energy Costs,04-Jan-2018,3382068-3057,"5,602.68",BRADLEY HALL LTD.
Regeneration and Local Services,Culture & Sport,Premises,145023,Cleaning and Domestic Supplies,04-Jan-2018,3382070-22SI2230543,"1,030.00",BRENNTAG UK LTD.
Children and Young Peoples Services,Head of Looked After Provision Permanence and Care Leavers,Third Party Payments,440039,Other Third Party Payments,04-Jan-2018,3382079-S0018,"3,667.59",CENTREPOINT SOHO LTD.
Children and Young Peoples Services,Head of Looked After Provision Permanence and Care Leavers,Third Party Payments,440039,Other Third Party Payments,04-Jan-2018,3382085-1704,700.00,CITY OF SUNDERLAND YMCA LTD.
Children and Young Peoples Services,Head of Looked After Provision Permanence and Care Leavers,Third Party Payments,440039,Other Third Party Payments,04-Jan-2018,3382086-1705,"1,200.00",CITY OF SUNDERLAND YMCA LTD.
Children and Young Peoples Services,Head of Looked After Provision Permanence and Care Leavers,Third Party Payments,440039,Other Third Party Payments,04-Jan-2018,3382086-1706,500.00,CITY OF SUNDERLAND YMCA LTD.
Adult and Health Services,Head of Adults,Supplies and Services,384199,Miscellaneous Expenses,04-Jan-2018,3382091-JOB001/19133,525.00,COLIN JOBLING T/A RAINBOW INTERNATIONAL.
Transformation and Partnerships,Partnerships & Community Engagement Div.,Transfer Payments,525030,Other,04-Jan-2018,3382093-VOUCHER17YF-DVLY002,"2,987.00",CONSETT PHOENIX YOUTH.
Adult and Health Services,Public Health,Third Party Payments,460803,Contract Payments,04-Jan-2018,3382104-TVDA00215-2/10/17,"3,333.00",CRUSE BEREAVEMENT CARE.
Dedicated Schools Grant,Dedicated Schools Grant,Third Party Payments,440080,Other Third Party Payments,04-Jan-2018,3382107-SLINV/00001757,"1,913.85",DARLINGTON COLLEGE.
Children and Young Peoples Services,Head of Early Help Assessment and Safeguarding,Employees,080025,Agency Staff,04-Jan-2018,3382109-1020747,"48,959.66",DE POEL MANAGED SERVICES LTD.
Resources,Digital and Customer Services,Vehicles Equipment Furniture and Fittings,912701,Computer equipment,04-Jan-2018,3382110-7402406416,912.95,DELL COMPUTER CORPORATION LTD.
Adult and Health Services,Commissioning inc Supporting People,Third Party Payments,440051,Other Third Party Payments,04-Jan-2018,3382111-NOVEMBER2017,"3,841.67",DERIC YOUTH BUS PROJECT.
Adult and Health Services,Commissioning inc Supporting People,Third Party Payments,479111,Purchase of Care,04-Jan-2018,3382112-PO4100581089,"3,294.00",DERWENTSIDE MIND.
Regeneration and Local Services,Spatial Policy Planning Assets & Environment,Supplies and Services,384199,Miscellaneous Expenses,04-Jan-2018,3382116-05-171017,"3,000.00",DIVERSE SENSOR TECHNOLOGY LTD (DST).
Adult and Health Services,Commissioning inc Supporting People,Third Party Payments,479101,Purchase of Care,04-Jan-2018,3382121-316,"54,930.50",DURHAM COUNTY CARERS SUPPORT.
Adult and Health Services,Commissioning inc Supporting People,Third Party Payments,479101,Purchase of Care,04-Jan-2018,3382121-318,"20,519.50",DURHAM COUNTY CARERS SUPPORT.
Resources,Digital and Customer Services,Supplies and Services,332029,Printing Stationery and Gen Off Exps,04-Jan-2018,3382135-108218,"1,466.00",ELANDERS UK.
Regeneration and Local Services,Culture & Sport,Supplies and Services,338047,Services,04-Jan-2018,3382140-GALA16,"1,130.00",EMILY BAXENDALE.
Regeneration and Local Services,Technical Services,Supplies and Services,304221,Equipment and Materials,04-Jan-2018,3382146-147830,905.10,ESH CONSTRUCTION LTD FORMERLY LUMSDEN & CARROLL CONSTRUCTION LTD.
Children and Young Peoples Services,Head of Looked After Provision Permanence and Care Leavers,Supplies and Services,336005,Advertising,04-Jan-2018,3382150-SINV00157241,"2,092.00",EXTERION MEDIA (UK) LTD.
Regeneration and Local Services,Direct Services,Third Party Payments,430120,Rendered by Private Contractors,04-Jan-2018,3382153-SINV9181015,565.00,FINNING (UK) LTD.
Children and Young Peoples Services,Head of Looked After Provision Permanence and Care Leavers,Third Party Payments,440038,Other Third Party Payments,04-Jan-2018,3382157-380,"12,960.00",FOREVER CARE.
Regeneration and Local Services,Economic Development and Housing,Supplies and Services,384540,Miscellaneous Expenses,04-Jan-2018,3382165-16745,"3,500.00",GARDINER RICHARDSON LTD.
Children and Young Peoples Services,Head of Education,Transfer Payments,510026,School Children,04-Jan-2018,3382172-INV07216,672.60,GREAT AYCLIFFE TOWN COUNCIL.
Regeneration and Local Services,Transport and Contracted Services,Supplies and Services,304259,Equipment and Materials,04-Jan-2018,3382173-06/713580,"1,007.00",GREENHAM TRADING LTD.
Regeneration and Local Services,Technical Services,Stock,926900,Stock in hand-Inventory system,04-Jan-2018,3382173-06/712613,753.50,GREENHAM TRADING LTD.
Regeneration and Local Services,Technical Services,Stock,926900,Stock in hand-Inventory system,04-Jan-2018,3382173-06/714101,718.22,GREENHAM TRADING LTD.
Regeneration and Local Services,Technical Services,Supplies and Services,338027,Services,04-Jan-2018,3382192-B225H009-014,952.98,JACOBS UK LTD.
Regeneration and Local Services,Culture & Sport,Supplies and Services,338047,Services,04-Jan-2018,3382193-ROBINSONCRUSOE2017FEE,528.47,JAMIE BROWN.
Regeneration and Local Services,Direct Services,Supplies and Services,304221,Equipment and Materials,04-Jan-2018,3382196-3307/0103830,936.80,JEWSON LTD.
Children and Young Peoples Services,Head of Education,Supplies and Services,384199,Miscellaneous Expenses,04-Jan-2018,3382206-17096,"1,000.00",KAREN BROWN CONSULTING LTD.
Regeneration and Local Services,Technical Services,Third Party Payments,430100,Rendered by Private Contractors,04-Jan-2018,3382219-911349,"17,956.00",LIGHTING & ILLUMINATION TECHNOLOGY EXPERIENCE LTD (LITE).
Regeneration and Local Services,Economic Development and Housing,Supplies and Services,324117,Provisions,04-Jan-2018,3382237-904139927,"3,117.23",MOLSON COORS BREWING COMPANY (UK) LTD.
Regeneration and Local Services,Culture & Sport,Supplies and Services,324117,Provisions,04-Jan-2018,3382237-904229191,590.23,MOLSON COORS BREWING COMPANY (UK) LTD.
Resources,Digital and Customer Services,Employees,040149,Recruitment Instruction and Training,04-Jan-2018,3382250-50069567,"1,622.00",NEW COLLEGE DURHAM.
Transformation and Partnerships,Partnerships & Community Engagement Div.,Supplies and Services,384086,Miscellaneous Expenses,04-Jan-2018,3382253-VOUCHER17NB-STAN006,"4,300.00",NORTH EAST HORTICULTURAL SOCIETY.
Dedicated Schools Grant,Dedicated Schools Grant,Third Party Payments,410037,Rendered by Other Local Authorities,04-Jan-2018,3382254-3610030532,"1,238.00",NORTH TEES & HARTLEPOOL NHS FOUNDATION TRUST.
Regeneration and Local Services,Technical Services,Third Party Payments,430100,Rendered by Private Contractors,04-Jan-2018,3382255-DI20282283,"4,228.79",NORTHERN POWERGRID (NORTHEAST) LTD.
Regeneration and Local Services,Technical Services,Third Party Payments,430100,Rendered by Private Contractors,04-Jan-2018,3382255-DI20283985,944.15,NORTHERN POWERGRID (NORTHEAST) LTD.
Regeneration and Local Services,Economic Development and Housing,Premises,135005,Water Services,04-Jan-2018,3382257-200317096REPAYMENT,"1,185.83",NORTHUMBRIAN WATER LTD.
Adult and Health Services,Head of Adults,Third Party Payments,478151,Purchase of Care,04-Jan-2018,3382258-30760,"1,053.68",OAKLEA TRUST.
Adult and Health Services,Head of Adults,Third Party Payments,478151,Purchase of Care,04-Jan-2018,3382258-30763,504.00,OAKLEA TRUST.
Adult and Health Services,Head of Adults,Third Party Payments,478151,Purchase of Care,04-Jan-2018,3382258-30764,630.00,OAKLEA TRUST.
Adult and Health Services,Head of Adults,Third Party Payments,478151,Purchase of Care,04-Jan-2018,3382258-31088,"1,317.10",OAKLEA TRUST.
Regeneration and Local Services,Direct Services,Supplies and Services,304221,Equipment and Materials,04-Jan-2018,3382269-XL214989,692.64,PARK ELECTRICAL DISTRIBUTORS LTD.
Regeneration and Local Services,Technical Services,Stock,926900,Stock in hand-Inventory system,04-Jan-2018,3382269-XL214984,"1,195.20",PARK ELECTRICAL DISTRIBUTORS LTD.
Regeneration and Local Services,Technical Services,Third Party Payments,430128,Rendered by Private Contractors,04-Jan-2018,3382274-3789,662.00,PETER MONKHOUSE HAULAGE.
Regeneration and Local Services,Culture & Sport,Supplies and Services,338047,Services,04-Jan-2018,3382276-3,738.34,PGI SMITH SOLUTIONS LTD.
Regeneration and Local Services,Technical Services,Supplies and Services,304221,Equipment and Materials,04-Jan-2018,3382291-105603,550.00,PROTECTOR SECURITY GROUP LTD.
Dedicated Schools Grant,Dedicated Schools Grant,Third Party Payments,425005,Rendered by Voluntary Organisations,04-Jan-2018,3382295-0000121871,"11,970.00",QUALITY TIME CARE LTD.
Resources,Digital and Customer Services,Supplies and Services,332029,Printing Stationery and Gen Off Exps,04-Jan-2018,3382298-15636,"1,532.50",RADECAL SIGNS GRAPHICS & ADVERTISING.
Resources,Digital and Customer Services,Supplies and Services,332029,Printing Stationery and Gen Off Exps,04-Jan-2018,3382298-15647,"5,980.00",RADECAL SIGNS GRAPHICS & ADVERTISING.
Children and Young Peoples Services,Head of Early Help Assessment and Safeguarding,Supplies and Services,384918,Miscellaneous Expenses,04-Jan-2018,308740-CAS-01-2018-011,"2,200.00",REDACTED - PAYMENT TO INDIVIDUAL
Regeneration and Local Services,Spatial Policy Planning Assets & Environment,Supplies and Services,384700,Miscellaneous Expenses,04-Jan-2018,3382337-BURSARYDECEMBER17,555.00,REDACTED - PAYMENT TO INDIVIDUAL
Regeneration and Local Services,Culture & Sport,Supplies and Services,338047,Services,04-Jan-2018,3382044-18-011,575.00,REDACTED - PAYMENT TO INDIVIDUAL
Regeneration and Local Services,Spatial Policy Planning Assets & Environment,Supplies and Services,338066,Services,04-Jan-2018,3382082-BURSARYDECEMBER17,580.20,REDACTED - PAYMENT TO INDIVIDUAL
Transformation and Partnerships,Comms & Information Management,Supplies and Services,338099,Services,04-Jan-2018,3382306-39164,"4,240.90",RIVERSIDE EVENTS LLP.
Children and Young Peoples Services,Head of Early Help Assessment and Safeguarding,Supplies and Services,384409,Miscellaneous Expenses,04-Jan-2018,3382319-04122017,732.63,SHE`S GOTT IT.
Regeneration and Local Services,Culture & Sport,Supplies and Services,304259,Equipment and Materials,04-Jan-2018,3382332-00334436,"1,534.85",STAGE ELECTRICS.
Children and Young Peoples Services,Head of Looked After Provision Permanence and Care Leavers,Premises,145009,Cleaning and Domestic Supplies,04-Jan-2018,3382333-1389,820.00,STAINKLEEN.
Children and Young Peoples Services,Childrens Services Operational Support,Supplies and Services,338089,Services,04-Jan-2018,3382344-4100603594,950.00,SUSAN BELL (EXTERNAL TRAINER).
Regeneration and Local Services,Culture & Sport,Supplies and Services,328041,Clothing Uniforms and Laundry,04-Jan-2018,3382346-526223,713.10,SWIFT INDUSTRIAL SUPPLIES LTD.
Dedicated Schools Grant,Dedicated Schools Grant,Supplies and Services,338091,Services,04-Jan-2018,3382354-4810011334,920.58,TEES ESK & WEAR VALLEYS NHS FOUNDATION TRUST.
Adult and Health Services,EnvironmentHealth & Consumer Protection,Supplies and Services,338027,Services,04-Jan-2018,3382364-983386,"1,650.00",THE ENVIRONMENTAL PROTECTION GROUP LTD.
Regeneration and Local Services,Direct Services,Supplies and Services,304221,Equipment and Materials,04-Jan-2018,3382372-113164,"1,310.50",TOMMY WARDLE.
Regeneration and Local Services,Direct Services,Supplies and Services,304221,Equipment and Materials,04-Jan-2018,3382372-113166,"1,864.65",TOMMY WARDLE.
Regeneration and Local Services,Direct Services,Supplies and Services,304221,Equipment and Materials,04-Jan-2018,3382372-113172,659.85,TOMMY WARDLE.
Regeneration and Local Services,Transport and Contracted Services,Third Party Payments,430106,Rendered by Private Contractors,04-Jan-2018,3382373-8/10-4/11/17,"2,169.16",TONYS TAXIS (A BIRCH).
Regeneration and Local Services,Direct Services,Supplies and Services,304221,Equipment and Materials,04-Jan-2018,3382376-31386,"1,030.00",TOTAL PUMP SOLUTIONS LTD.
Regeneration and Local Services,Technical Services,Supplies and Services,304221,Equipment and Materials,04-Jan-2018,3382383-181520,"1,105.82",TYNEDALE ROADSTONE LTD.
Regeneration and Local Services,Technical Services,Supplies and Services,304221,Equipment and Materials,04-Jan-2018,3382383-181522,707.84,TYNEDALE ROADSTONE LTD.
Regeneration and Local Services,Technical Services,Supplies and Services,304221,Equipment and Materials,04-Jan-2018,3382383-181523,673.40,TYNEDALE ROADSTONE LTD.
Regeneration and Local Services,Technical Services,Supplies and Services,304221,Equipment and Materials,04-Jan-2018,3382383-181524,709.76,TYNEDALE ROADSTONE LTD.
Adult and Health Services,Commissioning inc Supporting People,Supplies and Services,338091,Services,04-Jan-2018,3382387-032906466-002,530.00,UNIVERSITY OF SUNDERLAND.
Regeneration and Local Services,Direct Services,Supplies and Services,304252,Equipment and Materials,04-Jan-2018,3382392-90521,"2,200.00",VISION TECHNIQUES (UK) LTD.
Regeneration and Local Services,Culture & Sport,Supplies and Services,338047,Services,04-Jan-2018,3382394-1194514,654.84,WALT DISNEY CO LTD.
Regeneration and Local Services,Culture & Sport,Supplies and Services,338047,Services,04-Jan-2018,3382394-1630511,"1,437.33",WALT DISNEY CO LTD.
Regeneration and Local Services,Culture & Sport,Supplies and Services,338047,Services,04-Jan-2018,3382395-1631812,"5,820.83",WALT DISNEY CO LTD.
Regeneration and Local Services,Technical Services,Third Party Payments,430100,Rendered by Private Contractors,04-Jan-2018,3382400-201750361,"1,384.00",WEMO-TEC UK LTD.
Regeneration and Local Services,Direct Services,Supplies and Services,304221,Equipment and Materials,04-Jan-2018,3382405-48533003,774.99,WOLSELEY UK LTD.
Regeneration and Local Services,Direct Services,Supplies and Services,304221,Equipment and Materials,04-Jan-2018,3382405-48533593,709.62,WOLSELEY UK LTD.
Regeneration and Local Services,Technical Services,Third Party Payments,460251,Contract Payments,04-Jan-2018,3382409-8660,"24,150.04",YOTTA LTD.
Regeneration and Local Services,Culture & Sport,Supplies and Services,304259,Equipment and Materials,04-Jan-2018,3382411-I-0487145,"1,432.90",ZOGGS INTERNATIONAL LTD.
Regeneration and Local Services,Direct Services,Third Party Payments,430100,Rendered by Private Contractors,05-Jan-2018,3382418-A12483,"1,727.40",AACS LTD.
Children and Young Peoples Services,Head of Looked After Provision Permanence and Care Leavers,Premises,108251,Service Repairs and Maintenance,05-Jan-2018,3382423-49274,"1,250.00",ALARM RADIO MONITORING LTD.
Regeneration and Local Services,Technical Services,Employees,040149,Recruitment Instruction and Training,05-Jan-2018,3382432-931876976,600.00,ARCO LTD.
Adult and Health Services,Head of Adults,Supplies and Services,308011,Furniture,05-Jan-2018,3382433-3390139560,882.49,ARJO UK LTD.
Children and Young Peoples Services,Head of Looked After Provision Permanence and Care Leavers,Third Party Payments,425020,Rendered by Voluntary Organisations,05-Jan-2018,3382434-INV-0792,"11,600.00",ARTEMIS SUPPORT LTD.
Regeneration and Local Services,Culture & Sport,Supplies and Services,338047,Services,05-Jan-2018,3382437-CC180103-05,750.00,ATC LIVE LLP.
Children and Young Peoples Services,Head of Education,Fees,901002,Professional fees,05-Jan-2018,3382438-17019414,"3,412.81",ATKINS GLOBAL.
Regeneration and Local Services,Technical Services,Supplies and Services,338066,Services,05-Jan-2018,3382454-8032,"35,180.49",BLOOM PROCUREMENT SERVICES LTD (FORMERLY NEPRO LTD).
Regeneration and Local Services,Technical Services,Supplies and Services,338066,Services,05-Jan-2018,3382454-8033,"167,498.37",BLOOM PROCUREMENT SERVICES LTD (FORMERLY NEPRO LTD).
Regeneration and Local Services,Culture & Sport,Premises,145023,Cleaning and Domestic Supplies,05-Jan-2018,3382462-22SI2230799,"1,624.20",BRENNTAG UK LTD.
Children and Young Peoples Services,Head of Early Help Assessment and Safeguarding,Third Party Payments,425020,Rendered by Voluntary Organisations,05-Jan-2018,3382467-217/18,"2,590.00",BUTTERWICK LTD..
Children and Young Peoples Services,Head of Education,Third Party Payments,440999,Other Third Party Payments,05-Jan-2018,3382472-200,"3,567.24",CAPITAL 4 TRAINING LTD
Regeneration and Local Services,Direct Services,Supplies and Services,304221,Equipment and Materials,05-Jan-2018,3382474-482976,963.00,CARRS BILLINGTON AGRICULTURE.
Regeneration and Local Services,Direct Services,Supplies and Services,304221,Equipment and Materials,05-Jan-2018,3382477-3338,679.27,CATHEDRAL LOCK & SAFE SERVICES LTD.
Regeneration and Local Services,Direct Services,Third Party Payments,430100,Rendered by Private Contractors,05-Jan-2018,3382477-3580,"1,485.24",CATHEDRAL LOCK & SAFE SERVICES LTD.
Regeneration and Local Services,Direct Services,Third Party Payments,430100,Rendered by Private Contractors,05-Jan-2018,3382477-3581,"2,029.48",CATHEDRAL LOCK & SAFE SERVICES LTD.
Regeneration and Local Services,Direct Services,Third Party Payments,430100,Rendered by Private Contractors,05-Jan-2018,3382479-294,"2,160.30",CEILINGS DIRECT LTD.
Children and Young Peoples Services,Head of Looked After Provision Permanence and Care Leavers,Third Party Payments,440038,Other Third Party Payments,05-Jan-2018,3382481-80026,"3,789.84",CENTREPOINT SOHO LTD.
Children and Young Peoples Services,Head of Looked After Provision Permanence and Care Leavers,Third Party Payments,440039,Other Third Party Payments,05-Jan-2018,3382481-80025,"3,789.84",CENTREPOINT SOHO LTD.
Children and Young Peoples Services,Head of Looked After Provision Permanence and Care Leavers,Third Party Payments,440039,Other Third Party Payments,05-Jan-2018,3382481-80027,733.52,CENTREPOINT SOHO LTD.
Regeneration and Local Services,Direct Services,Construction Work,908105,Construction work,05-Jan-2018,3382485-193311,"3,675.00",CHEVIN FLEET SOLUTIONS LTD.
Children and Young Peoples Services,Head of Looked After Provision Permanence and Care Leavers,Third Party Payments,440039,Other Third Party Payments,05-Jan-2018,3382488-1708,700.00,CITY OF SUNDERLAND YMCA LTD.
Adult and Health Services,Head of Adults,Third Party Payments,478151,Purchase of Care,05-Jan-2018,3382492-421R128752,"6,984.56",COMMUNITY INTEGRATED CARE LTD.
Adult and Health Services,Head of Adults,Third Party Payments,478151,Purchase of Care,05-Jan-2018,3382492-421R131931,587.04,COMMUNITY INTEGRATED CARE LTD.
Children and Young Peoples Services,Head of Education,Third Party Payments,440999,Other Third Party Payments,05-Jan-2018,3382499-17/18134,"1,155.96",CORNFORTH PARTNERSHIP.
Children and Young Peoples Services,Head of Education,Third Party Payments,440999,Other Third Party Payments,05-Jan-2018,3382499-17/18135,"5,144.04",CORNFORTH PARTNERSHIP.
Regeneration and Local Services,Direct Services,Third Party Payments,460305,Contract Payments,05-Jan-2018,3382490-3921,"1,260.00",CO-WHEELS CAR CLUB CIC.
Regeneration and Local Services,Direct Services,Third Party Payments,460305,Contract Payments,05-Jan-2018,3382490-4002,"1,260.00",CO-WHEELS CAR CLUB CIC.
Resources,Digital and Customer Services,Stock,926900,Stock in hand-Inventory system,05-Jan-2018,3382519-7402407073,"1,744.54",DELL COMPUTER CORPORATION LTD.
Children and Young Peoples Services,Head of Looked After Provision Permanence and Care Leavers,Third Party Payments,425021,Rendered by Voluntary Organisations,05-Jan-2018,3382531-MP008,"13,285.71",DUTY OF CARE LTD.
Children and Young Peoples Services,Head of Looked After Provision Permanence and Care Leavers,Employees,080025,Agency Staff,05-Jan-2018,3382533-0000042142,675.00,EAST DURHAM COLLEGE.
Regeneration and Local Services,Technical Services,Supplies and Services,304221,Equipment and Materials,05-Jan-2018,3382547-1712\104,636.78,EPPLETON QUARRY PRODUCTS LTD.
Adult and Health Services,Central/Other,Supplies and Services,338066,Services,05-Jan-2018,3382549-GB10100140079,"7,500.00",ERNST & YOUNG LLP.
Regeneration and Local Services,Culture & Sport,Supplies and Services,338047,Services,05-Jan-2018,3382551-13-D-BISHOP,"1,720.32",EVERY CLOUD ENTERTAINMENTS LTD.
Adult and Health Services,Head of Adults,Third Party Payments,478101,Purchase of Care,05-Jan-2018,3382564-385,"22,000.00",FOREVER CARE.
Adult and Health Services,Head of Adults,Third Party Payments,478101,Purchase of Care,05-Jan-2018,3382564-386,"14,000.00",FOREVER CARE.
Children and Young Peoples Services,Head of Looked After Provision Permanence and Care Leavers,Third Party Payments,440038,Other Third Party Payments,05-Jan-2018,3382564-376,"22,000.00",FOREVER CARE.
Transformation and Partnerships,Partnerships & Community Engagement Div.,Transfer Payments,525030,Other,05-Jan-2018,3382567-VOUCHER17AB-GAMP009,"20,000.00",FOUNDATION OF LIGHT.
Children and Young Peoples Services,Head of Early Help Assessment and Safeguarding,Third Party Payments,486022,Service Level Agreements,05-Jan-2018,3382572-7128,686.50,FSO FLEXIBLE SUPPORT OPTIONS UK (DOMICILARY) LTD.
Regeneration and Local Services,Culture & Sport,Supplies and Services,304357,Equipment and Materials,05-Jan-2018,3382575-DCC011017QUERY,"2,783.28",GAP GROUP LTD.
Regeneration and Local Services,Culture & Sport,Supplies and Services,304357,Equipment and Materials,05-Jan-2018,3382575-DCC081017QUERY,"4,578.26",GAP GROUP LTD.
Regeneration and Local Services,Culture & Sport,Supplies and Services,304357,Equipment and Materials,05-Jan-2018,3382575-DCC240917QUERY,714.00,GAP GROUP LTD.
Regeneration and Local Services,Technical Services,Supplies and Services,304357,Equipment and Materials,05-Jan-2018,3382576-DCC151017QUERY,"2,932.00",GAP GROUP LTD.
Regeneration and Local Services,Technical Services,Supplies and Services,304357,Equipment and Materials,05-Jan-2018,3382576-DCC221017QUERY,"2,219.51",GAP GROUP LTD.
Resources,Corporate Finance,Supplies and Services,338221,Services,05-Jan-2018,3382585-2809,"1,204.16",HEALTH ASSURED LTD.
Adult and Health Services,Head of Adults,Third Party Payments,478151,Purchase of Care,05-Jan-2018,3382588-HCL91,"2,444.36",HIGHLEA CARE LTD.
Adult and Health Services,Central/Other,Debtors,930133,Debtor IC+ Out of Hours - Home Care,05-Jan-2018,3382593-DOO45,"8,333.33",HOMECARE SUPPORT LTD T/A THE HUMAN SUPPORT GROUP.
Adult and Health Services,Commissioning inc Supporting People,Third Party Payments,479111,Purchase of Care,05-Jan-2018,3382593-CES033,"2,833.33",HOMECARE SUPPORT LTD T/A THE HUMAN SUPPORT GROUP.
Adult and Health Services,Commissioning inc Supporting People,Third Party Payments,479111,Purchase of Care,05-Jan-2018,3382593-CES034,"2,833.33",HOMECARE SUPPORT LTD T/A THE HUMAN SUPPORT GROUP.
Children and Young Peoples Services,Head of Looked After Provision Permanence and Care Leavers,Third Party Payments,425021,Rendered by Voluntary Organisations,05-Jan-2018,3382597-4370,"3,520.00",HOWARD HOUSE CARE LTD.
Regeneration and Local Services,Direct Services,Premises,106082,Centrally Controlled Rep and Maint,05-Jan-2018,3382599-R17244V1A,"5,370.00",HYGIENIC CLEANING COMPANY (UK) LTD.
Regeneration and Local Services,Direct Services,Premises,106082,Centrally Controlled Rep and Maint,05-Jan-2018,3382599-R17244V1B,"3,579.50",HYGIENIC CLEANING COMPANY (UK) LTD.
Regeneration and Local Services,Economic Development and Housing,Construction Work,908105,Construction work,05-Jan-2018,3382601-SIN420155,809.88,INFORMATION & DATA NETWORK SUPPLIES LTD (IDN).
Resources,Digital and Customer Services,Stock,926900,Stock in hand-Inventory system,05-Jan-2018,3382604-3676901,612.68,INSIGHT DIRECT (UK) LTD.
Regeneration and Local Services,Direct Services,Supplies and Services,304358,Equipment and Materials,05-Jan-2018,3382607-5305431,720.00,JA GILSON (AGRICULTURAL CONTRACTORS) LTD.
Regeneration and Local Services,Culture & Sport,Supplies and Services,338047,Services,05-Jan-2018,3382610-005,750.00,JANE BEEDLE (BAKER).
Regeneration and Local Services,Technical Services,Supplies and Services,304221,Equipment and Materials,05-Jan-2018,3382617-201806,"23,278.16",JOHN WADE (HAULAGE) LTD.
Regeneration and Local Services,Technical Services,Supplies and Services,304221,Equipment and Materials,05-Jan-2018,3382619-BI1245254,946.06,JT DOVE LTD.
Adult and Health Services,Commissioning inc Supporting People,Third Party Payments,470111,Purchase of Care,05-Jan-2018,3382628-RINVTP/00466586,"4,107.50",LEONARD CHESHIRE DISABILITY.
Regeneration and Local Services,Technical Services,Third Party Payments,430100,Rendered by Private Contractors,05-Jan-2018,3382634-IN008364,"1,080.00",LINBROOKE SERVICES LTD.
Regeneration and Local Services,Technical Services,Stock,926900,Stock in hand-Inventory system,05-Jan-2018,3382637-11460,"1,513.00",LOGIC STREET & PARK FURNITURE LTD.
Regeneration and Local Services,Technical Services,Stock,926900,Stock in hand-Inventory system,05-Jan-2018,3382637-11461,"1,146.00",LOGIC STREET & PARK FURNITURE LTD.
Regeneration and Local Services,Technical Services,Supplies and Services,304358,Equipment and Materials,05-Jan-2018,3382643-MS708,"1,576.80",M SPENCE SURFACING LTD.
Regeneration and Local Services,Technical Services,Supplies and Services,304358,Equipment and Materials,05-Jan-2018,3382643-MS709,843.75,M SPENCE SURFACING LTD.
Regeneration and Local Services,Technical Services,Supplies and Services,304358,Equipment and Materials,05-Jan-2018,3382643-MS710,590.63,M SPENCE SURFACING LTD.
Regeneration and Local Services,Culture & Sport,Supplies and Services,324001,Provisions,05-Jan-2018,3382659-904266713,"1,498.83",MOLSON COORS BREWING COMPANY (UK) LTD.
Adult and Health Services,Head of Adults,Transfer Payments,515201,Social Services Clients,05-Jan-2018,3382667-01087,"1,141.21",MY CHOICE HOMECARE LTD.
Children and Young Peoples Services,Head of Looked After Provision Permanence and Care Leavers,Third Party Payments,486046,Service Level Agreements,05-Jan-2018,3382668-41985,522.00,NATIONAL YOUTH ADVOCACY SERVICE.
Children and Young Peoples Services,Head of Looked After Provision Permanence and Care Leavers,Supplies and Services,336005,Advertising,05-Jan-2018,3382672-22222540,"1,383.84",NEWSQUEST (YORKSHIRE & NORTH EAST) LTD.
Children and Young Peoples Services,Head of Looked After Provision Permanence and Care Leavers,Supplies and Services,336005,Advertising,05-Jan-2018,3382672-22223677,770.00,NEWSQUEST (YORKSHIRE & NORTH EAST) LTD.
Regeneration and Local Services,Economic Development and Housing,Supplies and Services,384999,Miscellaneous Expenses,05-Jan-2018,3382675-004/2017,500.00,NORDIC VOICES.
Regeneration and Local Services,Economic Development and Housing,Premises,120009,Energy Costs,05-Jan-2018,3382682-NNO729XT,541.97,NPOWER.
Adult and Health Services,Head of Adults,Third Party Payments,478151,Purchase of Care,05-Jan-2018,3382685-31087,"1,973.70",OAKLEA TRUST.
Regeneration and Local Services,Direct Services,Transport,215005,Running Costs of Vehicles,05-Jan-2018,3382687-290202,"34,871.39",OIL NRG LTD.
Regeneration and Local Services,Direct Services,Transport,215005,Running Costs of Vehicles,05-Jan-2018,3382687-291435,"8,760.67",OIL NRG LTD.
Regeneration and Local Services,Direct Services,Transport,215005,Running Costs of Vehicles,05-Jan-2018,3382687-291437,"2,948.40",OIL NRG LTD.
Regeneration and Local Services,Direct Services,Transport,215005,Running Costs of Vehicles,05-Jan-2018,3382687-291572,"4,876.50",OIL NRG LTD.
Regeneration and Local Services,Direct Services,Transport,215005,Running Costs of Vehicles,05-Jan-2018,3382687-291801,"9,577.45",OIL NRG LTD.
Regeneration and Local Services,Direct Services,Transport,215005,Running Costs of Vehicles,05-Jan-2018,3382687-291975,"17,442.11",OIL NRG LTD.
Regeneration and Local Services,Direct Services,Transport,215022,Running Costs of Vehicles,05-Jan-2018,3382687-291436,"1,527.81",OIL NRG LTD.
Regeneration and Local Services,Direct Services,Transport,215022,Running Costs of Vehicles,05-Jan-2018,3382687-291438,"1,542.30",OIL NRG LTD.
Regeneration and Local Services,Technical Services,Stock,926900,Stock in hand-Inventory system,05-Jan-2018,3382698-XL215021,542.00,PARK ELECTRICAL DISTRIBUTORS LTD.
Regeneration and Local Services,Technical Services,Stock,926900,Stock in hand-Inventory system,05-Jan-2018,3382698-XL215066,"1,452.55",PARK ELECTRICAL DISTRIBUTORS LTD.
Regeneration and Local Services,Technical Services,Stock,926900,Stock in hand-Inventory system,05-Jan-2018,3382698-XL215092,"2,361.60",PARK ELECTRICAL DISTRIBUTORS LTD.
Regeneration and Local Services,Culture & Sport,Supplies and Services,338047,Services,05-Jan-2018,3382700-PD1718-05,585.78,PAUL DUNN.
Adult and Health Services,Head of Adults,Third Party Payments,470101,Purchase of Care,05-Jan-2018,3382704-34048,"2,720.50",PERCY HEDLEY FOUNDATION.
Adult and Health Services,Head of Adults,Third Party Payments,470101,Purchase of Care,05-Jan-2018,3382705-34054,"1,494.00",PERCY HEDLEY FOUNDATION.
Children and Young Peoples Services,Head of Early Help Assessment and Safeguarding,Third Party Payments,425020,Rendered by Voluntary Organisations,05-Jan-2018,3382704-32389,874.50,PERCY HEDLEY FOUNDATION.
Children and Young Peoples Services,Head of Early Help Assessment and Safeguarding,Third Party Payments,425020,Rendered by Voluntary Organisations,05-Jan-2018,3382705-34059,"2,623.50",PERCY HEDLEY FOUNDATION.
Children and Young Peoples Services,Head of Early Help Assessment and Safeguarding,Third Party Payments,425023,Rendered by Voluntary Organisations,05-Jan-2018,3382704-34053,"8,636.80",PERCY HEDLEY FOUNDATION.
Adult and Health Services,Public Health,Third Party Payments,460803,Contract Payments,05-Jan-2018,3382712-15746/18,"25,000.00",PIONEERING CARE PARTNERSHIP.
Regeneration and Local Services,Transport and Contracted Services,Construction Work,908105,Construction work,05-Jan-2018,3382717-149283,"1,355.00",PREMIER TRAFFIC MANAGEMENT LTD.
Regeneration and Local Services,Transport and Contracted Services,Construction Work,908105,Construction work,05-Jan-2018,3382717-149284,961.00,PREMIER TRAFFIC MANAGEMENT LTD.
Dedicated Schools Grant,Dedicated Schools Grant,Employees,080025,Agency Staff,05-Jan-2018,3382720-51239984,566.00,PROTOCOL EDUCATION LTD.
Adult and Health Services,Public Health,Premises,145009,Cleaning and Domestic Supplies,05-Jan-2018,3382721-20396,"1,215.00",QUALITY CLEANING SERVICES (NORTHERN) LTD.
Adult and Health Services,Head of Adults,Transfer Payments,515201,Social Services Clients,05-Jan-2018,3382624-CAS-01-2018-004,"6,174.40",REDACTED - PAYMENT TO INDIVIDUAL
Resources,Digital and Customer Services,Supplies and Services,342033,Computers and Communications,05-Jan-2018,3382728-SIN050917,"2,100.00",REDWAY NETWORKS LTD.
Adult and Health Services,Head of Adults,Third Party Payments,470101,Purchase of Care,05-Jan-2018,3382736-IN001130,"16,899.03",S/C 202741 CAMBIAN INTERACT CARE SERVICES LTD.
Children and Young Peoples Services,Head of Looked After Provision Permanence and Care Leavers,Third Party Payments,425021,Rendered by Voluntary Organisations,05-Jan-2018,3382736-IN001131,"19,660.51",S/C 202741 CAMBIAN INTERACT CARE SERVICES LTD.
Regeneration and Local Services,Direct Services,Supplies and Services,338078,Services,05-Jan-2018,3382738-8002,"1,628.00",SAFEGUARD SECURITY (NE) LTD.
Children and Young Peoples Services,Head of Education,Transfer Payments,510026,School Children,05-Jan-2018,3382746-3314,"1,285.20",SEAHAM EASTLEA & DISTRICT COMMUNITY ASSOCIATION.
Children and Young Peoples Services,Head of Education,Transfer Payments,510026,School Children,05-Jan-2018,3382746-3315,"1,285.20",SEAHAM EASTLEA & DISTRICT COMMUNITY ASSOCIATION.
Children and Young Peoples Services,Head of Education,Transfer Payments,510026,School Children,05-Jan-2018,3382746-3316,"1,285.20",SEAHAM EASTLEA & DISTRICT COMMUNITY ASSOCIATION.
Regeneration and Local Services,Technical Services,Stock,926900,Stock in hand-Inventory system,05-Jan-2018,3382757-191328,"1,184.40",SNAPFAST.
Regeneration and Local Services,Technical Services,Stock,926900,Stock in hand-Inventory system,05-Jan-2018,3382757-191330,"2,696.40",SNAPFAST.
Dedicated Schools Grant,Dedicated Schools Grant,Supplies and Services,384199,Miscellaneous Expenses,05-Jan-2018,3382761-98612,"2,385.00",SPEECH LINK MULTIMEDIA LTD.
Transformation and Partnerships,Partnerships & Community Engagement Div.,Cap Exp on Grants & Other Financial Assistance (REFCUS),918004,Contributions to other bodies,05-Jan-2018,3382762-VOUCHER17AB-SPEN003,"9,030.00",SPENNYMOOR YOUTH & COMMUNITY ASSOCIATION.
Regeneration and Local Services,Technical Services,Third Party Payments,430100,Rendered by Private Contractors,05-Jan-2018,3382768-9275,"2,390.45",STEELCRAFT LTD.
Children and Young Peoples Services,Head of Looked After Provision Permanence and Care Leavers,Employees,080025,Agency Staff,05-Jan-2018,3382780-2127502,"1,584.00",TEACHING PERSONNEL LTD.
Children and Young Peoples Services,Head of Looked After Provision Permanence and Care Leavers,Third Party Payments,486044,Service Level Agreements,05-Jan-2018,3382782-4810011554,"4,039.67",TEES ESK & WEAR VALLEYS NHS FOUNDATION TRUST.
Adult and Health Services,Commissioning inc Supporting People,Third Party Payments,479102,Purchase of Care,05-Jan-2018,3382786-34887,"3,955.00",THE APPROPRIATE ADULT SERVICE LTD.
Adult and Health Services,Commissioning inc Supporting People,Third Party Payments,473111,Purchase of Care,05-Jan-2018,3382792-0033,"6,281.00",THE HUB OF WISHES.
Regeneration and Local Services,Culture & Sport,Supplies and Services,338047,Services,05-Jan-2018,3382793-LW/25889,663.47,THE NARROW ROAD COMPANY.
Dedicated Schools Grant,Dedicated Schools Grant,Third Party Payments,440080,Other Third Party Payments,05-Jan-2018,3382794-6748,"3,104.45",THE ROYAL NATIONAL COLLEGE FOR THE BLIND.
Regeneration and Local Services,Direct Services,Supplies and Services,304221,Equipment and Materials,05-Jan-2018,3382799-SIP-191189,685.92,THYSSENKRUPP ENCASA A DIVISION OF THYSSENKRUPP ACCESS LTD.
Children and Young Peoples Services,Head of Education,Supplies and Services,338035,Services,05-Jan-2018,3382805-1-897549381,"2,520.00",TRINITY COLLEGE LONDON.
Regeneration and Local Services,Technical Services,Supplies and Services,304221,Equipment and Materials,05-Jan-2018,3382811-181565,"1,114.19",TYNEDALE ROADSTONE LTD.
Regeneration and Local Services,Technical Services,Supplies and Services,304221,Equipment and Materials,05-Jan-2018,3382811-181566,678.02,TYNEDALE ROADSTONE LTD.
Regeneration and Local Services,Technical Services,Supplies and Services,304221,Equipment and Materials,05-Jan-2018,3382811-181567,631.14,TYNEDALE ROADSTONE LTD.
Regeneration and Local Services,Technical Services,Supplies and Services,304221,Equipment and Materials,05-Jan-2018,3382811-181568,814.40,TYNEDALE ROADSTONE LTD.
Regeneration and Local Services,Technical Services,Supplies and Services,304221,Equipment and Materials,05-Jan-2018,3382811-181569,758.72,TYNEDALE ROADSTONE LTD.
Regeneration and Local Services,Technical Services,Third Party Payments,430127,Rendered by Private Contractors,05-Jan-2018,3382821-44446,"6,224.00",W MARLEY AGRICULTURAL CONTRACTORS LTD.
Regeneration and Local Services,Technical Services,Stock,926900,Stock in hand-Inventory system,05-Jan-2018,3382828-48533004,627.00,WOLSELEY UK LTD.
Regeneration and Local Services,Direct Services,Third Party Payments,430100,Rendered by Private Contractors,08-Jan-2018,3382839-IN3907,"9,110.00",ACROL AIR CONDITIONING CO LTD.
Regeneration and Local Services,Technical Services,Employees,080025,Agency Staff,08-Jan-2018,3382846-28331859,"1,989.25",AECOM LTD.
Resources,Legal & Democratic Services,Supplies and Services,338057,Services,08-Jan-2018,3382850-0000029055,"1,970.00",ALERE FORENSICS.
Resources,Legal & Democratic Services,Supplies and Services,338057,Services,08-Jan-2018,3382850-0000029076,990.00,ALERE FORENSICS.
Adult and Health Services,Commissioning inc Supporting People,Premises,145050,Cleaning and Domestic Supplies,08-Jan-2018,3382855-66711,"11,900.78",ANLABY OFFICE CLEANING SERVICES LTD.
Resources,Digital and Customer Services,Supplies and Services,304245,Equipment and Materials,08-Jan-2018,3382857-7381448,808.00,ANTALIS LTD.
Regeneration and Local Services,Direct Services,Third Party Payments,430100,Rendered by Private Contractors,08-Jan-2018,3382868-1741,"2,108.00",AWR ROOFING & ALUMIN RAINWATER SYSTEMS LTD.
Regeneration and Local Services,Technical Services,Stock,926900,Stock in hand-Inventory system,08-Jan-2018,3382869-INV119132,556.50,AZTEC CHEMICALS LTD.
Children and Young Peoples Services,Head of Looked After Provision Permanence and Care Leavers,Supplies and Services,308013,Furniture,08-Jan-2018,3382873-6998,626.40,BARRONS CONTRACTS.
Regeneration and Local Services,Technical Services,Third Party Payments,430100,Rendered by Private Contractors,08-Jan-2018,3382875-1733009,"23,984.60",BCE NORTHERN LTD.
Regeneration and Local Services,Economic Development and Housing,Cap Exp on Grants & Other Financial Assistance (REFCUS),918004,Contributions to other bodies,08-Jan-2018,3382878-RED-01-2018-013,"18,113.00",BENJAMIN JED DOUGLASS COLLINS T/A TINKERDOG COMPUTERS.
Regeneration and Local Services,Culture & Sport,Supplies and Services,324117,Provisions,08-Jan-2018,3382881-77971761,903.42,BIDFOOD.
Regeneration and Local Services,Direct Services,Supplies and Services,304259,Equipment and Materials,08-Jan-2018,3382892-180170,510.00,BRAMBLEDOWN LANDSCAPE SERVICES LTD.
Children and Young Peoples Services,Head of Education,Transfer Payments,510026,School Children,08-Jan-2018,3382898-WWDOB4/10/13DECEMBER142017,892.50,BUDDIES CHILDCARE CENTRE.
Children and Young Peoples Services,Head of Education,Third Party Payments,440999,Other Third Party Payments,08-Jan-2018,3382905-201,524.67,CAPITAL 4 TRAINING LTD
Adult and Health Services,Head of Adults,Supplies and Services,338366,Services,08-Jan-2018,3382906-46182,"1,447.00",CARE ABILITY.
Adult and Health Services,Head of Adults,Supplies and Services,338366,Services,08-Jan-2018,3382906-46183,"1,624.70",CARE ABILITY.
Adult and Health Services,Head of Adults,Supplies and Services,338366,Services,08-Jan-2018,3382906-46184,"1,177.00",CARE ABILITY.
Adult and Health Services,Head of Adults,Supplies and Services,338366,Services,08-Jan-2018,3382906-46213,944.70,CARE ABILITY.
Regeneration and Local Services,Direct Services,Supplies and Services,304221,Equipment and Materials,08-Jan-2018,3382907-851703067,"3,972.00",CARLISLE CONSTRUCTION MATERIALS LTD.
Regeneration and Local Services,Direct Services,Third Party Payments,430100,Rendered by Private Contractors,08-Jan-2018,3382919-8118751,"1,920.00",CLOVER CONTROLS LTD.
Regeneration and Local Services,Economic Development and Housing,Premises,120021,Energy Costs,08-Jan-2018,3382929-12673211,985.68,CORONA ENERGY RETAIL 2 LTD.
Regeneration and Local Services,Economic Development and Housing,Premises,120021,Energy Costs,08-Jan-2018,3382929-12673310,"1,421.86",CORONA ENERGY RETAIL 2 LTD.
Regeneration and Local Services,Economic Development and Housing,Premises,120021,Energy Costs,08-Jan-2018,3382929-12674097,803.73,CORONA ENERGY RETAIL 2 LTD.
Regeneration and Local Services,Economic Development and Housing,Premises,120021,Energy Costs,08-Jan-2018,3382929-12674522,"1,023.09",CORONA ENERGY RETAIL 2 LTD.
Adult and Health Services,Commissioning inc Supporting People,Supplies and Services,338089,Services,08-Jan-2018,3382936-3041634,"1,850.00",DAC BEACHCROFT LLP.
Regeneration and Local Services,Culture & Sport,Supplies and Services,338047,Services,08-Jan-2018,3382939-CBA00086I,"3,250.00",DEBORAH MCKENNA LTD (ON BEHALF OF CHRIS BAVIN).
Children and Young Peoples Services,Head of Looked After Provision Permanence and Care Leavers,Supplies and Services,342033,Computers and Communications,08-Jan-2018,3382940-7402410004,833.49,DELL COMPUTER CORPORATION LTD.
Resources,Digital and Customer Services,Supplies and Services,342033,Computers and Communications,08-Jan-2018,3382940-7402407897,801.00,DELL COMPUTER CORPORATION LTD.
Resources,Legal & Democratic Services,Supplies and Services,338042,Services,08-Jan-2018,3382942-334056/INVDEC61,"1,080.00",DERE STREET BARRISTERS.
Resources,Legal & Democratic Services,Supplies and Services,338042,Services,08-Jan-2018,3382942-335760/INVSW552,660.00,DERE STREET BARRISTERS.
Dedicated Schools Grant,Dedicated Schools Grant,Third Party Payments,440080,Other Third Party Payments,08-Jan-2018,3382943-60000666,"25,000.00",DERWENTSIDE COLLEGE.
Regeneration and Local Services,Spatial Policy Planning Assets & Environment,Supplies and Services,338066,Services,08-Jan-2018,3382945-1639,"9,710.00",DIFFERENTIA LTD.
Regeneration and Local Services,Technical Services,Supplies and Services,304221,Equipment and Materials,08-Jan-2018,3382948-159282,"19,883.52",DUNHOUSE QUARRY CO LTD.
Transformation and Partnerships,Partnerships & Community Engagement Div.,Supplies and Services,384086,Miscellaneous Expenses,08-Jan-2018,3382950-VOUCHER17NB-DCTY006,"4,952.00",DURHAM CHRISTIAN PARTNERSHIP.
Adult and Health Services,EnvironmentHealth & Consumer Protection,Supplies and Services,352001,Conference Expenses,08-Jan-2018,3382954-20016972,"1,000.00",DURHAM POLICE & CRIME COMMISSIONER.
Regeneration and Local Services,Direct Services,Supplies and Services,372009,Subscriptions,08-Jan-2018,3382963-2018/940236,"2,557.62",ECA.
Regeneration and Local Services,Direct Services,Supplies and Services,304221,Equipment and Materials,08-Jan-2018,3382964-059-216521,"1,075.49",EDMUNDSON ELECTRICAL LTD.
Children and Young Peoples Services,Head of Education,Supplies and Services,372009,Subscriptions,08-Jan-2018,3382971-EDU16697,"4,999.00",EDUFOCUS LTD.
Regeneration and Local Services,Spatial Policy Planning Assets & Environment,Supplies and Services,338027,Services,08-Jan-2018,3382976-ETH-00839,"3,826.00",ETHOS ENVIRONMENTAL PLANNING LTD.
Regeneration and Local Services,Direct Services,Supplies and Services,304221,Equipment and Materials,08-Jan-2018,3382985-1712-168728,"2,716.08",FLAME HEATING SPARES LTD.
Regeneration and Local Services,Culture & Sport,Premises,145023,Cleaning and Domestic Supplies,08-Jan-2018,3383002-06/713543,736.65,GREENHAM TRADING LTD.
Regeneration and Local Services,Technical Services,Stock,926900,Stock in hand-Inventory system,08-Jan-2018,3383002-06/714371,906.36,GREENHAM TRADING LTD.
Regeneration and Local Services,Culture & Sport,Supplies and Services,338047,Services,08-Jan-2018,3383009-00903RDINSTALL,562.50,HEATHER ROBERTSON.
Regeneration and Local Services,Technical Services,Third Party Payments,430100,Rendered by Private Contractors,08-Jan-2018,3383010-2727,"14,001.37",HIGHWAY CONSTRUCTION SERVICES LTD.
Regeneration and Local Services,Technical Services,Third Party Payments,430100,Rendered by Private Contractors,08-Jan-2018,3383010-2728,"17,937.68",HIGHWAY CONSTRUCTION SERVICES LTD.
Regeneration and Local Services,Direct Services,Supplies and Services,304221,Equipment and Materials,08-Jan-2018,3383014-0000014022,"2,329.60",HOLME DODSWORTH (ROCK SALT) LTD.
Regeneration and Local Services,Direct Services,Supplies and Services,304259,Equipment and Materials,08-Jan-2018,3383014-0000014017,"2,329.60",HOLME DODSWORTH (ROCK SALT) LTD.
Adult and Health Services,Central/Other,Debtors,930133,Debtor IC+ Out of Hours - Home Care,08-Jan-2018,3383015-DOO46,"8,333.33",HOMECARE SUPPORT LTD T/A THE HUMAN SUPPORT GROUP.
Regeneration and Local Services,Direct Services,Third Party Payments,430113,Rendered by Private Contractors,08-Jan-2018,3383019-W180927,"286,288.47",HW MARTIN WASTE LTD.
Resources,Digital and Customer Services,Stock,926900,Stock in hand-Inventory system,08-Jan-2018,3383021-3681335,"1,028.30",INSIGHT DIRECT (UK) LTD.
Transformation and Partnerships,Comms & Information Management,Supplies and Services,384540,Miscellaneous Expenses,08-Jan-2018,3383024-12984,"4,572.37",ISAPPHIRE LTD.
Children and Young Peoples Services,Head of Education,Supplies and Services,324500,Provisions,08-Jan-2018,3383026-66410,526.50,J MORAN LTD T/A CAFFE VINCI.
Regeneration and Local Services,Culture & Sport,Supplies and Services,324117,Provisions,08-Jan-2018,3383026-66300,537.15,J MORAN LTD T/A CAFFE VINCI.
Regeneration and Local Services,Direct Services,Supplies and Services,304221,Equipment and Materials,08-Jan-2018,3383032-0215/0122677,577.50,JEWSON LTD.
Transformation and Partnerships,Comms & Information Management,Supplies and Services,336005,Advertising,08-Jan-2018,3383036-4529387,"4,176.25",JOHNSTON PUBLISHING LTD.
Regeneration and Local Services,Direct Services,Supplies and Services,304221,Equipment and Materials,08-Jan-2018,3383039-G0I682/D,"24,555.49",JT DOVE LTD.
Regeneration and Local Services,Direct Services,Supplies and Services,304221,Equipment and Materials,08-Jan-2018,3383039-G0I689/D,737.84,JT DOVE LTD.
Regeneration and Local Services,Technical Services,Supplies and Services,304221,Equipment and Materials,08-Jan-2018,3383039-GOI700/D,"7,281.96",JT DOVE LTD.
Regeneration and Local Services,Technical Services,Supplies and Services,304221,Equipment and Materials,08-Jan-2018,3383039-GOI701/D,"5,760.00",JT DOVE LTD.
Regeneration and Local Services,Spatial Policy Planning Assets & Environment,Supplies and Services,338066,Services,08-Jan-2018,3383041-881,"12,783.50",JW BAINBRIDGE CONTRACTORS LTD.
Regeneration and Local Services,Spatial Policy Planning Assets & Environment,Supplies and Services,338066,Services,08-Jan-2018,3383041-882,"9,430.00",JW BAINBRIDGE CONTRACTORS LTD.
Regeneration and Local Services,Technical Services,Supplies and Services,342051,Computers and Communications,08-Jan-2018,3383045-2018431,"4,200.50",KEYSOFT SOLUTIONS LTD.
Adult and Health Services,Commissioning inc Supporting People,Third Party Payments,470111,Purchase of Care,08-Jan-2018,3383058-RINVTP/00463854,"3,975.00",LEONARD CHESHIRE DISABILITY.
Adult and Health Services,Commissioning inc Supporting People,Third Party Payments,470111,Purchase of Care,08-Jan-2018,3383058-RINVTP/00466571,"4,107.50",LEONARD CHESHIRE DISABILITY.
Regeneration and Local Services,Technical Services,Supplies and Services,304221,Equipment and Materials,08-Jan-2018,3383060-911363,858.00,LIGHTING & ILLUMINATION TECHNOLOGY EXPERIENCE LTD (LITE).
Children and Young Peoples Services,Head of Looked After Provision Permanence and Care Leavers,Supplies and Services,308011,Furniture,08-Jan-2018,3383061-2753,"1,422.00",LINK DESIGN LTD.
Transformation and Partnerships,Partnerships & Community Engagement Div.,Supplies and Services,384086,Miscellaneous Expenses,08-Jan-2018,3383063-BELA02-17WILA03-17,600.00,LITTLE TREASURES.
Regeneration and Local Services,Direct Services,Supplies and Services,304221,Equipment and Materials,08-Jan-2018,3383064-4087715,"1,451.00",LONDON GENERAL SALES LTD.
Resources,Financial Services,Supplies and Services,384180,Miscellaneous Expenses,08-Jan-2018,3383065-0106527,"5,557.15",LOOMIS UK LTD.
Dedicated Schools Grant,Dedicated Schools Grant,Supplies and Services,304259,Equipment and Materials,08-Jan-2018,3383067-INV-1598,"1,054.00",LYNCH HEALTHCARE LTD.
Regeneration and Local Services,Technical Services,Third Party Payments,430127,Rendered by Private Contractors,08-Jan-2018,3383075-5502,"2,184.00",MAKEPEACE MOTORS.
Regeneration and Local Services,Technical Services,Third Party Payments,430100,Rendered by Private Contractors,08-Jan-2018,3383076-9009062378,"4,800.00",MAMMOET UK LTD.
Regeneration and Local Services,Technical Services,Third Party Payments,430100,Rendered by Private Contractors,08-Jan-2018,3383076-9009062389,"3,901.00",MAMMOET UK LTD.
Regeneration and Local Services,Technical Services,Third Party Payments,430100,Rendered by Private Contractors,08-Jan-2018,3383076-9009062731,"2,400.00",MAMMOET UK LTD.
Regeneration and Local Services,Technical Services,Income,720299,Fees and Charges,08-Jan-2018,3383078-NEI-EXP-12-2017-014,"2,032.48",MANTERFIELD DRILLING LTD.
Regeneration and Local Services,Spatial Policy Planning Assets & Environment,Supplies and Services,304337,Equipment and Materials,08-Jan-2018,3383083-153,611.30,MARTIN J ROGERS LTD.
Regeneration and Local Services,Direct Services,Supplies and Services,304221,Equipment and Materials,08-Jan-2018,3383088-0000072128,"1,381.17",MIKROFILL SYSTEMS LTD.
Regeneration and Local Services,Direct Services,Supplies and Services,304221,Equipment and Materials,08-Jan-2018,3383088-0000073793,"1,438.71",MIKROFILL SYSTEMS LTD.
Regeneration and Local Services,Culture & Sport,Supplies and Services,324117,Provisions,08-Jan-2018,3383101-INV-2017256,914.40,NATURAL NUTRIENTS UK LTD.
Regeneration and Local Services,Technical Services,Supplies and Services,336005,Advertising,08-Jan-2018,3383104-22979396,737.59,NEWSQUEST (YORKSHIRE & NORTH EAST) LTD.
Regeneration and Local Services,Technical Services,Third Party Payments,430100,Rendered by Private Contractors,08-Jan-2018,3383114-DI20284634,"3,021.28",NORTHERN POWERGRID (NORTHEAST) LTD.
Dedicated Schools Grant,Dedicated Schools Grant,Third Party Payments,410037,Rendered by Other Local Authorities,08-Jan-2018,3383116-2009/300018,"1,558.63",NORTHUMBERLAND COUNTY COUNCIL.
Regeneration and Local Services,Culture & Sport,Premises,145050,Cleaning and Domestic Supplies,08-Jan-2018,3383122-CN19607480,736.22,OCS GROUP UK LTD T/A CANNON HYGIENE.
Children and Young Peoples Services,Head of Education,Supplies and Services,384199,Miscellaneous Expenses,08-Jan-2018,3383130-2017/18-64,500.00,ORCHESTRAS LIVE.
Children and Young Peoples Services,Head of Education,Construction Work,908105,Construction work,08-Jan-2018,3383132-INSDEMOLITIONSWIMMINGPOOL,"1,677.75",OWEN PUGH CONTRACTS LTD (IN ADMINISTRATION).
Regeneration and Local Services,Direct Services,Supplies and Services,304221,Equipment and Materials,08-Jan-2018,3383135-XL215291,765.00,PARK ELECTRICAL DISTRIBUTORS LTD.
Resources,Legal & Democratic Services,Supplies and Services,338057,Services,08-Jan-2018,3383139-PPSLPMSOCT-DEC2017,"4,056.40",PATEL PATH SERVICES LTD.
Adult and Health Services,Head of Adults,Third Party Payments,470101,Purchase of Care,08-Jan-2018,3383143-34103,"148,598.47",PERCY HEDLEY FOUNDATION.
Regeneration and Local Services,Direct Services,Supplies and Services,304259,Equipment and Materials,08-Jan-2018,3383144-71725,514.50,PETERLEE FIRE CO LTD.
Adult and Health Services,Head of Adults,Third Party Payments,470101,Purchase of Care,08-Jan-2018,3383152-SIN035788,"21,815.00",PORTLAND COLLEGE.
Regeneration and Local Services,Technical Services,Employees,040149,Recruitment Instruction and Training,08-Jan-2018,3383155-24234,795.00,PPL TRAINING LTD.
Resources,Digital and Customer Services,Supplies and Services,304245,Equipment and Materials,08-Jan-2018,3383156-8929675,545.94,PREMIER PAPER GROUP LTD.
Resources,Digital and Customer Services,Supplies and Services,304245,Equipment and Materials,08-Jan-2018,3383156-9050342,543.53,PREMIER PAPER GROUP LTD.
Adult and Health Services,EnvironmentHealth & Consumer Protection,Third Party Payments,430100,Rendered by Private Contractors,08-Jan-2018,3383161-IN-17-WP-001838,"1,495.00",PUBLIC ANALYST SCIENTIFIC SERVICES LTD.
Regeneration and Local Services,Culture & Sport,Supplies and Services,338047,Services,08-Jan-2018,3383164-11NOV2017,750.00,R & J EDMUNDSON T/A JOHN WRIGHTSON BAND.
Children and Young Peoples Services,Head of Looked After Provision Permanence and Care Leavers,Supplies and Services,364305,Grants to Voluntary Organisations,08-Jan-2018,3383095-CAS-01-2018-008,617.27,REDACTED - PAYMENT TO INDIVIDUAL
Regeneration and Local Services,Direct Services,Supplies and Services,304221,Equipment and Materials,08-Jan-2018,3383172-45541,650.00,RJ UTILITY SERVICES LTD.
Regeneration and Local Services,Direct Services,Third Party Payments,430100,Rendered by Private Contractors,08-Jan-2018,3383172-45540,600.00,RJ UTILITY SERVICES LTD.
Regeneration and Local Services,Spatial Policy Planning Assets & Environment,Supplies and Services,338066,Services,08-Jan-2018,3383190-1008.,"1,000.00",SIMON LEES T/A COUNTRYSIDE TRAINING PARTNERSHIP.
Regeneration and Local Services,Technical Services,Stock,926900,Stock in hand-Inventory system,08-Jan-2018,3383195-191362,"1,085.04",SNAPFAST.
Regeneration and Local Services,Direct Services,Transport,230710,Contract Hire,08-Jan-2018,3383196-105/17/24857,"5,145.00",SOCIETE GENERALE EQUIPMENT FINANCE LTD.
Regeneration and Local Services,Direct Services,Transport,230710,Contract Hire,08-Jan-2018,3383196-105/17/24909,"12,750.00",SOCIETE GENERALE EQUIPMENT FINANCE LTD.
Adult and Health Services,Head of Adults,Supplies and Services,384199,Miscellaneous Expenses,08-Jan-2018,3383205-INV33913,680.85,ST ANNES COMMUNITY SERVICES.
Children and Young Peoples Services,Head of Early Help Assessment and Safeguarding,Third Party Payments,425020,Rendered by Voluntary Organisations,08-Jan-2018,3383207-6571,"4,176.00",ST OSWALD`S HOSPICE.
Regeneration and Local Services,Culture & Sport,Supplies and Services,304259,Equipment and Materials,08-Jan-2018,3383208-00338089,"1,101.52",STAGE ELECTRICS.
Dedicated Schools Grant,Dedicated Schools Grant,Creditors,952011,Creditors-Government grants,08-Jan-2018,3383209-CAS-01-2018-010,"36,780.00",STANLEY LEARNING PARTNERSHIP.
Children and Young Peoples Services,Head of Looked After Provision Permanence and Care Leavers,Supplies and Services,338099,Services,08-Jan-2018,3383211-15/12/17,910.00,STEVEN SINCLAIR T/A SINCLAIR MECHANICAL SERVICES.
Regeneration and Local Services,Technical Services,Supplies and Services,304221,Equipment and Materials,08-Jan-2018,3383213-1616,741.00,SUPAMOLE DIRECTIONAL DRILLING SPECIALISTS.
Dedicated Schools Grant,Dedicated Schools Grant,Third Party Payments,425005,Rendered by Voluntary Organisations,08-Jan-2018,3383218-587,"1,422.00",TALBOT HOUSE SCHOOL.
Regeneration and Local Services,Technical Services,Supplies and Services,304221,Equipment and Materials,08-Jan-2018,3383219-9037388335,897.50,TARMAC TRADING LTD.
Regeneration and Local Services,Culture & Sport,Supplies and Services,304259,Equipment and Materials,08-Jan-2018,3383225-97926,800.00,TECHNICAL LAMP SUPPLIES UK LTD.
Children and Young Peoples Services,Head of Early Help Assessment and Safeguarding,Supplies and Services,384964,Miscellaneous Expenses,08-Jan-2018,3383228-INV20181699,"6,638.05",THE BIG WORD.
Regeneration and Local Services,Culture & Sport,Supplies and Services,338047,Services,08-Jan-2018,3383230-16DECEMBER2017,787.50,THE CRAZY KNIGHTS T/A BLINDED BY SOUND.
Regeneration and Local Services,Culture & Sport,Supplies and Services,338047,Services,08-Jan-2018,3383234-57721,"12,000.00",THEATRE HULLABALOO.
Regeneration and Local Services,Culture & Sport,Supplies and Services,338047,Services,08-Jan-2018,3383242-00021760,729.00,TRAFALGAR RELEASING LTD.
Regeneration and Local Services,Technical Services,Supplies and Services,304221,Equipment and Materials,08-Jan-2018,3383248-181334,800.00,TYNEDALE ROADSTONE LTD.
Regeneration and Local Services,Technical Services,Supplies and Services,304221,Equipment and Materials,08-Jan-2018,3383248-181341,"1,009.93",TYNEDALE ROADSTONE LTD.
Regeneration and Local Services,Technical Services,Supplies and Services,304221,Equipment and Materials,08-Jan-2018,3383248-181605,997.07,TYNEDALE ROADSTONE LTD.
Regeneration and Local Services,Technical Services,Supplies and Services,304221,Equipment and Materials,08-Jan-2018,3383248-181606,"1,115.12",TYNEDALE ROADSTONE LTD.
Regeneration and Local Services,Technical Services,Supplies and Services,304221,Equipment and Materials,08-Jan-2018,3383248-181607,687.32,TYNEDALE ROADSTONE LTD.
Regeneration and Local Services,Technical Services,Supplies and Services,304221,Equipment and Materials,08-Jan-2018,3383248-181608,799.04,TYNEDALE ROADSTONE LTD.
Regeneration and Local Services,Technical Services,Supplies and Services,304221,Equipment and Materials,08-Jan-2018,3383248-181609,697.67,TYNEDALE ROADSTONE LTD.
Regeneration and Local Services,Technical Services,Supplies and Services,304221,Equipment and Materials,08-Jan-2018,3383248-181610,798.08,TYNEDALE ROADSTONE LTD.
Regeneration and Local Services,Technical Services,Supplies and Services,304221,Equipment and Materials,08-Jan-2018,3383248-181611,992.00,TYNEDALE ROADSTONE LTD.
Regeneration and Local Services,Technical Services,Supplies and Services,304221,Equipment and Materials,08-Jan-2018,3383248-181660,"1,141.30",TYNEDALE ROADSTONE LTD.
Regeneration and Local Services,Technical Services,Supplies and Services,304221,Equipment and Materials,08-Jan-2018,3383248-181662,686.39,TYNEDALE ROADSTONE LTD.
Regeneration and Local Services,Technical Services,Supplies and Services,304221,Equipment and Materials,08-Jan-2018,3383248-181664,583.40,TYNEDALE ROADSTONE LTD.
Regeneration and Local Services,Technical Services,Supplies and Services,304221,Equipment and Materials,08-Jan-2018,3383248-181665,807.68,TYNEDALE ROADSTONE LTD.
Regeneration and Local Services,Technical Services,Supplies and Services,304221,Equipment and Materials,08-Jan-2018,3383248-181666,707.60,TYNEDALE ROADSTONE LTD.
Regeneration and Local Services,Technical Services,Supplies and Services,304221,Equipment and Materials,08-Jan-2018,3383248-181667,698.24,TYNEDALE ROADSTONE LTD.
Regeneration and Local Services,Technical Services,Supplies and Services,304221,Equipment and Materials,08-Jan-2018,3383248-181668,774.58,TYNEDALE ROADSTONE LTD.
Adult and Health Services,Public Health,Third Party Payments,460802,Contract Payments,08-Jan-2018,3383252-OP/P044991,904.00,UNIVERSITY HOSPITALS BIRMINGHAM NHSFT.
Regeneration and Local Services,Economic Development and Housing,Supplies and Services,384437,Miscellaneous Expenses,08-Jan-2018,3383253-1700343,"10,374.00",USHAW COLLEGE.
Adult and Health Services,EnvironmentHealth & Consumer Protection,Income,720330,Fees and Charges,08-Jan-2018,3383256-19512,"2,692.19",VIP SYSTEM LTD.
Regeneration and Local Services,Economic Development and Housing,Supplies and Services,384199,Miscellaneous Expenses,08-Jan-2018,3383258-LOSI34598,"1,870.00",VISIT BRITAIN (VISIT ENGLAND).
Regeneration and Local Services,Technical Services,Third Party Payments,430127,Rendered by Private Contractors,08-Jan-2018,3383259-44468,"1,681.00",W MARLEY AGRICULTURAL CONTRACTORS LTD.
Regeneration and Local Services,Direct Services,Vehicles Equipment Furniture and Fittings,912529,Purchase-equipment,08-Jan-2018,3383266-737378,"2,423.60",WICKSTEED LEISURE LTD.
Regeneration and Local Services,Direct Services,Transport,215995,Running Costs of Vehicles,09-Jan-2018,3384028-15758,"2,515.00",ACREBROAD T/A MHP COATINGS.
Resources,Legal & Democratic Services,Supplies and Services,332029,Printing Stationery and Gen Off Exps,09-Jan-2018,3384029-PSI0039101,"3,593.06",ADARE INSPIRED COMMUNICATIONS.
Regeneration and Local Services,Direct Services,Premises,108099,Service Repairs and Maintenance,09-Jan-2018,3384033-3882973,512.62,ANGEL SPRINGS LTD T/A WATERLOGIC.*
Regeneration and Local Services,Direct Services,Employees,040149,Recruitment Instruction and Training,09-Jan-2018,3384034-1718/1541,"1,029.80",APSE.
Regeneration and Local Services,Technical Services,Third Party Payments,460351,Contract Payments,09-Jan-2018,3384036-29097,"1,530.00",AQUAJET DRAIN CLEANING LTD.
Regeneration and Local Services,Technical Services,Third Party Payments,460351,Contract Payments,09-Jan-2018,3384036-29100,765.00,AQUAJET DRAIN CLEANING LTD.
Regeneration and Local Services,Technical Services,Construction Work,908105,Construction work,09-Jan-2018,3384038-MS1703023,603.24,ATG ACCESS LTD.
Regeneration and Local Services,Spatial Policy Planning Assets & Environment,Creditors,952146,Creditor-Section 106 agreement,09-Jan-2018,3384040-RED-12-2017-116,"1,375.49",AUCKLAND YOUTH & COMMUNITY ASSOCIATION.
Children and Young Peoples Services,Head of Education,Supplies and Services,338027,Services,09-Jan-2018,3384043-0000000082,700.00,BIDDICK ACADEMY.
Regeneration and Local Services,Transport and Contracted Services,Third Party Payments,460160,Contract Payments,09-Jan-2018,3384047-49719,718.00,BRITISH PARKING ASSOCIATION.
Regeneration and Local Services,Economic Development and Housing,Third Party Payments,460305,Contract Payments,09-Jan-2018,3384049-12055,"39,087.50",BUSINESS & ENTERPRISE COMMERCIAL LTD T/A BE GROUP.
Regeneration and Local Services,Direct Services,Third Party Payments,430100,Rendered by Private Contractors,09-Jan-2018,3384053-292,556.34,CEILINGS DIRECT LTD.
Regeneration and Local Services,Direct Services,Supplies and Services,304221,Equipment and Materials,09-Jan-2018,3384054-B502S,"4,106.00",CHARLETON FENCING.
Regeneration and Local Services,Spatial Policy Planning Assets & Environment,Creditors,952146,Creditor-Section 106 agreement,09-Jan-2018,3384056-RED-01-2018-043,"7,000.00",CHILTON TOWN COUNCIL.
Regeneration and Local Services,Economic Development and Housing,Supplies and Services,338035,Services,09-Jan-2018,3384058-804718877,695.50,CITY & GUILDS OF LONDON INSTITUTE.
Regeneration and Local Services,Technical Services,Premises,150015,Apportioned Exps of Operational Blds,09-Jan-2018,3384061-83093,903.54,CLEE HILL PLANT LTD.
Regeneration and Local Services,Technical Services,Premises,150015,Apportioned Exps of Operational Blds,09-Jan-2018,3384061-83094,903.54,CLEE HILL PLANT LTD.
Regeneration and Local Services,Technical Services,Premises,150015,Apportioned Exps of Operational Blds,09-Jan-2018,3384061-83095,903.54,CLEE HILL PLANT LTD.
Children and Young Peoples Services,Head of Education,Transfer Payments,510026,School Children,09-Jan-2018,3384062-DCC0007,950.40,CLEVER CLOGS DAY NURSERIES LTD.
Children and Young Peoples Services,Head of Looked After Provision Permanence and Care Leavers,Third Party Payments,425040,Rendered by Voluntary Organisations,09-Jan-2018,3384066-6947,"2,072.00",CORNERSTONE (NE) ADOPTION & FOSTERING SERVICE.
Children and Young Peoples Services,Head of Looked After Provision Permanence and Care Leavers,Third Party Payments,425040,Rendered by Voluntary Organisations,09-Jan-2018,3384066-6983,"2,520.00",CORNERSTONE (NE) ADOPTION & FOSTERING SERVICE.
Children and Young Peoples Services,Head of Looked After Provision Permanence and Care Leavers,Third Party Payments,425040,Rendered by Voluntary Organisations,09-Jan-2018,3384066-6993,"8,680.00",CORNERSTONE (NE) ADOPTION & FOSTERING SERVICE.
Children and Young Peoples Services,Head of Looked After Provision Permanence and Care Leavers,Third Party Payments,425040,Rendered by Voluntary Organisations,09-Jan-2018,3384066-7003,840.00,CORNERSTONE (NE) ADOPTION & FOSTERING SERVICE.
Regeneration and Local Services,Culture & Sport,Supplies and Services,338047,Services,09-Jan-2018,3384073-JST00038I,750.00,DEBORAH MCKENNA LTD (ON BEHALF OF JACK STEIN).
Resources,Digital and Customer Services,Vehicles Equipment Furniture and Fittings,912701,Computer equipment,09-Jan-2018,3384076-7402406983,"61,480.98",DELL COMPUTER CORPORATION LTD.
Resources,Legal & Democratic Services,Supplies and Services,338042,Services,09-Jan-2018,3384077-304201/INVTF42,"2,160.00",DERE STREET BARRISTERS.
Resources,Legal & Democratic Services,Supplies and Services,338042,Services,09-Jan-2018,3384077-327439/INVCSM315,540.00,DERE STREET BARRISTERS.
Resources,Legal & Democratic Services,Supplies and Services,338042,Services,09-Jan-2018,3384077-330511/INVEMC166,720.00,DERE STREET BARRISTERS.
Resources,Legal & Democratic Services,Supplies and Services,338042,Services,09-Jan-2018,3384077-331273/INVLW158,540.00,DERE STREET BARRISTERS.
Resources,Legal & Democratic Services,Supplies and Services,338042,Services,09-Jan-2018,3384077-331658/INVAP65,540.00,DERE STREET BARRISTERS.
Resources,Legal & Democratic Services,Supplies and Services,338042,Services,09-Jan-2018,3384077-332817/INVSPA178,900.00,DERE STREET BARRISTERS.
Resources,Legal & Democratic Services,Supplies and Services,338042,Services,09-Jan-2018,3384077-334444/INVVK19,900.00,DERE STREET BARRISTERS.
Resources,Legal & Democratic Services,Supplies and Services,338042,Services,09-Jan-2018,3384077-334605/INVCSM320,540.00,DERE STREET BARRISTERS.
Resources,Legal & Democratic Services,Supplies and Services,338042,Services,09-Jan-2018,3384077-335614/INVSEB1131,"1,020.00",DERE STREET BARRISTERS.
Regeneration and Local Services,Direct Services,Third Party Payments,430101,Rendered by Private Contractors,09-Jan-2018,3384078-IV947135,"1,222.10",DIRECT TYRE MANAGEMENT (DTM).
Regeneration and Local Services,Direct Services,Third Party Payments,430101,Rendered by Private Contractors,09-Jan-2018,3384078-IV949593,660.75,DIRECT TYRE MANAGEMENT (DTM).
Regeneration and Local Services,Direct Services,Third Party Payments,430101,Rendered by Private Contractors,09-Jan-2018,3384078-IV950420,"1,690.85",DIRECT TYRE MANAGEMENT (DTM).
Regeneration and Local Services,Direct Services,Third Party Payments,430101,Rendered by Private Contractors,09-Jan-2018,3384078-IV950422,788.08,DIRECT TYRE MANAGEMENT (DTM).
Regeneration and Local Services,Direct Services,Third Party Payments,430101,Rendered by Private Contractors,09-Jan-2018,3384078-IV950424,"2,808.40",DIRECT TYRE MANAGEMENT (DTM).
Regeneration and Local Services,Direct Services,Third Party Payments,430101,Rendered by Private Contractors,09-Jan-2018,3384078-IV950425,"1,149.00",DIRECT TYRE MANAGEMENT (DTM).
Regeneration and Local Services,Direct Services,Third Party Payments,430101,Rendered by Private Contractors,09-Jan-2018,3384078-IV952583,"1,056.20",DIRECT TYRE MANAGEMENT (DTM).
Regeneration and Local Services,Spatial Policy Planning Assets & Environment,Creditors,952146,Creditor-Section 106 agreement,09-Jan-2018,3384095-RED-01-2018-044,834.11,FRAMWELLGATE MOOR & DISTRICT YOUTH & COMMUNITY ASSOCIATION.
Children and Young Peoples Services,Head of Looked After Provision Permanence and Care Leavers,Supplies and Services,364358,Grants to Voluntary Organisations,09-Jan-2018,3384096-CAS-01-2018-018,"1,890.00",FRESH STUDENT LIVING.
Regeneration and Local Services,Economic Development and Housing,Cap Exp on Grants & Other Financial Assistance (REFCUS),918401,Capital grants,09-Jan-2018,3384098-RED-01-2018-050,500.00,GILLS FRY FRY LTD.
Regeneration and Local Services,Spatial Policy Planning Assets & Environment,Creditors,952146,Creditor-Section 106 agreement,09-Jan-2018,3384105-RED-12-2017-118,"65,000.00",GROUNDWORK NORTH EAST.
Children and Young Peoples Services,Head of Looked After Provision Permanence and Care Leavers,Supplies and Services,364358,Grants to Voluntary Organisations,09-Jan-2018,3384107-CAS-01-2018-021,"1,360.00",HARPER ADAMS UNIVERSITY.
Regeneration and Local Services,Economic Development and Housing,Cap Exp on Grants & Other Financial Assistance (REFCUS),918401,Capital grants,09-Jan-2018,3384111-RED-01-2018-032,"3,935.00",HES GROUP UK LTD.
Regeneration and Local Services,Technical Services,Third Party Payments,430127,Rendered by Private Contractors,09-Jan-2018,3384122-2444,"1,483.50",IAN C LIDDLE.
Regeneration and Local Services,Technical Services,Third Party Payments,430127,Rendered by Private Contractors,09-Jan-2018,3384122-2445,"1,644.50",IAN C LIDDLE.
Regeneration and Local Services,Technical Services,Third Party Payments,430127,Rendered by Private Contractors,09-Jan-2018,3384122-2446,"2,926.00",IAN C LIDDLE.
Regeneration and Local Services,Direct Services,Supplies and Services,342033,Computers and Communications,09-Jan-2018,3384125-INV-17367,"13,293.00",INTEGRATED SKILLS LTD.
Regeneration and Local Services,Technical Services,Third Party Payments,430127,Rendered by Private Contractors,09-Jan-2018,3384129-0983/2017,"1,824.50",J & JG GILL & SONS LTD.
Regeneration and Local Services,Technical Services,Third Party Payments,430127,Rendered by Private Contractors,09-Jan-2018,3384129-1065/2017,"3,288.50",J & JG GILL & SONS LTD.
Regeneration and Local Services,Technical Services,Third Party Payments,430128,Rendered by Private Contractors,09-Jan-2018,3384129-0984/2017,640.00,J & JG GILL & SONS LTD.
Regeneration and Local Services,Technical Services,Third Party Payments,430128,Rendered by Private Contractors,09-Jan-2018,3384129-1066/2017,"2,144.00",J & JG GILL & SONS LTD.
Regeneration and Local Services,Culture & Sport,Supplies and Services,324117,Provisions,09-Jan-2018,3384130-66448,"1,119.32",J MORAN LTD T/A CAFFE VINCI.
Regeneration and Local Services,Technical Services,Supplies and Services,338066,Services,09-Jan-2018,3384131-B225H010-004,"3,683.48",JACOBS UK LTD.
Regeneration and Local Services,Direct Services,Vehicles Equipment Furniture and Fittings,912541,Purchase-vehicles,09-Jan-2018,3384133-185051,"34,905.00",JG PAXTON & SONS LTD.
Regeneration and Local Services,Direct Services,Supplies and Services,328041,Clothing Uniforms and Laundry,09-Jan-2018,3384134-8592,535.00,JG UNIFORMS.
Regeneration and Local Services,Technical Services,Premises,150015,Apportioned Exps of Operational Blds,09-Jan-2018,3384135-2001263,505.24,JOHN NIXON LTD.
Regeneration and Local Services,Technical Services,Premises,150015,Apportioned Exps of Operational Blds,09-Jan-2018,3384135-2009444,773.30,JOHN NIXON LTD.
Regeneration and Local Services,Technical Services,Premises,150015,Apportioned Exps of Operational Blds,09-Jan-2018,3384135-2009445,738.15,JOHN NIXON LTD.
Regeneration and Local Services,Technical Services,Supplies and Services,304358,Equipment and Materials,09-Jan-2018,3384137-27605,961.00,JOHN R BUTTERFIELD LTD.
Regeneration and Local Services,Technical Services,Supplies and Services,304358,Equipment and Materials,09-Jan-2018,3384137-27623,"2,072.00",JOHN R BUTTERFIELD LTD.
Regeneration and Local Services,Technical Services,Supplies and Services,304358,Equipment and Materials,09-Jan-2018,3384137-27626,672.00,JOHN R BUTTERFIELD LTD.
Regeneration and Local Services,Technical Services,Supplies and Services,304358,Equipment and Materials,09-Jan-2018,3384137-27628,"1,050.00",JOHN R BUTTERFIELD LTD.
Regeneration and Local Services,Technical Services,Supplies and Services,304358,Equipment and Materials,09-Jan-2018,3384137-27629,777.00,JOHN R BUTTERFIELD LTD.
Regeneration and Local Services,Technical Services,Supplies and Services,304358,Equipment and Materials,09-Jan-2018,3384137-27631,"1,690.00",JOHN R BUTTERFIELD LTD.
Regeneration and Local Services,Technical Services,Supplies and Services,304358,Equipment and Materials,09-Jan-2018,3384137-27632,839.00,JOHN R BUTTERFIELD LTD.
Regeneration and Local Services,Technical Services,Supplies and Services,304358,Equipment and Materials,09-Jan-2018,3384137-27652,"1,252.00",JOHN R BUTTERFIELD LTD.
Regeneration and Local Services,Technical Services,Supplies and Services,304358,Equipment and Materials,09-Jan-2018,3384137-27655,651.00,JOHN R BUTTERFIELD LTD.
Regeneration and Local Services,Technical Services,Supplies and Services,304358,Equipment and Materials,09-Jan-2018,3384137-27656,644.00,JOHN R BUTTERFIELD LTD.
Regeneration and Local Services,Technical Services,Supplies and Services,304358,Equipment and Materials,09-Jan-2018,3384137-27658,851.00,JOHN R BUTTERFIELD LTD.
Regeneration and Local Services,Technical Services,Supplies and Services,304358,Equipment and Materials,09-Jan-2018,3384137-27659,"1,556.50",JOHN R BUTTERFIELD LTD.
Regeneration and Local Services,Technical Services,Supplies and Services,304358,Equipment and Materials,09-Jan-2018,3384137-27660,797.00,JOHN R BUTTERFIELD LTD.
Regeneration and Local Services,Technical Services,Supplies and Services,304358,Equipment and Materials,09-Jan-2018,3384137-27662,916.00,JOHN R BUTTERFIELD LTD.
Regeneration and Local Services,Technical Services,Supplies and Services,304358,Equipment and Materials,09-Jan-2018,3384137-27676,"2,109.00",JOHN R BUTTERFIELD LTD.
Regeneration and Local Services,Technical Services,Supplies and Services,304358,Equipment and Materials,09-Jan-2018,3384137-27677,819.00,JOHN R BUTTERFIELD LTD.
Regeneration and Local Services,Technical Services,Supplies and Services,304358,Equipment and Materials,09-Jan-2018,3384137-27678,580.00,JOHN R BUTTERFIELD LTD.
Regeneration and Local Services,Technical Services,Supplies and Services,304358,Equipment and Materials,09-Jan-2018,3384137-27680,"1,112.00",JOHN R BUTTERFIELD LTD.
Regeneration and Local Services,Technical Services,Supplies and Services,304358,Equipment and Materials,09-Jan-2018,3384137-27681,650.00,JOHN R BUTTERFIELD LTD.
Regeneration and Local Services,Technical Services,Supplies and Services,304358,Equipment and Materials,09-Jan-2018,3384137-27683,"1,248.00",JOHN R BUTTERFIELD LTD.
Regeneration and Local Services,Technical Services,Supplies and Services,304358,Equipment and Materials,09-Jan-2018,3384137-27684,692.00,JOHN R BUTTERFIELD LTD.
Regeneration and Local Services,Technical Services,Supplies and Services,304358,Equipment and Materials,09-Jan-2018,3384137-27690,500.00,JOHN R BUTTERFIELD LTD.
Regeneration and Local Services,Technical Services,Supplies and Services,304221,Equipment and Materials,09-Jan-2018,3384140-BI1245038,794.24,JT DOVE LTD.
Regeneration and Local Services,Technical Services,Supplies and Services,304221,Equipment and Materials,09-Jan-2018,3384140-BII245042,507.59,JT DOVE LTD.
Regeneration and Local Services,Technical Services,Supplies and Services,304221,Equipment and Materials,09-Jan-2018,3384140-G0I624/D,555.65,JT DOVE LTD.
Regeneration and Local Services,Technical Services,Supplies and Services,304221,Equipment and Materials,09-Jan-2018,3384140-GOI690/D,862.50,JT DOVE LTD.
Regeneration and Local Services,Technical Services,Supplies and Services,304221,Equipment and Materials,09-Jan-2018,3384140-GOI692/D,"5,887.26",JT DOVE LTD.
Regeneration and Local Services,Technical Services,Supplies and Services,304221,Equipment and Materials,09-Jan-2018,3384140-GOI693/D,"4,193.47",JT DOVE LTD.
Regeneration and Local Services,Technical Services,Third Party Payments,430100,Rendered by Private Contractors,09-Jan-2018,3384141-24934,"3,112.66",KAEFER LTD.
Regeneration and Local Services,Technical Services,Supplies and Services,304221,Equipment and Materials,09-Jan-2018,3384142-11081,734.79,KEN THOMAS (SITE CLEARANCE LTD).
Regeneration and Local Services,Technical Services,Supplies and Services,304358,Equipment and Materials,09-Jan-2018,3384145-1823,"2,185.50",KEVIN SNOWDON GROUNDWORKS LTD.
Regeneration and Local Services,Technical Services,Third Party Payments,430128,Rendered by Private Contractors,09-Jan-2018,3384156-5501,"2,184.00",MAKEPEACE MOTORS.
Regeneration and Local Services,Technical Services,Third Party Payments,430128,Rendered by Private Contractors,09-Jan-2018,3384156-5508,917.00,MAKEPEACE MOTORS.
Regeneration and Local Services,Culture & Sport,Supplies and Services,324117,Provisions,09-Jan-2018,3384159-199133,644.33,MARK TONEY & CO LTD.
Regeneration and Local Services,Direct Services,Premises,125009,Rents,09-Jan-2018,3384163-RENT-JANUARY18,"5,750.00",MM KNITWEAR (1982) LTD.
Regeneration and Local Services,Direct Services,Third Party Payments,430100,Rendered by Private Contractors,09-Jan-2018,3384173-DCC016,"1,500.00",MR WILLIAM MAGUIRE T/A VALLUM LIFTS.
Regeneration and Local Services,Direct Services,Third Party Payments,430100,Rendered by Private Contractors,09-Jan-2018,3384173-DCC019,"1,500.00",MR WILLIAM MAGUIRE T/A VALLUM LIFTS.
Regeneration and Local Services,Direct Services,Third Party Payments,430100,Rendered by Private Contractors,09-Jan-2018,3384173-DCC021,"1,500.00",MR WILLIAM MAGUIRE T/A VALLUM LIFTS.
Regeneration and Local Services,Direct Services,Third Party Payments,430105,Rendered by Private Contractors,09-Jan-2018,3384183-437,"2,379.72",NE GREEN WASTE RECYCLING LTD.
Regeneration and Local Services,Economic Development and Housing,Supplies and Services,384700,Miscellaneous Expenses,09-Jan-2018,3384184-RED-01-2018-041,500.00,NEW CENTURY CHINESE TAKEAWAY.
Regeneration and Local Services,Technical Services,Employees,040149,Recruitment Instruction and Training,09-Jan-2018,3384185-50069106,"2,400.00",NEW COLLEGE DURHAM.
Regeneration and Local Services,Technical Services,Supplies and Services,384194,Miscellaneous Expenses,09-Jan-2018,3384190-93796,"1,455.00",NIRAMAX GROUP LTD.
Dedicated Schools Grant,Dedicated Schools Grant,Central Support and Capital,689996,Unclassified,09-Jan-2018,3384192-CAS-01-2018-012,"1,264.39",NORTH EAST LEARNING TRUST.
Regeneration and Local Services,Direct Services,Third Party Payments,430100,Rendered by Private Contractors,09-Jan-2018,3384194-17120464,"2,276.97",NOVUS PROPERTY SOLUTIONS LTD.
Regeneration and Local Services,Direct Services,Premises,120037,Energy Costs,09-Jan-2018,3384197-291972,"1,144.77",OIL NRG LTD.
Regeneration and Local Services,Direct Services,Transport,215022,Running Costs of Vehicles,09-Jan-2018,3384197-287953,"4,963.04",OIL NRG LTD.
Regeneration and Local Services,Transport and Contracted Services,Construction Work,908202,Capital - Public Utilities - Telephones Services,09-Jan-2018,3384199-A166071,"10,532.26",OPENREACH LLU.
Regeneration and Local Services,Technical Services,Creditors,952029,Creditor-returnable bonds,09-Jan-2018,3384204-NEI-EXP-01-2018-001,"10,226.98",PARTNER CONSTRUCTION LTD.
Regeneration and Local Services,Technical Services,Creditors,952029,Creditor-returnable bonds,09-Jan-2018,3384204-NEI-EXP-01-2018-002,"3,064.36",PARTNER CONSTRUCTION LTD.
Regeneration and Local Services,Economic Development and Housing,Cap Exp on Grants & Other Financial Assistance (REFCUS),918401,Capital grants,09-Jan-2018,3384206-RED-01-2018-031,"3,307.00",PEART ACCESS RAMPS.*
Regeneration and Local Services,Spatial Policy Planning Assets & Environment,Creditors,952146,Creditor-Section 106 agreement,09-Jan-2018,3384207-RED-12-2017-117,711.00,PELTON FELL COMMUNITY PARTNERSHIP.
Transformation and Partnerships,Partnerships & Community Engagement Div.,Cap Exp on Grants & Other Financial Assistance (REFCUS),918004,Contributions to other bodies,09-Jan-2018,3384211-VOUCHER17AB-GAMP006,"8,345.00",PIONEERING CARE PARTNERSHIP.
Children and Young Peoples Services,Head of Education,Transport,230008,Contract Hire,09-Jan-2018,3384171-3589496-011,638.28,REDACTED - PAYMENT TO INDIVIDUAL
Children and Young Peoples Services,Head of Looked After Provision Permanence and Care Leavers,Third Party Payments,440036,Other Third Party Payments,09-Jan-2018,3383472-1250614,879.60,REDACTED - PAYMENT TO INDIVIDUAL
Children and Young Peoples Services,Head of Looked After Provision Permanence and Care Leavers,Third Party Payments,440036,Other Third Party Payments,09-Jan-2018,3383538-1250803,"1,099.50",REDACTED - PAYMENT TO INDIVIDUAL
Children and Young Peoples Services,Head of Looked After Provision Permanence and Care Leavers,Third Party Payments,440036,Other Third Party Payments,09-Jan-2018,3383745-1250791,"1,246.10",REDACTED - PAYMENT TO INDIVIDUAL
Children and Young Peoples Services,Head of Looked After Provision Permanence and Care Leavers,Third Party Payments,440002,Other Third Party Payments,09-Jan-2018,3383429-1250076,841.34,REDACTED - PAYMENT TO INDIVIDUAL
Children and Young Peoples Services,Head of Looked After Provision Permanence and Care Leavers,Third Party Payments,440002,Other Third Party Payments,09-Jan-2018,3383578-1250058,658.44,REDACTED - PAYMENT TO INDIVIDUAL
Children and Young Peoples Services,Head of Looked After Provision Permanence and Care Leavers,Third Party Payments,440001,Other Third Party Payments,09-Jan-2018,3383699-1249629,503.75,REDACTED - PAYMENT TO INDIVIDUAL
Children and Young Peoples Services,Head of Looked After Provision Permanence and Care Leavers,Third Party Payments,440001,Other Third Party Payments,09-Jan-2018,3383699-1249706,503.75,REDACTED - PAYMENT TO INDIVIDUAL
Children and Young Peoples Services,Head of Looked After Provision Permanence and Care Leavers,Third Party Payments,440001,Other Third Party Payments,09-Jan-2018,3383867-1249678,523.90,REDACTED - PAYMENT TO INDIVIDUAL
Children and Young Peoples Services,Head of Looked After Provision Permanence and Care Leavers,Third Party Payments,440001,Other Third Party Payments,09-Jan-2018,3383867-1249679,523.90,REDACTED - PAYMENT TO INDIVIDUAL
Children and Young Peoples Services,Head of Looked After Provision Permanence and Care Leavers,Third Party Payments,440001,Other Third Party Payments,09-Jan-2018,3383943-1249696,671.50,REDACTED - PAYMENT TO INDIVIDUAL
Children and Young Peoples Services,Head of Early Help Assessment and Safeguarding,Third Party Payments,440016,Other Third Party Payments,09-Jan-2018,3383409-1250401,925.88,REDACTED - PAYMENT TO INDIVIDUAL
Children and Young Peoples Services,Head of Early Help Assessment and Safeguarding,Third Party Payments,440016,Other Third Party Payments,09-Jan-2018,3383409-1250402,881.88,REDACTED - PAYMENT TO INDIVIDUAL
Children and Young Peoples Services,Head of Looked After Provision Permanence and Care Leavers,Third Party Payments,440028,Other Third Party Payments,09-Jan-2018,3383548-1249623,807.12,REDACTED - PAYMENT TO INDIVIDUAL
Children and Young Peoples Services,Head of Looked After Provision Permanence and Care Leavers,Third Party Payments,440025,Other Third Party Payments,09-Jan-2018,3383579-1249334,571.50,REDACTED - PAYMENT TO INDIVIDUAL
Children and Young Peoples Services,Head of Looked After Provision Permanence and Care Leavers,Third Party Payments,440025,Other Third Party Payments,09-Jan-2018,3383972-1249271,548.64,REDACTED - PAYMENT TO INDIVIDUAL
Children and Young Peoples Services,Head of Looked After Provision Permanence and Care Leavers,Third Party Payments,440027,Other Third Party Payments,09-Jan-2018,3383347-1249516,806.22,REDACTED - PAYMENT TO INDIVIDUAL
Children and Young Peoples Services,Head of Looked After Provision Permanence and Care Leavers,Third Party Payments,440027,Other Third Party Payments,09-Jan-2018,3383347-1249517,806.22,REDACTED - PAYMENT TO INDIVIDUAL
Children and Young Peoples Services,Head of Looked After Provision Permanence and Care Leavers,Third Party Payments,440027,Other Third Party Payments,09-Jan-2018,3383365-1250878,605.34,REDACTED - PAYMENT TO INDIVIDUAL
Children and Young Peoples Services,Head of Looked After Provision Permanence and Care Leavers,Third Party Payments,440027,Other Third Party Payments,09-Jan-2018,3383419-1249450,706.23,REDACTED - PAYMENT TO INDIVIDUAL
Children and Young Peoples Services,Head of Looked After Provision Permanence and Care Leavers,Third Party Payments,440027,Other Third Party Payments,09-Jan-2018,3383526-1250852,941.64,REDACTED - PAYMENT TO INDIVIDUAL
Children and Young Peoples Services,Head of Looked After Provision Permanence and Care Leavers,Third Party Payments,440027,Other Third Party Payments,09-Jan-2018,3383848-1249575,840.75,REDACTED - PAYMENT TO INDIVIDUAL
Children and Young Peoples Services,Head of Looked After Provision Permanence and Care Leavers,Third Party Payments,440027,Other Third Party Payments,09-Jan-2018,3383848-1249576,840.75,REDACTED - PAYMENT TO INDIVIDUAL
Children and Young Peoples Services,Head of Looked After Provision Permanence and Care Leavers,Third Party Payments,440027,Other Third Party Payments,09-Jan-2018,3383848-1249577,840.75,REDACTED - PAYMENT TO INDIVIDUAL
Children and Young Peoples Services,Head of Looked After Provision Permanence and Care Leavers,Third Party Payments,440027,Other Third Party Payments,09-Jan-2018,3383867-1249465,874.38,REDACTED - PAYMENT TO INDIVIDUAL
Children and Young Peoples Services,Head of Looked After Provision Permanence and Care Leavers,Third Party Payments,440027,Other Third Party Payments,09-Jan-2018,3383867-1249466,874.38,REDACTED - PAYMENT TO INDIVIDUAL
Regeneration and Local Services,Economic Development and Housing,Cap Exp on Grants & Other Financial Assistance (REFCUS),918401,Capital grants,09-Jan-2018,3384072-RED-01-2018-033,"5,000.00",REDACTED - PAYMENT TO INDIVIDUAL
Regeneration and Local Services,Economic Development and Housing,Cap Exp on Grants & Other Financial Assistance (REFCUS),918401,Capital grants,09-Jan-2018,3384170-RED-01-2018-034,"5,000.00",REDACTED - PAYMENT TO INDIVIDUAL
Dedicated Schools Grant,Dedicated Schools Grant,Central Support and Capital,689996,Unclassified,09-Jan-2018,3384224-CAS-01-2018-014,"7,626.58",RIBBON ACADEMY TRUST.
Regeneration and Local Services,Business Support,Supplies and Services,340001,Postages,09-Jan-2018,3384227-9055631542,"1,488.19",ROYAL MAIL GROUP PLC.
Resources,Financial Services,Supplies and Services,340001,Postages,09-Jan-2018,3384227-9055800508,"2,369.91",ROYAL MAIL GROUP PLC.
Resources,Legal & Democratic Services,Supplies and Services,340001,Postages,09-Jan-2018,3384228-9055621961,"12,185.18",ROYAL MAIL GROUP PLC.
Resources,Digital and Customer Services,Supplies and Services,340001,Postages,09-Jan-2018,3384228-9055669296,"10,905.07",ROYAL MAIL GROUP PLC.
Regeneration and Local Services,Direct Services,Supplies and Services,324117,Provisions,09-Jan-2018,3384235-180008979,521.40,SELECTA UK LTD.
Regeneration and Local Services,Transport and Contracted Services,Supplies and Services,342053,Computers and Communications,09-Jan-2018,3384238-1027602861,"2,700.00",SIEMENS PLC.
Regeneration and Local Services,Direct Services,Supplies and Services,304221,Equipment and Materials,09-Jan-2018,3384239-00567726,700.12,SIG TRADING LTD T/A CARPET & FLOORING LTD.*
Regeneration and Local Services,Culture & Sport,Supplies and Services,324117,Provisions,09-Jan-2018,3384243-40674,"1,402.14",SNOWSHOCK LTD.
Children and Young Peoples Services,Head of Looked After Provision Permanence and Care Leavers,Supplies and Services,364358,Grants to Voluntary Organisations,09-Jan-2018,3384244-CAS-01-2018-017,"1,375.00",SOF-10 STUDENT OPCO LTD T/A NIDO STEPNEY YARD.
Dedicated Schools Grant,Dedicated Schools Grant,Central Support and Capital,689996,Unclassified,09-Jan-2018,3384246-CAS-01-2018-013,"1,551.51",SOUTH HETTON PRIMARY SCHOOL.
Regeneration and Local Services,Direct Services,Third Party Payments,430100,Rendered by Private Contractors,09-Jan-2018,3384252-11054,"3,966.73",STONE TECHNICAL SERVICES LTD.
Regeneration and Local Services,Technical Services,Supplies and Services,304221,Equipment and Materials,09-Jan-2018,3384253-101249,"3,178.12",STONEGRAVE AGGREGATES LTD.
Children and Young Peoples Services,Head of Looked After Provision Permanence and Care Leavers,Third Party Payments,486044,Service Level Agreements,09-Jan-2018,3384262-4810011093,"4,039.67",TEES ESK & WEAR VALLEYS NHS FOUNDATION TRUST.
Transformation and Partnerships,Partnerships & Community Engagement Div.,Supplies and Services,384540,Miscellaneous Expenses,09-Jan-2018,3384263-00082,770.00,THE DESIGN HUB LTD.
Children and Young Peoples Services,Head of Looked After Provision Permanence and Care Leavers,Supplies and Services,364358,Grants to Voluntary Organisations,09-Jan-2018,3384268-CAS-01-2018-016,"2,133.60",THE UNITE GROUP PLC.
Regeneration and Local Services,Technical Services,Supplies and Services,304221,Equipment and Materials,09-Jan-2018,3384275-181220,"1,056.32",TYNEDALE ROADSTONE LTD.
Regeneration and Local Services,Technical Services,Supplies and Services,304358,Equipment and Materials,09-Jan-2018,3384282-44313,"2,020.00",W MARLEY AGRICULTURAL CONTRACTORS LTD.
Regeneration and Local Services,Culture & Sport,Supplies and Services,304259,Equipment and Materials,09-Jan-2018,3384283-AT1054,543.00,WALLY ANDERSON T/A ALL TECHNIC.
Regeneration and Local Services,Technical Services,Premises,150015,Apportioned Exps of Operational Blds,09-Jan-2018,3384285-717171,669.10,WERNICK HIRE LTD.
Regeneration and Local Services,Technical Services,Premises,150015,Apportioned Exps of Operational Blds,09-Jan-2018,3384285-717173,626.78,WERNICK HIRE LTD.
Regeneration and Local Services,Technical Services,Premises,150015,Apportioned Exps of Operational Blds,09-Jan-2018,3384285-717181,669.10,WERNICK HIRE LTD.
Regeneration and Local Services,Technical Services,Premises,150015,Apportioned Exps of Operational Blds,09-Jan-2018,3384285-717186,732.60,WERNICK HIRE LTD.
Regeneration and Local Services,Technical Services,Premises,150015,Apportioned Exps of Operational Blds,09-Jan-2018,3384285-717188,660.66,WERNICK HIRE LTD.
Regeneration and Local Services,Direct Services,Premises,150015,Apportioned Exps of Operational Blds,09-Jan-2018,3384285-717277,705.28,WERNICK HIRE LTD.
Regeneration and Local Services,Direct Services,Premises,150015,Apportioned Exps of Operational Blds,09-Jan-2018,3384285-717282,705.28,WERNICK HIRE LTD.
Regeneration and Local Services,Direct Services,Premises,150015,Apportioned Exps of Operational Blds,09-Jan-2018,3384285-717290,660.66,WERNICK HIRE LTD.
Regeneration and Local Services,Technical Services,Supplies and Services,304358,Equipment and Materials,09-Jan-2018,3384293-6786,770.00,YOULL CONSTRUCTION LTD.
Children and Young Peoples Services,Head of Education,Transport,230006,Contract Hire,10-Jan-2018,3384295-68130,750.00,A & C TAXIS.
Adult and Health Services,Head of Adults,Transport,230005,Contract Hire,10-Jan-2018,3384296-DECEMBER03,640.00,A & P TAXIS.
Children and Young Peoples Services,Head of Education,Transport,230007,Contract Hire,10-Jan-2018,3384296-01DECEMBER2017,"1,350.00",A & P TAXIS.
Children and Young Peoples Services,Head of Education,Transport,230006,Contract Hire,10-Jan-2018,3384296-NOVEMBER02-F728,815.00,A & P TAXIS.
Children and Young Peoples Services,Head of Education,Transport,230006,Contract Hire,10-Jan-2018,3384297-29,516.00,A HJ JOBLING T/A CASTLE TAXIS.
Children and Young Peoples Services,Head of Education,Transport,230006,Contract Hire,10-Jan-2018,3384298-HA220795,792.00,A MURRAY TRAVEL.
Children and Young Peoples Services,Head of Education,Transport,230008,Contract Hire,10-Jan-2018,3384298-A220793,"1,072.00",A MURRAY TRAVEL.
Children and Young Peoples Services,Head of Education,Transport,230008,Contract Hire,10-Jan-2018,3384298-EA220789,"1,104.00",A MURRAY TRAVEL.
Children and Young Peoples Services,Head of Education,Transport,230008,Contract Hire,10-Jan-2018,3384298-GC004,792.00,A MURRAY TRAVEL.
Children and Young Peoples Services,Head of Education,Transport,230008,Contract Hire,10-Jan-2018,3384299-12/1/17,"1,120.00",ABA TAXIS.
Children and Young Peoples Services,Head of Education,Transport,230012,Contract Hire,10-Jan-2018,3384300-O369,"1,408.00",ABC & OUSTON CABS.
Children and Young Peoples Services,Head of Education,Transport,230008,Contract Hire,10-Jan-2018,3384300-O370,"1,072.00",ABC & OUSTON CABS.
Children and Young Peoples Services,Head of Education,Transport,230007,Contract Hire,10-Jan-2018,3384301-616,"1,007.50",AC TAXIS.
Regeneration and Local Services,Technical Services,Employees,080025,Agency Staff,10-Jan-2018,3384305-28332180,"1,904.00",AECOM LTD.
Children and Young Peoples Services,Head of Education,Transport,230006,Contract Hire,10-Jan-2018,3384306-F677-DEC17,"1,024.00",AIRPORT CARS DURHAM
Adult and Health Services,Head of Adults,Transport,230005,Contract Hire,10-Jan-2018,3384307-0004,840.00,AIRPORT TAXIS 4U.
Regeneration and Local Services,Direct Services,Third Party Payments,430100,Rendered by Private Contractors,10-Jan-2018,3384309-52875,783.54,ALAN REED LTD.
Children and Young Peoples Services,Head of Education,Transport,230008,Contract Hire,10-Jan-2018,3384310-153954,"1,400.00",ALAN SOUTHERN T/A ALANS TAXIS PELTON FELL.
Children and Young Peoples Services,Head of Education,Transport,230008,Contract Hire,10-Jan-2018,3384310-388954,"1,160.00",ALAN SOUTHERN T/A ALANS TAXIS PELTON FELL.
Children and Young Peoples Services,Head of Education,Transport,230007,Contract Hire,10-Jan-2018,3384311-141,"1,672.00",ALANS TAXIS BARNARD CASTLE.
Children and Young Peoples Services,Head of Education,Transport,230007,Contract Hire,10-Jan-2018,3384311-142,"1,870.00",ALANS TAXIS BARNARD CASTLE.
Children and Young Peoples Services,Head of Education,Transport,230007,Contract Hire,10-Jan-2018,3384311-143,"1,056.00",ALANS TAXIS BARNARD CASTLE.
Children and Young Peoples Services,Head of Education,Transport,230007,Contract Hire,10-Jan-2018,3384311-144,"1,848.00",ALANS TAXIS BARNARD CASTLE.
Children and Young Peoples Services,Head of Education,Transport,230006,Contract Hire,10-Jan-2018,3384315-0043,900.00,ANDREW SIMPSON T/A ANDY`S CABS.
Children and Young Peoples Services,Head of Education,Transport,230008,Contract Hire,10-Jan-2018,3384318-DEC2017-3,"1,440.00",ARMSTRONG`S TAXIS.
Children and Young Peoples Services,Head of Education,Transport,230008,Contract Hire,10-Jan-2018,3384354-1031,"2,384.58",ARRON GILBRAITH T/A BYRON TRAVEL.
Regeneration and Local Services,Culture & Sport,Supplies and Services,384999,Miscellaneous Expenses,10-Jan-2018,3384320-100747,"12,160.00",ARTICHOKE TRUST.
Children and Young Peoples Services,Head of Education,Transport,230008,Contract Hire,10-Jan-2018,3384322-DCC05DEC17,"1,323.00",ATLAS TAXIS BISHOP AUCKLAND.
Children and Young Peoples Services,Head of Education,Transport,230008,Contract Hire,10-Jan-2018,3384322-DCC10DEC17,"1,120.00",ATLAS TAXIS BISHOP AUCKLAND.
Children and Young Peoples Services,Head of Education,Transport,230008,Contract Hire,10-Jan-2018,3384322-DCC12DEC17,"1,280.00",ATLAS TAXIS BISHOP AUCKLAND.
Children and Young Peoples Services,Head of Education,Transport,230008,Contract Hire,10-Jan-2018,3384322-DCC4DEC17,"1,246.00",ATLAS TAXIS BISHOP AUCKLAND.
Children and Young Peoples Services,Head of Education,Transport,230008,Contract Hire,10-Jan-2018,3384322-DCC6DEC17,"1,890.00",ATLAS TAXIS BISHOP AUCKLAND.
Children and Young Peoples Services,Head of Education,Transport,230008,Contract Hire,10-Jan-2018,3384322-DCC7DEC17,"1,260.00",ATLAS TAXIS BISHOP AUCKLAND.
Adult and Health Services,Head of Adults,Transport,230005,Contract Hire,10-Jan-2018,3384323-03676,510.00,ATLAS TAXIS CONSETT.
Children and Young Peoples Services,Head of Education,Transport,230007,Contract Hire,10-Jan-2018,3384323-03673,592.00,ATLAS TAXIS CONSETT.
Children and Young Peoples Services,Head of Education,Transport,230009,Contract Hire,10-Jan-2018,3384323-03678,653.20,ATLAS TAXIS CONSETT.
Children and Young Peoples Services,Head of Education,Transport,230004,Contract Hire,10-Jan-2018,3384323-03677,671.60,ATLAS TAXIS CONSETT.
Children and Young Peoples Services,Head of Education,Transport,230006,Contract Hire,10-Jan-2018,3384323-03679,613.60,ATLAS TAXIS CONSETT.
Regeneration and Local Services,Direct Services,Supplies and Services,304221,Equipment and Materials,10-Jan-2018,3384324-22025,"4,508.00",ATWELL INTERNATIONAL LTD.
Children and Young Peoples Services,Head of Education,Transport,230008,Contract Hire,10-Jan-2018,3384327-2201217,900.00,AVALON TAXIS.
Children and Young Peoples Services,Head of Education,Transport,230008,Contract Hire,10-Jan-2018,3384327-221217,"1,360.00",AVALON TAXIS.
Adult and Health Services,Head of Adults,Transport,230005,Contract Hire,10-Jan-2018,3384328-4-CLS058,580.00,AXLE TAXIS.
Regeneration and Local Services,Transport and Contracted Services,Third Party Payments,440999,Other Third Party Payments,10-Jan-2018,3384329-53521,"6,514.32",BAYDALE CONTROL SYSTEMS LTD.
Regeneration and Local Services,Technical Services,Third Party Payments,430100,Rendered by Private Contractors,10-Jan-2018,3384330-1748003,"18,882.26",BCE NORTHERN LTD.
Regeneration and Local Services,Technical Services,Third Party Payments,430100,Rendered by Private Contractors,10-Jan-2018,3384330-1748004,"16,550.32",BCE NORTHERN LTD.
Regeneration and Local Services,Technical Services,Third Party Payments,430100,Rendered by Private Contractors,10-Jan-2018,3384330-1752002,"14,324.80",BCE NORTHERN LTD.
Children and Young Peoples Services,Head of Education,Transport,230008,Contract Hire,10-Jan-2018,3384332-SMITH1/DECEMBER17,"1,443.00",BEELINE PRIVATE HIRE.
Regeneration and Local Services,Direct Services,Third Party Payments,430100,Rendered by Private Contractors,10-Jan-2018,3384333-46052762,"1,263.98",BELL TRUCK SALES LTD T/A BELL TRUCK & VAN.
Regeneration and Local Services,Direct Services,Transport,210057,Repair and Maintenance of Vehicles,10-Jan-2018,3384333-15124038,619.23,BELL TRUCK SALES LTD T/A BELL TRUCK & VAN.
Regeneration and Local Services,Direct Services,Transport,210057,Repair and Maintenance of Vehicles,10-Jan-2018,3384333-35144423,743.71,BELL TRUCK SALES LTD T/A BELL TRUCK & VAN.
Regeneration and Local Services,Direct Services,Transport,210057,Repair and Maintenance of Vehicles,10-Jan-2018,3384333-35144448,518.00,BELL TRUCK SALES LTD T/A BELL TRUCK & VAN.
Regeneration and Local Services,Direct Services,Transport,210057,Repair and Maintenance of Vehicles,10-Jan-2018,3384333-35144592,880.60,BELL TRUCK SALES LTD T/A BELL TRUCK & VAN.
Regeneration and Local Services,Direct Services,Transport,210057,Repair and Maintenance of Vehicles,10-Jan-2018,3384333-45052986,880.60,BELL TRUCK SALES LTD T/A BELL TRUCK & VAN.
Children and Young Peoples Services,Head of Education,Transport,230008,Contract Hire,10-Jan-2018,3384337-004,"1,056.00",BG TAXIS.
Regeneration and Local Services,Economic Development and Housing,Fees,901002,Professional fees,10-Jan-2018,3384338-35237,841.70,BGP CONSULTING LTD T/A BILLINGHURST GEORGE & PARTNERS.
Children and Young Peoples Services,Head of Education,Transport,230006,Contract Hire,10-Jan-2018,3384339-112,640.00,BILL SCOTT TAXIS LTD.
Adult and Health Services,Public Health,Supplies and Services,338066,Services,10-Jan-2018,3384342-8110,"73,039.95",BLOOM PROCUREMENT SERVICES LTD (FORMERLY NEPRO LTD).
Regeneration and Local Services,Economic Development and Housing,Cap Exp on Grants & Other Financial Assistance (REFCUS),918401,Capital grants,10-Jan-2018,3384348-RED-01-2018-063,500.00,BRANCEPETH BRICKLAYING & BUILDING SERVICES LTD.
Regeneration and Local Services,Technical Services,Third Party Payments,430100,Rendered by Private Contractors,10-Jan-2018,3384350-42671,"4,986.46",BRIDGEWAY CONSULTING LTD.
Regeneration and Local Services,Technical Services,Third Party Payments,430100,Rendered by Private Contractors,10-Jan-2018,3384350-42672,"3,739.88",BRIDGEWAY CONSULTING LTD.
Regeneration and Local Services,Technical Services,Third Party Payments,430100,Rendered by Private Contractors,10-Jan-2018,3384350-42673,"4,089.47",BRIDGEWAY CONSULTING LTD.
Children and Young Peoples Services,Head of Education,Transport,230008,Contract Hire,10-Jan-2018,3384356-A02804,975.00,C & R TAXIS.
Children and Young Peoples Services,Head of Education,Transport,230008,Contract Hire,10-Jan-2018,3384356-S02604,910.00,C & R TAXIS.
Children and Young Peoples Services,Head of Education,Transport,230008,Contract Hire,10-Jan-2018,3384356-W07804,"1,680.00",C & R TAXIS.
Children and Young Peoples Services,Head of Education,Transport,230007,Contract Hire,10-Jan-2018,3384357-BIL0120,683.10,CA MUSGROVE.
Children and Young Peoples Services,Head of Education,Transport,230008,Contract Hire,10-Jan-2018,3384357-BIL0121,750.00,CA MUSGROVE.
Regeneration and Local Services,Direct Services,Third Party Payments,430100,Rendered by Private Contractors,10-Jan-2018,3384361-288,"4,315.41",CEILINGS DIRECT LTD.
Adult and Health Services,Public Health,Third Party Payments,460803,Contract Payments,10-Jan-2018,3384363-24552,"449,361.00",CHANGE GROW LIVE.
Children and Young Peoples Services,Head of Education,Transport,230008,Contract Hire,10-Jan-2018,3384364-004,"1,350.00",CHANNER`S CABS.
Children and Young Peoples Services,Head of Education,Transport,230007,Contract Hire,10-Jan-2018,3384365-06,900.00,CHAPMAN TRAVEL.
Children and Young Peoples Services,Head of Education,Transport,230006,Contract Hire,10-Jan-2018,3384365-07,585.00,CHAPMAN TRAVEL.
Regeneration and Local Services,Direct Services,Third Party Payments,430100,Rendered by Private Contractors,10-Jan-2018,3384366-395214,"1,176.72",CHATFIELDS.
Regeneration and Local Services,Direct Services,Third Party Payments,430100,Rendered by Private Contractors,10-Jan-2018,3384366-4011208,613.45,CHATFIELDS.
Dedicated Schools Grant,Dedicated Schools Grant,Transport,230010,Contract Hire,10-Jan-2018,3384368-BL004,"1,440.00",CHIPPERS TAXIS.
Regeneration and Local Services,Direct Services,Third Party Payments,430100,Rendered by Private Contractors,10-Jan-2018,3384370-5245,689.60,CITY FABRICATIONS LTD.
Regeneration and Local Services,Technical Services,Premises,150015,Apportioned Exps of Operational Blds,10-Jan-2018,3384373-80800,903.54,CLEE HILL PLANT LTD.
Regeneration and Local Services,Direct Services,Third Party Payments,430100,Rendered by Private Contractors,10-Jan-2018,3384374-8118746,750.00,CLOVER CONTROLS LTD.
Children and Young Peoples Services,Head of Education,Transport,230007,Contract Hire,10-Jan-2018,3384377-C/10098,"2,527.50",COCHRANES T/A KELVIN TRAVEL.
Children and Young Peoples Services,Head of Education,Transport,230003,Contract Hire,10-Jan-2018,3384377-C/10097,"2,056.00",COCHRANES T/A KELVIN TRAVEL.
Regeneration and Local Services,Technical Services,Stock,926900,Stock in hand-Inventory system,10-Jan-2018,3384378-202532,946.80,COLAS LTD.
Regeneration and Local Services,Technical Services,Stock,926900,Stock in hand-Inventory system,10-Jan-2018,3384378-202533,631.20,COLAS LTD.
Regeneration and Local Services,Technical Services,Stock,926900,Stock in hand-Inventory system,10-Jan-2018,3384378-205528,631.20,COLAS LTD.
Transformation and Partnerships,Comms & Information Management,Supplies and Services,336005,Advertising,10-Jan-2018,3384380-SNE017725,950.00,COMMUNICORP UK LTD.
Adult and Health Services,Commissioning inc Supporting People,Third Party Payments,479102,Purchase of Care,10-Jan-2018,3384383-17/18153,"6,250.00",CORNFORTH PARTNERSHIP.
Adult and Health Services,Head of Adults,Transport,230005,Contract Hire,10-Jan-2018,308743-AG003,630.00,COUNDON TAXIS.
Children and Young Peoples Services,Head of Education,Transport,230007,Contract Hire,10-Jan-2018,3384384-DCC/4003/DEC17,"1,456.00",COUNTY COACHES.
Children and Young Peoples Services,Head of Education,Transport,230007,Contract Hire,10-Jan-2018,3384384-DCC/4118/DEC17,"3,776.00",COUNTY COACHES.
Children and Young Peoples Services,Head of Education,Transport,230009,Contract Hire,10-Jan-2018,3384386-107223,697.50,CROFT BUSINESS SERVICES (UK) LTD T/A CROFT TAXIS.
Children and Young Peoples Services,Head of Education,Transport,230009,Contract Hire,10-Jan-2018,3384386-107225,"1,473.15",CROFT BUSINESS SERVICES (UK) LTD T/A CROFT TAXIS.
Children and Young Peoples Services,Head of Education,Transport,230006,Contract Hire,10-Jan-2018,3384386-107232,949.12,CROFT BUSINESS SERVICES (UK) LTD T/A CROFT TAXIS.
Children and Young Peoples Services,Head of Education,Transport,230008,Contract Hire,10-Jan-2018,3384386-107226,"1,597.92",CROFT BUSINESS SERVICES (UK) LTD T/A CROFT TAXIS.
Children and Young Peoples Services,Head of Education,Transport,230008,Contract Hire,10-Jan-2018,3384386-107228,"3,019.68",CROFT BUSINESS SERVICES (UK) LTD T/A CROFT TAXIS.
Children and Young Peoples Services,Head of Education,Transport,230008,Contract Hire,10-Jan-2018,3384386-107233,909.92,CROFT BUSINESS SERVICES (UK) LTD T/A CROFT TAXIS.
Children and Young Peoples Services,Head of Education,Transport,230008,Contract Hire,10-Jan-2018,3384386-107235,"1,593.12",CROFT BUSINESS SERVICES (UK) LTD T/A CROFT TAXIS.
Children and Young Peoples Services,Head of Education,Transport,230008,Contract Hire,10-Jan-2018,3384388-30,947.20,CUTHBERT CABS.
Regeneration and Local Services,Technical Services,Third Party Payments,430127,Rendered by Private Contractors,10-Jan-2018,3384393-44-DEC2017,"3,136.00",D & L HOPPS.
Adult and Health Services,Head of Adults,Transport,230005,Contract Hire,10-Jan-2018,3384394-TH1704,512.00,D IRVING T/A BJ TAXIS.
Children and Young Peoples Services,Head of Education,Transport,230008,Contract Hire,10-Jan-2018,3384394-HOW1704,750.00,D IRVING T/A BJ TAXIS.
Children and Young Peoples Services,Head of Education,Transport,230008,Contract Hire,10-Jan-2018,3384396-DI201712,893.00,D&I TAXIS.
Children and Young Peoples Services,Head of Education,Transport,230007,Contract Hire,10-Jan-2018,3384397-1556,640.00,DA TAXIS.
Children and Young Peoples Services,Head of Education,Transport,230006,Contract Hire,10-Jan-2018,3384397-1554,"1,141.00",DA TAXIS.
Children and Young Peoples Services,Head of Education,Transport,230008,Contract Hire,10-Jan-2018,3384397-1557,"1,050.00",DA TAXIS.
Children and Young Peoples Services,Head of Education,Transport,230008,Contract Hire,10-Jan-2018,3384398-253,812.00,DA TRAVEL.
Children and Young Peoples Services,Head of Education,Transport,230008,Contract Hire,10-Jan-2018,3384398-254,992.00,DA TRAVEL.
Children and Young Peoples Services,Head of Education,Transport,230008,Contract Hire,10-Jan-2018,3384398-255,"1,008.00",DA TRAVEL.
Children and Young Peoples Services,Head of Education,Transport,230008,Contract Hire,10-Jan-2018,3384400-3231,"1,056.00",DAVES MINIBUSES.
Children and Young Peoples Services,Head of Education,Transport,230008,Contract Hire,10-Jan-2018,3384400-3232,"1,216.00",DAVES MINIBUSES.
Children and Young Peoples Services,Head of Education,Transport,230008,Contract Hire,10-Jan-2018,3384400-3233,"1,248.00",DAVES MINIBUSES.
Children and Young Peoples Services,Head of Education,Transport,230007,Contract Hire,10-Jan-2018,308744-43,896.00,DAVID WILKINSON...
Children and Young Peoples Services,Head of Early Help Assessment and Safeguarding,Employees,080025,Agency Staff,10-Jan-2018,3384402-1027009,"81,184.33",DE POEL MANAGED SERVICES LTD.
Regeneration and Local Services,Direct Services,Transport,210057,Repair and Maintenance of Vehicles,10-Jan-2018,3384403-96350757,549.34,DENNIS EAGLE LTD T/A TERBERG MATEC (UK) LTD.
Regeneration and Local Services,Direct Services,Transport,210057,Repair and Maintenance of Vehicles,10-Jan-2018,3384403-96351004,533.69,DENNIS EAGLE LTD T/A TERBERG MATEC (UK) LTD.
Regeneration and Local Services,Direct Services,Third Party Payments,430100,Rendered by Private Contractors,10-Jan-2018,3384404-317552,660.38,DENNIS EAGLE LTD.
Regeneration and Local Services,Direct Services,Transport,210057,Repair and Maintenance of Vehicles,10-Jan-2018,3384404-DE11095275,901.53,DENNIS EAGLE LTD.
Resources,Legal & Democratic Services,Supplies and Services,338042,Services,10-Jan-2018,3384405-242462,"9,180.00",DERE STREET BARRISTERS.
Resources,Legal & Democratic Services,Supplies and Services,338042,Services,10-Jan-2018,3384405-333662/INVRR61,660.00,DERE STREET BARRISTERS.
Resources,Legal & Democratic Services,Supplies and Services,338042,Services,10-Jan-2018,3384405-333676/INVLW159,"2,460.00",DERE STREET BARRISTERS.
Resources,Legal & Democratic Services,Supplies and Services,338042,Services,10-Jan-2018,3384405-335073/INVMM283,540.00,DERE STREET BARRISTERS.
Resources,Legal & Democratic Services,Supplies and Services,338042,Services,10-Jan-2018,3384405-335230/INVMM276,"2,880.00",DERE STREET BARRISTERS.
Resources,Legal & Democratic Services,Supplies and Services,338042,Services,10-Jan-2018,3384405-335318/INVLW162,540.00,DERE STREET BARRISTERS.
Resources,Digital and Customer Services,Supplies and Services,332029,Printing Stationery and Gen Off Exps,10-Jan-2018,3384407-21368,573.50,DESIGN X PRESS LTD.
Adult and Health Services,Head of Adults,Transport,230005,Contract Hire,10-Jan-2018,3384408-11/2017-CLS057,"1,078.00",DIANE GOOCH T/A COLLINS TAXIS.
Children and Young Peoples Services,Head of Education,Transport,230007,Contract Hire,10-Jan-2018,3384408-11/2017-3336,"1,518.00",DIANE GOOCH T/A COLLINS TAXIS.
Children and Young Peoples Services,Head of Education,Transport,230007,Contract Hire,10-Jan-2018,3384408-11/2017-3345,"2,156.00",DIANE GOOCH T/A COLLINS TAXIS.
Regeneration and Local Services,Spatial Policy Planning Assets & Environment,Supplies and Services,384199,Miscellaneous Expenses,10-Jan-2018,3384410-FA15313,"5,009.09",DURHAM CATHEDRAL LTD.
Children and Young Peoples Services,Head of Education,Transport,230003,Contract Hire,10-Jan-2018,3384411-25704,"2,160.00",DURHAM CITY COACHES.
Children and Young Peoples Services,Head of Education,Supplies and Services,384302,Miscellaneous Expenses,10-Jan-2018,3384413-000373526,"3,750.00",EARLY EXCELLENCE LTD.
Children and Young Peoples Services,Head of Education,Transport,230007,Contract Hire,10-Jan-2018,3384421-0739,600.00,EN ROUTE TRAVEL.
Children and Young Peoples Services,Head of Education,Transport,230008,Contract Hire,10-Jan-2018,3384421-0740,"1,120.00",EN ROUTE TRAVEL.
Transformation and Partnerships,Partnerships & Community Engagement Div.,Cap Exp on Grants & Other Financial Assistance (REFCUS),918004,Contributions to other bodies,10-Jan-2018,3384422-VOUCHER17AB-4TOG0014TOG04C,"5,118.67",ENDEAVOUR WOODCRAFTS.
Transformation and Partnerships,Partnerships & Community Engagement Div.,Cap Exp on Grants & Other Financial Assistance (REFCUS),918004,Contributions to other bodies,10-Jan-2018,3384423-VOUCHER17AB-4TOG0014TOG05C,"4,752.33",ENTER CIC.
Regeneration and Local Services,Direct Services,Third Party Payments,430100,Rendered by Private Contractors,10-Jan-2018,3384428-4069,"2,864.00",F WARREN (ELECTRICAL) LTD.
Transformation and Partnerships,Partnerships & Community Engagement Div.,Cap Exp on Grants & Other Financial Assistance (REFCUS),918004,Contributions to other bodies,10-Jan-2018,3384430-VOUCHER17AB-4TOG0014TOG03C,"3,576.00",FERRYHILL LADDER CENTRE LTD.
Regeneration and Local Services,Direct Services,Third Party Payments,430120,Rendered by Private Contractors,10-Jan-2018,3384431-CTIN06528355,"6,514.75",FINNING (UK) LTD.
Regeneration and Local Services,Direct Services,Third Party Payments,430120,Rendered by Private Contractors,10-Jan-2018,3384431-CTIN06528356,"3,390.20",FINNING (UK) LTD.
Regeneration and Local Services,Direct Services,Supplies and Services,304221,Equipment and Materials,10-Jan-2018,3384432-1712-170053,724.97,FLAME HEATING SPARES LTD.
Regeneration and Local Services,Culture & Sport,Supplies and Services,338099,Services,10-Jan-2018,3384433-466150,708.34,FLEXIFORM BUSINESS FURNITURE LTD T/A ASGARD SECURE STEEL STORAGE.
Regeneration and Local Services,Direct Services,Transport,210057,Repair and Maintenance of Vehicles,10-Jan-2018,3384434-IN159024,"1,252.00",FM STEELSTOCK LTD.
Regeneration and Local Services,Spatial Policy Planning Assets & Environment,Supplies and Services,384199,Miscellaneous Expenses,10-Jan-2018,3384435-12-2017,"2,000.00",FOREST INVENTORY.
Transformation and Partnerships,Partnerships & Community Engagement Div.,Cap Exp on Grants & Other Financial Assistance (REFCUS),918004,Contributions to other bodies,10-Jan-2018,3384438-VOUCHER17AB-4TOG0014TOG06C,"4,548.00",FRIENDS OF THE MINERS WELFARE.
Regeneration and Local Services,Direct Services,Stock,926004,Stock,10-Jan-2018,3384444-IN197358,"4,134.60",GB LUBRICANTS LTD.
Regeneration and Local Services,Technical Services,Supplies and Services,304221,Equipment and Materials,10-Jan-2018,3384450-00019,500.00,GRAEME HOPPER LTD.
Regeneration and Local Services,Direct Services,Transport,210057,Repair and Maintenance of Vehicles,10-Jan-2018,3384452-142373,639.93,GREENLAY (GRASS MACHINERY) LTD.
Transformation and Partnerships,Comms & Information Management,Supplies and Services,332001,Printing Stationery and Gen Off Exps,10-Jan-2018,3384453-INV0169192,"4,314.00",GV MULTI-MEDIA LTD.
Children and Young Peoples Services,Head of Education,Transport,230006,Contract Hire,10-Jan-2018,3384454-15-F723,730.00,HARDIP SINGH MAHIL T/A AMBER CARS.
Children and Young Peoples Services,Head of Education,Transport,230006,Contract Hire,10-Jan-2018,3384454-15-F729,702.00,HARDIP SINGH MAHIL T/A AMBER CARS.
Regeneration and Local Services,Technical Services,Third Party Payments,430100,Rendered by Private Contractors,10-Jan-2018,3384459-2729,"2,510.28",HIGHWAY CONSTRUCTION SERVICES LTD.
Regeneration and Local Services,Direct Services,Third Party Payments,430100,Rendered by Private Contractors,10-Jan-2018,3384461-71063,681.62,HOGARTH COACHWORKS LTD.
Children and Young Peoples Services,Head of Looked After Provision Permanence and Care Leavers,Third Party Payments,425021,Rendered by Voluntary Organisations,10-Jan-2018,3384462-4394,"3,520.00",HOWARD HOUSE CARE LTD.
Regeneration and Local Services,Technical Services,Stock,926900,Stock in hand-Inventory system,10-Jan-2018,3384463-117655,"7,393.68",HYDRAM ENGINEERING LTD.
Regeneration and Local Services,Technical Services,Third Party Payments,430127,Rendered by Private Contractors,10-Jan-2018,3384466-2441,"2,967.50",IAN C LIDDLE.
Regeneration and Local Services,Technical Services,Third Party Payments,430127,Rendered by Private Contractors,10-Jan-2018,3384466-2442,"3,071.50",IAN C LIDDLE.
Resources,Digital and Customer Services,Supplies and Services,304303,Equipment and Materials,10-Jan-2018,3384469-SIN420289,"2,265.00",INFORMATION & DATA NETWORK SUPPLIES LTD (IDN).
Resources,Digital and Customer Services,Supplies and Services,304303,Equipment and Materials,10-Jan-2018,3384469-SIN420295,568.35,INFORMATION & DATA NETWORK SUPPLIES LTD (IDN).
Regeneration and Local Services,Direct Services,Supplies and Services,338027,Services,10-Jan-2018,3384470-76749,"2,325.00",INITIAL PROJECTS LTD T/A ENITIAL.
Regeneration and Local Services,Economic Development and Housing,Supplies and Services,384700,Miscellaneous Expenses,10-Jan-2018,3384471-RED-01-2018-059,"3,000.00",INNERGLASS LTD.
Regeneration and Local Services,Technical Services,Stock,926900,Stock in hand-Inventory system,10-Jan-2018,3384473-613679,"2,780.40",INSTARMAC GROUP PLC.
Regeneration and Local Services,Direct Services,Transport,210057,Repair and Maintenance of Vehicles,10-Jan-2018,3384475-306712,592.30,IWS GAFFNEY (INDUSTRIAL & WELDING SUPPLIES).
Regeneration and Local Services,Direct Services,Supplies and Services,304221,Equipment and Materials,10-Jan-2018,3384479-BI234132,"3,100.50",JAMES BURRELL LTD.
Children and Young Peoples Services,Head of Looked After Provision Permanence and Care Leavers,Supplies and Services,304259,Equipment and Materials,10-Jan-2018,3384480-33753,976.50,JAMES FLETCHER LTD T/A JAMES FLETCHER MARQUEES.
Children and Young Peoples Services,Head of Education,Transport,230007,Contract Hire,10-Jan-2018,3384484-2717,"2,159.84",JEFF ANDERSON COACHES LTD.
Children and Young Peoples Services,Head of Education,Transport,230007,Contract Hire,10-Jan-2018,3384484-2718,"1,575.68",JEFF ANDERSON COACHES LTD.
Children and Young Peoples Services,Head of Education,Transport,230007,Contract Hire,10-Jan-2018,3384484-2719,"1,159.84",JEFF ANDERSON COACHES LTD.
Children and Young Peoples Services,Head of Education,Transport,230012,Contract Hire,10-Jan-2018,3384487-22/12/17F,960.00,JL EBDON. T/A DIAL-A-CAB.
Children and Young Peoples Services,Head of Education,Transport,230008,Contract Hire,10-Jan-2018,3384487-22/12/17A,"2,208.00",JL EBDON. T/A DIAL-A-CAB.
Children and Young Peoples Services,Head of Education,Transport,230008,Contract Hire,10-Jan-2018,3384487-22/12/17B,952.00,JL EBDON. T/A DIAL-A-CAB.
Children and Young Peoples Services,Head of Education,Transport,230008,Contract Hire,10-Jan-2018,3384487-22/12/17C,840.00,JL EBDON. T/A DIAL-A-CAB.
Children and Young Peoples Services,Head of Education,Transport,230008,Contract Hire,10-Jan-2018,3384487-22/12/17D,"1,372.00",JL EBDON. T/A DIAL-A-CAB.
Children and Young Peoples Services,Head of Education,Transport,230008,Contract Hire,10-Jan-2018,3384487-22/12/17E,"1,232.00",JL EBDON. T/A DIAL-A-CAB.
Children and Young Peoples Services,Head of Education,Transport,230008,Contract Hire,10-Jan-2018,3384487-22/12/17G,"1,606.00",JL EBDON. T/A DIAL-A-CAB.
Children and Young Peoples Services,Head of Education,Transport,230008,Contract Hire,10-Jan-2018,3384487-22/12/17H,660.00,JL EBDON. T/A DIAL-A-CAB.
Regeneration and Local Services,Direct Services,Premises,108099,Service Repairs and Maintenance,10-Jan-2018,3384488-00856,515.60,JN KEARTON.
Regeneration and Local Services,Direct Services,Premises,108099,Service Repairs and Maintenance,10-Jan-2018,3384488-00857,765.20,JN KEARTON.
Regeneration and Local Services,Technical Services,Supplies and Services,304221,Equipment and Materials,10-Jan-2018,3384494-BII243330,"1,306.64",JT DOVE LTD.
Regeneration and Local Services,Technical Services,Supplies and Services,304221,Equipment and Materials,10-Jan-2018,3384494-GOI707/D,715.51,JT DOVE LTD.
Regeneration and Local Services,Technical Services,Supplies and Services,304358,Equipment and Materials,10-Jan-2018,3384497-1919,618.75,KEVIN SNOWDON GROUNDWORKS LTD.
Regeneration and Local Services,Technical Services,Supplies and Services,304358,Equipment and Materials,10-Jan-2018,3384497-1920,610.50,KEVIN SNOWDON GROUNDWORKS LTD.
Regeneration and Local Services,Technical Services,Supplies and Services,304358,Equipment and Materials,10-Jan-2018,3384497-1922,741.00,KEVIN SNOWDON GROUNDWORKS LTD.
Regeneration and Local Services,Technical Services,Supplies and Services,304358,Equipment and Materials,10-Jan-2018,3384497-1923,741.00,KEVIN SNOWDON GROUNDWORKS LTD.
Regeneration and Local Services,Technical Services,Supplies and Services,304358,Equipment and Materials,10-Jan-2018,3384497-1926,"1,123.50",KEVIN SNOWDON GROUNDWORKS LTD.
Regeneration and Local Services,Technical Services,Supplies and Services,304358,Equipment and Materials,10-Jan-2018,3384497-1928,851.00,KEVIN SNOWDON GROUNDWORKS LTD.
Regeneration and Local Services,Technical Services,Supplies and Services,304358,Equipment and Materials,10-Jan-2018,3384497-1929,835.00,KEVIN SNOWDON GROUNDWORKS LTD.
Regeneration and Local Services,Technical Services,Supplies and Services,304358,Equipment and Materials,10-Jan-2018,3384497-1930,716.00,KEVIN SNOWDON GROUNDWORKS LTD.
Regeneration and Local Services,Technical Services,Supplies and Services,304358,Equipment and Materials,10-Jan-2018,3384497-1931,"1,327.50",KEVIN SNOWDON GROUNDWORKS LTD.
Regeneration and Local Services,Technical Services,Supplies and Services,304358,Equipment and Materials,10-Jan-2018,3384497-1932,"1,083.50",KEVIN SNOWDON GROUNDWORKS LTD.
Regeneration and Local Services,Technical Services,Supplies and Services,304358,Equipment and Materials,10-Jan-2018,3384497-1935,690.00,KEVIN SNOWDON GROUNDWORKS LTD.
Regeneration and Local Services,Technical Services,Supplies and Services,304358,Equipment and Materials,10-Jan-2018,3384497-1937,"1,122.00",KEVIN SNOWDON GROUNDWORKS LTD.
Regeneration and Local Services,Technical Services,Supplies and Services,304358,Equipment and Materials,10-Jan-2018,3384497-1938,741.00,KEVIN SNOWDON GROUNDWORKS LTD.
Regeneration and Local Services,Technical Services,Supplies and Services,304358,Equipment and Materials,10-Jan-2018,3384497-1940,716.00,KEVIN SNOWDON GROUNDWORKS LTD.
Regeneration and Local Services,Technical Services,Supplies and Services,304358,Equipment and Materials,10-Jan-2018,3384497-1941,716.00,KEVIN SNOWDON GROUNDWORKS LTD.
Regeneration and Local Services,Technical Services,Supplies and Services,304358,Equipment and Materials,10-Jan-2018,3384497-1942,728.50,KEVIN SNOWDON GROUNDWORKS LTD.
Regeneration and Local Services,Technical Services,Supplies and Services,304358,Equipment and Materials,10-Jan-2018,3384497-1944,718.50,KEVIN SNOWDON GROUNDWORKS LTD.
Regeneration and Local Services,Technical Services,Supplies and Services,304358,Equipment and Materials,10-Jan-2018,3384497-1946,"1,083.50",KEVIN SNOWDON GROUNDWORKS LTD.
Regeneration and Local Services,Technical Services,Supplies and Services,304358,Equipment and Materials,10-Jan-2018,3384497-1947,"1,083.50",KEVIN SNOWDON GROUNDWORKS LTD.
Regeneration and Local Services,Technical Services,Supplies and Services,304358,Equipment and Materials,10-Jan-2018,3384497-1949,678.50,KEVIN SNOWDON GROUNDWORKS LTD.
Regeneration and Local Services,Technical Services,Supplies and Services,304358,Equipment and Materials,10-Jan-2018,3384497-1950,"1,108.00",KEVIN SNOWDON GROUNDWORKS LTD.
Regeneration and Local Services,Technical Services,Supplies and Services,304358,Equipment and Materials,10-Jan-2018,3384497-1951,610.50,KEVIN SNOWDON GROUNDWORKS LTD.
Regeneration and Local Services,Technical Services,Supplies and Services,304358,Equipment and Materials,10-Jan-2018,3384497-1952,"1,347.00",KEVIN SNOWDON GROUNDWORKS LTD.
Regeneration and Local Services,Technical Services,Supplies and Services,304358,Equipment and Materials,10-Jan-2018,3384497-1954,897.00,KEVIN SNOWDON GROUNDWORKS LTD.
Regeneration and Local Services,Technical Services,Supplies and Services,304358,Equipment and Materials,10-Jan-2018,3384497-1955,585.00,KEVIN SNOWDON GROUNDWORKS LTD.
Regeneration and Local Services,Technical Services,Supplies and Services,304358,Equipment and Materials,10-Jan-2018,3384497-1957,690.00,KEVIN SNOWDON GROUNDWORKS LTD.
Regeneration and Local Services,Culture & Sport,Supplies and Services,384199,Miscellaneous Expenses,10-Jan-2018,3384502-1017,"3,200.00",LETS CIRCUS LLP.
Regeneration and Local Services,Direct Services,Supplies and Services,304221,Equipment and Materials,10-Jan-2018,3384508-4175064,853.86,LONDON GENERAL SALES LTD.
Regeneration and Local Services,Direct Services,Transport,210057,Repair and Maintenance of Vehicles,10-Jan-2018,3384509-143914,509.40,LONDONDERRY GARAGE (S.E) LTD.
Regeneration and Local Services,Technical Services,Third Party Payments,430127,Rendered by Private Contractors,10-Jan-2018,3384517-5512,"2,132.00",MAKEPEACE MOTORS.
Regeneration and Local Services,Technical Services,Third Party Payments,430127,Rendered by Private Contractors,10-Jan-2018,3384517-5513,"2,132.00",MAKEPEACE MOTORS.
Regeneration and Local Services,Technical Services,Third Party Payments,430127,Rendered by Private Contractors,10-Jan-2018,3384517-5514,640.00,MAKEPEACE MOTORS.
Regeneration and Local Services,Technical Services,Third Party Payments,430127,Rendered by Private Contractors,10-Jan-2018,3384517-5516,"3,956.00",MAKEPEACE MOTORS.
Regeneration and Local Services,Technical Services,Third Party Payments,430127,Rendered by Private Contractors,10-Jan-2018,3384517-5517,"4,236.00",MAKEPEACE MOTORS.
Regeneration and Local Services,Technical Services,Third Party Payments,430127,Rendered by Private Contractors,10-Jan-2018,3384517-5518,"2,417.00",MAKEPEACE MOTORS.
Children and Young Peoples Services,Head of Education,Transport,230008,Contract Hire,10-Jan-2018,3384518-36,"1,280.00",MALCOLM CARR T/A CARLY CABS.
Regeneration and Local Services,Technical Services,Third Party Payments,430100,Rendered by Private Contractors,10-Jan-2018,3384519-9009062154,"1,650.00",MAMMOET UK LTD.
Children and Young Peoples Services,Head of Education,Transport,230008,Contract Hire,10-Jan-2018,3384525-4-W028,840.00,MR BW YOUNG T/A ESH TAXIS.
Adult and Health Services,Head of Adults,Transport,230005,Contract Hire,10-Jan-2018,3384527-CA112-17,734.80,MR CT WALKER T/A CW TAXIS.
Adult and Health Services,Head of Adults,Transport,230005,Contract Hire,10-Jan-2018,3384527-PG112-17,547.80,MR CT WALKER T/A CW TAXIS.
Children and Young Peoples Services,Head of Education,Transport,230008,Contract Hire,10-Jan-2018,3384527-DT1,564.00,MR CT WALKER T/A CW TAXIS.
Children and Young Peoples Services,Head of Education,Transport,230008,Contract Hire,10-Jan-2018,3384527-DT2,544.50,MR CT WALKER T/A CW TAXIS.
Children and Young Peoples Services,Head of Education,Transport,230008,Contract Hire,10-Jan-2018,3384527-DT3,649.50,MR CT WALKER T/A CW TAXIS.
Children and Young Peoples Services,Head of Education,Transport,230008,Contract Hire,10-Jan-2018,3384527-GP12-17,620.80,MR CT WALKER T/A CW TAXIS.
Children and Young Peoples Services,Head of Education,Transfer Payments,510026,School Children,10-Jan-2018,3384528-JFJANUARY2018,675.00,MR D YOUNG T/A LITTLE TOTS ACADEMY.
Children and Young Peoples Services,Head of Education,Transport,230007,Contract Hire,10-Jan-2018,3384529-76,805.80,MR JOHN ALLINSON T/A AALPHA TAXIS.
Resources,Legal & Democratic Services,Transport,245007,Members etc Travelling,10-Jan-2018,3384530-139000,"1,975.00",MR JONATHAN CLAY (BARRISTER).
Children and Young Peoples Services,Head of Education,Transport,230007,Contract Hire,10-Jan-2018,3384531-1201/17,960.00,MR REES WILKINSON T/A B & L MINIBUS HIRE.
Adult and Health Services,Head of Adults,Transport,230005,Contract Hire,10-Jan-2018,3384532-3001,"1,552.00",MR S BOWERS T/A DH7 TAXIS.
Children and Young Peoples Services,Head of Education,Transport,230008,Contract Hire,10-Jan-2018,3384532-3003,967.00,MR S BOWERS T/A DH7 TAXIS.
Children and Young Peoples Services,Head of Education,Transport,230008,Contract Hire,10-Jan-2018,3384532-3004,"3,088.00",MR S BOWERS T/A DH7 TAXIS.
Regeneration and Local Services,Direct Services,Third Party Payments,430100,Rendered by Private Contractors,10-Jan-2018,3384533-DCC020,"1,200.00",MR WILLIAM MAGUIRE T/A VALLUM LIFTS.
Regeneration and Local Services,Direct Services,Third Party Payments,430100,Rendered by Private Contractors,10-Jan-2018,3384535-SI-10531,"1,714.72",MUNICIPAL VEHICLE SERVICES LTD.
Dedicated Schools Grant,Dedicated Schools Grant,Supplies and Services,372009,Subscriptions,10-Jan-2018,3384537-2028,500.00,NATIONAL ASSOCIATION OF VIRTUAL SCHOOL HEADS.
Transformation and Partnerships,Partnerships & Community Engagement Div.,Supplies and Services,312010,Newspapers Books and Periodicals,10-Jan-2018,3384538-322550/0,"1,063.55",NATIONAL LEAFLET CO LTD.
Resources - C A C,Centrally Administered costs,Supplies and Services,372009,Subscriptions,10-Jan-2018,3384543-INV-1134,"12,000.00",NEW LOCAL GOVERNMENT NETWORK LTD (NLGN).
Regeneration and Local Services,Direct Services,Transport,215005,Running Costs of Vehicles,10-Jan-2018,3384547-293271,"9,689.29",OIL NRG LTD.
Regeneration and Local Services,Direct Services,Transport,215022,Running Costs of Vehicles,10-Jan-2018,3384547-293272,"2,096.80",OIL NRG LTD.
Regeneration and Local Services,Direct Services,Third Party Payments,430100,Rendered by Private Contractors,10-Jan-2018,3384551-1510,"1,416.40",PARAMOUNT CEILINGS & PARTITIONS.
Children and Young Peoples Services,Head of Education,Transport,230008,Contract Hire,10-Jan-2018,3384553-SC-310,"1,120.00",PAUL BURRELL T/A PAUL BURRELL TAXIS.
Regeneration and Local Services,Technical Services,Supplies and Services,304221,Equipment and Materials,10-Jan-2018,3384555-307291,"1,834.88",PEART FENCING LTD.
Regeneration and Local Services,Direct Services,Supplies and Services,304221,Equipment and Materials,10-Jan-2018,3384558-2901741,"1,473.97",PEW ELECTRICAL DISTRIBUTORS LTD.
Regeneration and Local Services,Direct Services,Third Party Payments,430100,Rendered by Private Contractors,10-Jan-2018,3384563-TEE150077,566.85,PIRTEK TYNE & WEAR.
Transformation and Partnerships,Partnerships & Community Engagement Div.,Cap Exp on Grants & Other Financial Assistance (REFCUS),918004,Contributions to other bodies,10-Jan-2018,3384565-VOUCHER17AB-4TOG0014TOG01C,"2,005.00",POSITIVE HORIZONS.
Resources,Digital and Customer Services,Supplies and Services,304245,Equipment and Materials,10-Jan-2018,3384567-9016757,"1,072.26",PREMIER PAPER GROUP LTD.
Regeneration and Local Services,Direct Services,Supplies and Services,338078,Services,10-Jan-2018,3384568-105666,"3,077.23",PROTECTOR SECURITY GROUP LTD.
Regeneration and Local Services,Economic Development and Housing,Supplies and Services,338078,Services,10-Jan-2018,3384568-105668,"5,542.29",PROTECTOR SECURITY GROUP LTD.
Regeneration and Local Services,Direct Services,Supplies and Services,338078,Services,10-Jan-2018,3384568-105669,"7,520.90",PROTECTOR SECURITY GROUP LTD.
Regeneration and Local Services,Transport and Contracted Services,Third Party Payments,430100,Rendered by Private Contractors,10-Jan-2018,3384572-105652,"1,414.68",QW SECURITY LTD.
Regeneration and Local Services,Transport and Contracted Services,Third Party Payments,430100,Rendered by Private Contractors,10-Jan-2018,3384572-105653,"1,020.04",QW SECURITY LTD.
Regeneration and Local Services,Transport and Contracted Services,Third Party Payments,430100,Rendered by Private Contractors,10-Jan-2018,3384572-105670,"5,697.73",QW SECURITY LTD.
Regeneration and Local Services,Direct Services,Supplies and Services,338078,Services,10-Jan-2018,3384572-105665,"6,110.26",QW SECURITY LTD.
Regeneration and Local Services,Direct Services,Third Party Payments,430100,Rendered by Private Contractors,10-Jan-2018,3384573-31884,"10,130.00",R PARKER WALL & FLOOR TILING CONTRACTOR.
Resources,Legal & Democratic Services,Supplies and Services,338042,Services,10-Jan-2018,308751-247528/07/12/2017,780.00,REDACTED - PAYMENT TO INDIVIDUAL
Resources,Legal & Democratic Services,Supplies and Services,338042,Services,10-Jan-2018,308757-INV/NG98,"1,100.00",REDACTED - PAYMENT TO INDIVIDUAL
Regeneration and Local Services,Economic Development and Housing,Supplies and Services,384999,Miscellaneous Expenses,10-Jan-2018,3384457-HMK001,500.00,REDACTED - PAYMENT TO INDIVIDUAL
Regeneration and Local Services,Technical Services,Third Party Payments,430100,Rendered by Private Contractors,10-Jan-2018,3384585-SC17-1771,"5,621.00",SAFECOTE LTD.
Regeneration and Local Services,Direct Services,Third Party Payments,430100,Rendered by Private Contractors,10-Jan-2018,3384588-97941769,"11,263.00",SCHNEIDER ELECTRIC LTD.
Regeneration and Local Services,Technical Services,Third Party Payments,430100,Rendered by Private Contractors,10-Jan-2018,3384590-SIL/Z1855/2824,600.00,SEALANE INSHORE LTD.
Adult and Health Services,Head of Adults,Supplies and Services,308011,Furniture,10-Jan-2018,308782-1074-0123,"2,110.00",SENSORYPLUS LTD.
Regeneration and Local Services,Technical Services,Stock,926900,Stock in hand-Inventory system,10-Jan-2018,3384600-191364,504.00,SNAPFAST.
Regeneration and Local Services,Direct Services,Transport,210057,Repair and Maintenance of Vehicles,10-Jan-2018,3384601-INV336735,537.87,SNOWBALLS LTD.
Regeneration and Local Services,Transport and Contracted Services,Construction Work,908105,Construction work,10-Jan-2018,3384610-90010677,"108,941.89",SWARCO TRAFFIC LTD.
Regeneration and Local Services,Technical Services,Supplies and Services,304221,Equipment and Materials,10-Jan-2018,3384614-9037403782,"1,047.74",TARMAC TRADING LTD.
Regeneration and Local Services,Direct Services,Third Party Payments,430100,Rendered by Private Contractors,10-Jan-2018,3384615-25555408,"2,124.86",TC HARRISON JCB.
Dedicated Schools Grant,Dedicated Schools Grant,Supplies and Services,338091,Services,10-Jan-2018,3384617-4810010655,"4,602.92",TEES ESK & WEAR VALLEYS NHS FOUNDATION TRUST.
Dedicated Schools Grant,Dedicated Schools Grant,Supplies and Services,338091,Services,10-Jan-2018,3384617-4810011559,920.58,TEES ESK & WEAR VALLEYS NHS FOUNDATION TRUST.
Regeneration and Local Services,Direct Services,Third Party Payments,430100,Rendered by Private Contractors,10-Jan-2018,3384620-C09570,503.88,TH WHITE LTD.
Regeneration and Local Services,Culture & Sport,Supplies and Services,338047,Services,10-Jan-2018,3384621-136265,"1,152.00",THE AGENCY (LONDON) LTD.
Regeneration and Local Services,Direct Services,Supplies and Services,304221,Equipment and Materials,10-Jan-2018,3384627-113226,"1,768.06",TOMMY WARDLE.
Regeneration and Local Services,Technical Services,Supplies and Services,304221,Equipment and Materials,10-Jan-2018,3384628-122642,"1,785.00",TP ELECTRICAL SUPPLIES & FIXINGS LTD.
Regeneration and Local Services,Culture & Sport,Third Party Payments,430100,Rendered by Private Contractors,10-Jan-2018,3384629-4100601496,"3,947.50",TREVOR BURN FENCING LTD.
Resources,Financial Services,Supplies and Services,384199,Miscellaneous Expenses,10-Jan-2018,3384630-16306R,"2,706.00",TROJAN CONSULTANTS LTD.
Dedicated Schools Grant,Dedicated Schools Grant,Supplies and Services,372009,Subscriptions,10-Jan-2018,3384631-22738,583.30,TWINKL EDUCATIONAL PUBLISHING LTD.
Regeneration and Local Services,Technical Services,Supplies and Services,304221,Equipment and Materials,10-Jan-2018,3384632-181752,"1,109.54",TYNEDALE ROADSTONE LTD.
Regeneration and Local Services,Technical Services,Supplies and Services,304221,Equipment and Materials,10-Jan-2018,3384632-181753,543.10,TYNEDALE ROADSTONE LTD.
Regeneration and Local Services,Technical Services,Supplies and Services,304221,Equipment and Materials,10-Jan-2018,3384632-181754,809.77,TYNEDALE ROADSTONE LTD.
Regeneration and Local Services,Technical Services,Supplies and Services,304221,Equipment and Materials,10-Jan-2018,3384632-181757,"1,012.56",TYNEDALE ROADSTONE LTD.
Regeneration and Local Services,Technical Services,Supplies and Services,304221,Equipment and Materials,10-Jan-2018,3384632-181759,673.28,TYNEDALE ROADSTONE LTD.
Regeneration and Local Services,Technical Services,Supplies and Services,304221,Equipment and Materials,10-Jan-2018,3384632-181761,692.48,TYNEDALE ROADSTONE LTD.
Regeneration and Local Services,Technical Services,Supplies and Services,304221,Equipment and Materials,10-Jan-2018,3384632-181769,934.40,TYNEDALE ROADSTONE LTD.
Regeneration and Local Services,Technical Services,Third Party Payments,430100,Rendered by Private Contractors,10-Jan-2018,3384635-150,"1,407.08",VINOVIUM ASSOCIATES LTD.
Regeneration and Local Services,Technical Services,Premises,150015,Apportioned Exps of Operational Blds,10-Jan-2018,3384644-717185,626.78,WERNICK HIRE LTD.
Regeneration and Local Services,Direct Services,Supplies and Services,304221,Equipment and Materials,10-Jan-2018,3384647-48607739,648.98,WOLSELEY UK LTD.
Regeneration and Local Services,Technical Services,Stock,926900,Stock in hand-Inventory system,10-Jan-2018,3384647-48721048,652.18,WOLSELEY UK LTD.
Transformation and Partnerships,Partnerships & Community Engagement Div.,Cap Exp on Grants & Other Financial Assistance (REFCUS),918004,Contributions to other bodies,10-Jan-2018,3384648-VOUCHER17AB-TEES001CSG26,"1,000.00",YMCA TEESDALE.
Regeneration and Local Services,Technical Services,Supplies and Services,304358,Equipment and Materials,10-Jan-2018,3384650-6844,727.25,YOULL CONSTRUCTION LTD.
Regeneration and Local Services,Technical Services,Supplies and Services,304358,Equipment and Materials,10-Jan-2018,3384650-6847,"1,031.25",YOULL CONSTRUCTION LTD.
Regeneration and Local Services,Technical Services,Supplies and Services,304358,Equipment and Materials,10-Jan-2018,3384650-6848,706.25,YOULL CONSTRUCTION LTD.
Children and Young Peoples Services,Head of Education,Transport,230008,Contract Hire,11-Jan-2018,3384654-N20311217,"1,760.00",1ST AID COMMERCIALS LTD.
Children and Young Peoples Services,Head of Education,Transport,230006,Contract Hire,11-Jan-2018,3384666-121707,640.00,24/7 TAXI SERVICES LTD.
Children and Young Peoples Services,Head of Education,Transport,230006,Contract Hire,11-Jan-2018,3384666-121710,585.00,24/7 TAXI SERVICES LTD.
Children and Young Peoples Services,Head of Education,Transport,230008,Contract Hire,11-Jan-2018,3384666-121704,"2,000.00",24/7 TAXI SERVICES LTD.
Children and Young Peoples Services,Head of Education,Transport,230008,Contract Hire,11-Jan-2018,3384666-121705,"1,372.00",24/7 TAXI SERVICES LTD.
Children and Young Peoples Services,Head of Education,Transport,230008,Contract Hire,11-Jan-2018,3384666-121706,808.50,24/7 TAXI SERVICES LTD.
Children and Young Peoples Services,Head of Education,Transport,230008,Contract Hire,11-Jan-2018,3384666-121712,"1,121.40",24/7 TAXI SERVICES LTD.
Children and Young Peoples Services,Head of Education,Transport,230009,Contract Hire,11-Jan-2018,3384695-NOVEMBER04/G028,825.00,A & P TAXIS.
Adult and Health Services,Head of Adults,Transport,230005,Contract Hire,11-Jan-2018,3384699-AA1457,853.92,AA MINIBUS HIRE.
Children and Young Peoples Services,Head of Education,Transport,230008,Contract Hire,11-Jan-2018,3384699-AA1453,"1,061.92",AA MINIBUS HIRE.
Children and Young Peoples Services,Head of Education,Transport,230008,Contract Hire,11-Jan-2018,3384699-AA1454,613.92,AA MINIBUS HIRE.
Children and Young Peoples Services,Head of Education,Transport,230008,Contract Hire,11-Jan-2018,3384699-AA1456,894.03,AA MINIBUS HIRE.
Adult and Health Services,Head of Adults,Transport,230005,Contract Hire,11-Jan-2018,3384700-Q21/BC,500.00,AABAT TAXIS.
Adult and Health Services,Head of Adults,Transport,230005,Contract Hire,11-Jan-2018,3384700-Q6/AC,665.00,AABAT TAXIS.
Children and Young Peoples Services,Head of Education,Transport,230007,Contract Hire,11-Jan-2018,3384700-Q10/SD,"1,520.00",AABAT TAXIS.
Children and Young Peoples Services,Head of Education,Transport,230006,Contract Hire,11-Jan-2018,3384700-Q19/SX,"1,615.00",AABAT TAXIS.
Children and Young Peoples Services,Head of Education,Transport,230006,Contract Hire,11-Jan-2018,3384700-Q4/ST,"1,512.00",AABAT TAXIS.
Children and Young Peoples Services,Head of Education,Transport,230012,Contract Hire,11-Jan-2018,3384700-Q18/SS,"1,024.00",AABAT TAXIS.
Children and Young Peoples Services,Head of Education,Transport,230008,Contract Hire,11-Jan-2018,3384700-Q1/SC,"1,330.00",AABAT TAXIS.
Children and Young Peoples Services,Head of Education,Transport,230008,Contract Hire,11-Jan-2018,3384700-Q11/SG,944.00,AABAT TAXIS.
Children and Young Peoples Services,Head of Education,Transport,230008,Contract Hire,11-Jan-2018,3384700-Q12/SA,"1,920.00",AABAT TAXIS.
Children and Young Peoples Services,Head of Education,Transport,230008,Contract Hire,11-Jan-2018,3384700-Q13/SL,"1,520.00",AABAT TAXIS.
Children and Young Peoples Services,Head of Education,Transport,230008,Contract Hire,11-Jan-2018,3384700-Q15/SP,"1,920.00",AABAT TAXIS.
Children and Young Peoples Services,Head of Education,Transport,230008,Contract Hire,11-Jan-2018,3384700-Q17/SR,"1,170.00",AABAT TAXIS.
Children and Young Peoples Services,Head of Education,Transport,230008,Contract Hire,11-Jan-2018,3384700-Q2/SK,"1,050.00",AABAT TAXIS.
Children and Young Peoples Services,Head of Education,Transport,230008,Contract Hire,11-Jan-2018,3384700-Q3/SN,840.00,AABAT TAXIS.
Children and Young Peoples Services,Head of Education,Transport,230008,Contract Hire,11-Jan-2018,3384700-Q5/SV,686.00,AABAT TAXIS.
Children and Young Peoples Services,Head of Education,Transport,230008,Contract Hire,11-Jan-2018,3384700-Q7/SB,"1,039.50",AABAT TAXIS.
Children and Young Peoples Services,Head of Education,Transport,230008,Contract Hire,11-Jan-2018,3384700-Q8/SH,"1,520.00",AABAT TAXIS.
Children and Young Peoples Services,Head of Education,Transport,230008,Contract Hire,11-Jan-2018,3384700-Q9/SJ,"1,379.50",AABAT TAXIS.
Children and Young Peoples Services,Head of Education,Transport,230008,Contract Hire,11-Jan-2018,3384701-0371,"1,264.00",ABC & OUSTON CABS.
Children and Young Peoples Services,Head of Education,Transport,230007,Contract Hire,11-Jan-2018,3384712-178AT,790.00,AMBER TRAVEL.
Regeneration and Local Services,Culture & Sport,Supplies and Services,304252,Equipment and Materials,11-Jan-2018,3384714-70018531,"1,380.94",APPLIED TRADING LTD.
Children and Young Peoples Services,Head of Education,Transport,230012,Contract Hire,11-Jan-2018,3384716-DEC2017-01,807.00,ARMSTRONG`S TAXIS.
Children and Young Peoples Services,Head of Education,Transport,230007,Contract Hire,11-Jan-2018,3384717-625,742.50,AT TAXIS LTD.
Children and Young Peoples Services,Head of Education,Transport,230008,Contract Hire,11-Jan-2018,3384717-624,"1,246.00",AT TAXIS LTD.
Dedicated Schools Grant,Dedicated Schools Grant,Transport,230010,Contract Hire,11-Jan-2018,3384717-626,"1,090.20",AT TAXIS LTD.
Children and Young Peoples Services,Head of Education,Transport,230008,Contract Hire,11-Jan-2018,3384718-DCC1DEC17,"1,680.00",ATLAS TAXIS BISHOP AUCKLAND.
Children and Young Peoples Services,Head of Education,Transport,230007,Contract Hire,11-Jan-2018,3384719-03672,"1,292.70",ATLAS TAXIS CONSETT.
Children and Young Peoples Services,Head of Education,Transport,230008,Contract Hire,11-Jan-2018,3384722-SMITH2/DECEMBER17,768.00,BEELINE PRIVATE HIRE.
Adult and Health Services,Head of Adults,Transport,230005,Contract Hire,11-Jan-2018,3384729-1489,936.50,BOBBY DOVE.
Children and Young Peoples Services,Head of Education,Transport,230008,Contract Hire,11-Jan-2018,3384729-7001,"1,200.00",BOBBY DOVE.
Children and Young Peoples Services,Head of Education,Transport,230008,Contract Hire,11-Jan-2018,3384729-7002,"2,463.00",BOBBY DOVE.
Transformation and Partnerships,Partnerships & Community Engagement Div.,Cap Exp on Grants & Other Financial Assistance (REFCUS),918004,Contributions to other bodies,11-Jan-2018,3384731-VOUCHER17AB-TEES001CSG22,"1,000.00",BOWES HUTCHINSON`S CE AIDED PRIMARY SCHOOL FUND.
Resources,Resources Management,Supplies and Services,384197,Miscellaneous Expenses,11-Jan-2018,3384732-A0014499,579.38,BOX IT NORTH.
Children and Young Peoples Services,Head of Education,Transport,230008,Contract Hire,11-Jan-2018,3384735-NO4,990.00,BRIAN PURVIS T/A BJ`S TAXIS.
Regeneration and Local Services,Transport and Contracted Services,Supplies and Services,304245,Equipment and Materials,11-Jan-2018,3384738-52820,"3,840.00",BUDDI.
Regeneration and Local Services,Transport and Contracted Services,Supplies and Services,304245,Equipment and Materials,11-Jan-2018,3384738-52821,"2,250.00",BUDDI.
Regeneration and Local Services,Transport and Contracted Services,Construction Work,908105,Construction work,11-Jan-2018,3384740-N024488,"2,733.48",BUS SHELTERS LTD.
Adult and Health Services,Head of Adults,Supplies and Services,338366,Services,11-Jan-2018,3384742-46517,"3,171.53",CARE ABILITY.
Children and Young Peoples Services,Head of Looked After Provision Permanence and Care Leavers,Supplies and Services,304259,Equipment and Materials,11-Jan-2018,3384746-20780,982.80,CELL SECURITY SYSTEMS LTD.
Children and Young Peoples Services,Head of Looked After Provision Permanence and Care Leavers,Third Party Payments,440038,Other Third Party Payments,11-Jan-2018,3384750-1719,857.90,CITY OF SUNDERLAND YMCA LTD.
Children and Young Peoples Services,Head of Education,Transport,230007,Contract Hire,11-Jan-2018,3384751-46101,"2,000.00",CJ GRIERSON T/A GRIERSONS COACHES.
Children and Young Peoples Services,Head of Education,Transport,230003,Contract Hire,11-Jan-2018,3384751-46099,"2,384.00",CJ GRIERSON T/A GRIERSONS COACHES.
Children and Young Peoples Services,Head of Education,Transport,230003,Contract Hire,11-Jan-2018,3384751-46100,"5,952.00",CJ GRIERSON T/A GRIERSONS COACHES.
Children and Young Peoples Services,Head of Education,Transport,230003,Contract Hire,11-Jan-2018,3384751-46102,"2,240.00",CJ GRIERSON T/A GRIERSONS COACHES.
Children and Young Peoples Services,Head of Education,Transport,230003,Contract Hire,11-Jan-2018,3384751-46103,"2,080.00",CJ GRIERSON T/A GRIERSONS COACHES.
Regeneration and Local Services,Direct Services,Supplies and Services,342051,Computers and Communications,11-Jan-2018,3384753-CSS2912,"2,350.00",CLEARSKIES SOFTWARE.
Children and Young Peoples Services,Head of Education,Transport,230007,Contract Hire,11-Jan-2018,3384754-1011,"1,050.00",CLIVE HUBERY.
Resources,Legal & Democratic Services,Supplies and Services,384151,Miscellaneous Expenses,11-Jan-2018,3384756-3980027029,"24,955.92",CO DURHAM & DARLINGTON NHS FOUNDATION TRUST.
Children and Young Peoples Services,Head of Education,Supplies and Services,342222,Computers and Communications,11-Jan-2018,3384757-14844,"15,500.00",COGNISOFT.
Transformation and Partnerships,Partnerships & Community Engagement Div.,Cap Exp on Grants & Other Financial Assistance (REFCUS),918004,Contributions to other bodies,11-Jan-2018,3384762-VOUCHER17AB-TEES001CSG13,500.00,COPLEY VILLAGE HALL ASSOCIATION.
Regeneration and Local Services,Economic Development and Housing,Premises,120021,Energy Costs,11-Jan-2018,3384765-12673082,785.06,CORONA ENERGY RETAIL 2 LTD.
Adult and Health Services,Public Health,Third Party Payments,460803,Contract Payments,11-Jan-2018,3384770-TVDA00215,"10,000.00",CRUSE BEREAVEMENT CARE.
Adult and Health Services,Public Health,Third Party Payments,460803,Contract Payments,11-Jan-2018,3384770-TVDA00225,"16,667.00",CRUSE BEREAVEMENT CARE.
Children and Young Peoples Services,Head of Education,Transport,230008,Contract Hire,11-Jan-2018,3384772-04,900.00,D CROOK T/A CK TAXIS.
Regeneration and Local Services,Direct Services,Supplies and Services,304221,Equipment and Materials,11-Jan-2018,3384773-4957,864.00,D STEWART SCAFFOLDING LTD.
Regeneration and Local Services,Direct Services,Third Party Payments,430100,Rendered by Private Contractors,11-Jan-2018,3384773-4958,"3,460.00",D STEWART SCAFFOLDING LTD.
Regeneration and Local Services,Direct Services,Third Party Payments,430100,Rendered by Private Contractors,11-Jan-2018,3384773-4959,"2,000.00",D STEWART SCAFFOLDING LTD.
Children and Young Peoples Services,Head of Education,Transport,230008,Contract Hire,11-Jan-2018,3384776-3230,"1,185.00",DAVES MINIBUSES.
Resources,Legal & Democratic Services,Supplies and Services,338042,Services,11-Jan-2018,3384778-333723/INVCF111,"2,160.00",DERE STREET BARRISTERS.
Children and Young Peoples Services,Head of Education,Transport,230008,Contract Hire,11-Jan-2018,3384782-E011/03,"1,575.00",DEXTERS PRIVATE HIRE.
Regeneration and Local Services,Culture & Sport,Supplies and Services,384199,Miscellaneous Expenses,11-Jan-2018,3384787-0171217168XMS9/1/18,900.00,DUSK `TIL DAWN ENTERTAINMENT LTD.
Regeneration and Local Services,Direct Services,Supplies and Services,304221,Equipment and Materials,11-Jan-2018,3384790-4698686,873.00,EASTERN SHIRES PURCHASING ORGANISATION.
Regeneration and Local Services,Technical Services,Supplies and Services,304221,Equipment and Materials,11-Jan-2018,3384796-1712\153,"1,161.27",EPPLETON QUARRY PRODUCTS LTD.
Regeneration and Local Services,Direct Services,Premises,145009,Cleaning and Domestic Supplies,11-Jan-2018,3384801-MI89569,"1,131.15",FCC RECYCLING (UK)  LTD.
Transformation and Partnerships,Partnerships & Community Engagement Div.,Cap Exp on Grants & Other Financial Assistance (REFCUS),918004,Contributions to other bodies,11-Jan-2018,3384802-VOUCHER17AB-4TOG0014TOG02C,"5,000.00",FERRYHILL TOWN COUNCIL.
Regeneration and Local Services,Direct Services,Supplies and Services,304221,Equipment and Materials,11-Jan-2018,3384807-1712-170692,"1,336.48",FLAME HEATING SPARES LTD.
Children and Young Peoples Services,Head of Education,Transport,230007,Contract Hire,11-Jan-2018,3384808-0405,560.00,FMR SILVA PITA.
Children and Young Peoples Services,Head of Education,Transport,230007,Contract Hire,11-Jan-2018,3384808-0406,544.00,FMR SILVA PITA.
Children and Young Peoples Services,Head of Education,Transport,230008,Contract Hire,11-Jan-2018,3384808-0404,"1,184.00",FMR SILVA PITA.
Children and Young Peoples Services,Head of Education,Transport,230008,Contract Hire,11-Jan-2018,3384810-2009,"1,260.00",FRANK ATKINSON T/A FJ MINIBUS TRAVEL.
Children and Young Peoples Services,Head of Looked After Provision Permanence and Care Leavers,Premises,108099,Service Repairs and Maintenance,11-Jan-2018,3384811-4/617757,854.50,FRED WILLIAMSON & SONS LTD.*
Regeneration and Local Services,Direct Services,Third Party Payments,430100,Rendered by Private Contractors,11-Jan-2018,3384813-10526,"1,865.00",FROSTREE LTD.
Regeneration and Local Services,Direct Services,Third Party Payments,430100,Rendered by Private Contractors,11-Jan-2018,3384813-10527,"1,865.00",FROSTREE LTD.
Children and Young Peoples Services,Head of Education,Transport,230007,Contract Hire,11-Jan-2018,3384815-19978/3042,"2,317.50",GARNETTS LTD (COACHES).
Children and Young Peoples Services,Head of Education,Transport,230007,Contract Hire,11-Jan-2018,3384815-19978/3195,"2,092.50",GARNETTS LTD (COACHES).
Children and Young Peoples Services,Head of Education,Transport,230007,Contract Hire,11-Jan-2018,3384815-19980,"1,888.00",GARNETTS LTD (COACHES).
Children and Young Peoples Services,Head of Education,Transport,230007,Contract Hire,11-Jan-2018,3384815-19982/4034,"1,722.00",GARNETTS LTD (COACHES).
Children and Young Peoples Services,Head of Education,Transport,230007,Contract Hire,11-Jan-2018,3384815-19982/4035,"1,722.00",GARNETTS LTD (COACHES).
Children and Young Peoples Services,Head of Education,Transport,230007,Contract Hire,11-Jan-2018,3384815-19982/4036,"1,722.00",GARNETTS LTD (COACHES).
Children and Young Peoples Services,Head of Education,Transport,230007,Contract Hire,11-Jan-2018,3384815-19982/4037,"3,444.00",GARNETTS LTD (COACHES).
Children and Young Peoples Services,Head of Education,Transport,230007,Contract Hire,11-Jan-2018,3384815-19982/4038,"1,722.00",GARNETTS LTD (COACHES).
Children and Young Peoples Services,Head of Education,Transport,230007,Contract Hire,11-Jan-2018,3384815-19984,"2,160.00",GARNETTS LTD (COACHES).
Children and Young Peoples Services,Head of Education,Transport,230007,Contract Hire,11-Jan-2018,3384815-19986,"2,677.50",GARNETTS LTD (COACHES).
Children and Young Peoples Services,Head of Education,Transport,230007,Contract Hire,11-Jan-2018,3384815-19987,"1,864.00",GARNETTS LTD (COACHES).
Children and Young Peoples Services,Head of Education,Transport,230007,Contract Hire,11-Jan-2018,3384815-19988,"3,376.00",GARNETTS LTD (COACHES).
Children and Young Peoples Services,Head of Education,Transport,230003,Contract Hire,11-Jan-2018,3384815-19974/3301,"2,385.00",GARNETTS LTD (COACHES).
Children and Young Peoples Services,Head of Education,Transport,230003,Contract Hire,11-Jan-2018,3384815-19974/3303,"2,385.00",GARNETTS LTD (COACHES).
Children and Young Peoples Services,Head of Education,Transport,230003,Contract Hire,11-Jan-2018,3384815-19974/3335,"2,167.50",GARNETTS LTD (COACHES).
Children and Young Peoples Services,Head of Education,Transport,230003,Contract Hire,11-Jan-2018,3384815-19979,"2,544.00",GARNETTS LTD (COACHES).
Children and Young Peoples Services,Head of Education,Transport,230003,Contract Hire,11-Jan-2018,3384815-19981/3004,"2,224.00",GARNETTS LTD (COACHES).
Children and Young Peoples Services,Head of Education,Transport,230003,Contract Hire,11-Jan-2018,3384815-19981/3008,"2,384.00",GARNETTS LTD (COACHES).
Children and Young Peoples Services,Head of Education,Transport,230003,Contract Hire,11-Jan-2018,3384815-19981/3203,"2,224.00",GARNETTS LTD (COACHES).
Children and Young Peoples Services,Head of Education,Transport,230003,Contract Hire,11-Jan-2018,3384815-19981/3333,"1,888.00",GARNETTS LTD (COACHES).
Children and Young Peoples Services,Head of Education,Transport,230003,Contract Hire,11-Jan-2018,3384815-19984/3020,"2,175.00",GARNETTS LTD (COACHES).
Children and Young Peoples Services,Head of Education,Transport,230003,Contract Hire,11-Jan-2018,3384815-19984/3024,"2,085.00",GARNETTS LTD (COACHES).
Children and Young Peoples Services,Head of Education,Transport,230003,Contract Hire,11-Jan-2018,3384815-19984/3026,"1,935.00",GARNETTS LTD (COACHES).
Children and Young Peoples Services,Head of Education,Transport,230003,Contract Hire,11-Jan-2018,3384815-19984/3027,"2,085.00",GARNETTS LTD (COACHES).
Children and Young Peoples Services,Head of Education,Transport,230003,Contract Hire,11-Jan-2018,3384815-19984/3028,"2,160.00",GARNETTS LTD (COACHES).
Children and Young Peoples Services,Head of Education,Transport,230008,Contract Hire,11-Jan-2018,3384815-19983,"1,120.00",GARNETTS LTD (COACHES).
Children and Young Peoples Services,Head of Education,Transport,230003,Contract Hire,11-Jan-2018,3384817-4246,"1,275.68",GEM TRAVEL.
Children and Young Peoples Services,Head of Education,Transport,230008,Contract Hire,11-Jan-2018,3384821-015-DEC17,"1,088.00",GMC TAXIS NORTH EAST.
Children and Young Peoples Services,Head of Education,Transport,230008,Contract Hire,11-Jan-2018,3384821-058,"1,109.00",GMC TAXIS NORTH EAST.
Adult and Health Services,Head of Adults,Supplies and Services,308011,Furniture,11-Jan-2018,3384822-133053,562.95,GODFREY SYRETT LTD.
Regeneration and Local Services,Direct Services,Third Party Payments,430100,Rendered by Private Contractors,11-Jan-2018,3384823-INV057659,856.00,GOTT TECHNICAL SERVICES LTD.
Children and Young Peoples Services,Head of Education,Transport,230008,Contract Hire,11-Jan-2018,3384824-000039,"1,350.00",GP TAXIS.
Regeneration and Local Services,Culture & Sport,Supplies and Services,338047,Services,11-Jan-2018,3384825-GALA2,"1,082.50",GRACE CAMPBELL (COSTUME DESIGNER).
Regeneration and Local Services,Direct Services,Premises,145023,Cleaning and Domestic Supplies,11-Jan-2018,3384827-06/715455,"2,673.40",GREENHAM TRADING LTD.
Regeneration and Local Services,Culture & Sport,Supplies and Services,338047,Services,11-Jan-2018,3384828-FBC,600.00,GROWLING CLOWN.
Regeneration and Local Services,Spatial Policy Planning Assets & Environment,Supplies and Services,384199,Miscellaneous Expenses,11-Jan-2018,3384833-420/1718,"4,784.00",HAREHOPE QUARRY PROJECT LTD.
Regeneration and Local Services,Culture & Sport,Supplies and Services,336005,Advertising,11-Jan-2018,3384835-0000075169,"3,263.00",HARRISON EXTERNAL DISPLAY SYSTEMS.
Children and Young Peoples Services,Head of Education,Transport,230008,Contract Hire,11-Jan-2018,3384836-HT304,"1,428.00",HARRY`S TAXI`S.
Children and Young Peoples Services,Head of Education,Transport,230008,Contract Hire,11-Jan-2018,3384836-HT305,840.00,HARRY`S TAXI`S.
Children and Young Peoples Services,Head of Education,Transport,230008,Contract Hire,11-Jan-2018,3384836-HT306,"1,820.00",HARRY`S TAXI`S.
Children and Young Peoples Services,Head of Education,Transport,230008,Contract Hire,11-Jan-2018,3384836-HT307,"2,080.00",HARRY`S TAXI`S.
Children and Young Peoples Services,Head of Education,Transport,230008,Contract Hire,11-Jan-2018,3384836-HT308,"1,350.00",HARRY`S TAXI`S.
Children and Young Peoples Services,Head of Education,Transport,230008,Contract Hire,11-Jan-2018,3384837-15-DEC17,630.00,HENRY FOREMAN T/A HENRY`S TAXIS.
Regeneration and Local Services,Economic Development and Housing,Cap Exp on Grants & Other Financial Assistance (REFCUS),918401,Capital grants,11-Jan-2018,3384838-RED-01-2018-072,"5,350.00",HES GROUP UK LTD.
Regeneration and Local Services,Economic Development and Housing,Cap Exp on Grants & Other Financial Assistance (REFCUS),918401,Capital grants,11-Jan-2018,3384838-RED-01-2018-073,"2,949.00",HES GROUP UK LTD.
Regeneration and Local Services,Economic Development and Housing,Cap Exp on Grants & Other Financial Assistance (REFCUS),918401,Capital grants,11-Jan-2018,3384838-RED-01-2018-074,"4,303.00",HES GROUP UK LTD.
Regeneration and Local Services,Culture & Sport,Supplies and Services,338047,Services,11-Jan-2018,3384839-HPE302,"3,293.15",HIGGLEDY PIGGLEDY ENTERPRISES.
Children and Young Peoples Services,Head of Education,Transport,230008,Contract Hire,11-Jan-2018,3384840-N054-DEC,"1,120.00",HIPPY`S TAXI.
Children and Young Peoples Services,Head of Education,Transport,230007,Contract Hire,11-Jan-2018,3384841-12820,"1,272.00",HODGSONS COACH OPERATORS LTD.
Children and Young Peoples Services,Head of Education,Transport,230007,Contract Hire,11-Jan-2018,3384841-12825,"1,512.00",HODGSONS COACH OPERATORS LTD.
Children and Young Peoples Services,Head of Education,Transport,230007,Contract Hire,11-Jan-2018,3384841-12826,"1,344.00",HODGSONS COACH OPERATORS LTD.
Children and Young Peoples Services,Head of Education,Transport,230007,Contract Hire,11-Jan-2018,3384841-12828,892.50,HODGSONS COACH OPERATORS LTD.
Children and Young Peoples Services,Head of Education,Transport,230007,Contract Hire,11-Jan-2018,3384841-12833,"1,272.00",HODGSONS COACH OPERATORS LTD.
Children and Young Peoples Services,Head of Education,Transport,230007,Contract Hire,11-Jan-2018,3384841-12834,"1,275.20",HODGSONS COACH OPERATORS LTD.
Children and Young Peoples Services,Head of Education,Transport,230007,Contract Hire,11-Jan-2018,3384841-12837,"1,168.00",HODGSONS COACH OPERATORS LTD.
Children and Young Peoples Services,Head of Education,Transport,230007,Contract Hire,11-Jan-2018,3384841-12838,869.00,HODGSONS COACH OPERATORS LTD.
Children and Young Peoples Services,Head of Education,Transport,230008,Contract Hire,11-Jan-2018,3384843-INV176,"1,092.00",HORNDALE TAXIS LTD.
Regeneration and Local Services,Technical Services,Stock,926900,Stock in hand-Inventory system,11-Jan-2018,3384844-117722,"1,349.64",HYDRAM ENGINEERING LTD.
Children and Young Peoples Services,Head of Education,Transport,230008,Contract Hire,11-Jan-2018,3384845-IR1712001,"1,425.00",I & R EXECUTIVE TRAVEL.
Children and Young Peoples Services,Head of Education,Transport,230008,Contract Hire,11-Jan-2018,3384845-IR1712002,"1,616.00",I & R EXECUTIVE TRAVEL.
Children and Young Peoples Services,Head of Education,Transport,230008,Contract Hire,11-Jan-2018,3384845-IR1712003,"1,280.00",I & R EXECUTIVE TRAVEL.
Regeneration and Local Services,Technical Services,Third Party Payments,430127,Rendered by Private Contractors,11-Jan-2018,3384846-2447,"2,817.50",IAN C LIDDLE.
Resources,Digital and Customer Services,Stock,926900,Stock in hand-Inventory system,11-Jan-2018,3384847-3685816,"8,771.00",INSIGHT DIRECT (UK) LTD.
Children and Young Peoples Services,Head of Education,Transport,230007,Contract Hire,11-Jan-2018,3384856-1222,960.00,JDS PRIVATE HIRE DURHAM.
Children and Young Peoples Services,Head of Education,Transport,230007,Contract Hire,11-Jan-2018,3384856-1235,"1,050.00",JDS PRIVATE HIRE DURHAM.
Children and Young Peoples Services,Head of Education,Transport,230007,Contract Hire,11-Jan-2018,3384856-1236,832.00,JDS PRIVATE HIRE DURHAM.
Children and Young Peoples Services,Head of Education,Transport,230008,Contract Hire,11-Jan-2018,3384856-1223,"1,200.00",JDS PRIVATE HIRE DURHAM.
Children and Young Peoples Services,Head of Education,Transport,230008,Contract Hire,11-Jan-2018,3384856-1224,870.00,JDS PRIVATE HIRE DURHAM.
Children and Young Peoples Services,Head of Education,Transport,230008,Contract Hire,11-Jan-2018,3384856-1225,"1,005.00",JDS PRIVATE HIRE DURHAM.
Children and Young Peoples Services,Head of Education,Transport,230008,Contract Hire,11-Jan-2018,3384856-1226,"1,140.00",JDS PRIVATE HIRE DURHAM.
Children and Young Peoples Services,Head of Education,Transport,230008,Contract Hire,11-Jan-2018,3384856-1227,"1,140.00",JDS PRIVATE HIRE DURHAM.
Children and Young Peoples Services,Head of Education,Transport,230008,Contract Hire,11-Jan-2018,3384856-1228,"1,035.00",JDS PRIVATE HIRE DURHAM.
Children and Young Peoples Services,Head of Education,Transport,230008,Contract Hire,11-Jan-2018,3384856-1229,"1,600.00",JDS PRIVATE HIRE DURHAM.
Children and Young Peoples Services,Head of Education,Transport,230008,Contract Hire,11-Jan-2018,3384856-1230,992.00,JDS PRIVATE HIRE DURHAM.
Children and Young Peoples Services,Head of Education,Transport,230008,Contract Hire,11-Jan-2018,3384856-1231,"1,472.00",JDS PRIVATE HIRE DURHAM.
Children and Young Peoples Services,Head of Education,Transport,230008,Contract Hire,11-Jan-2018,3384856-1234,"1,820.00",JDS PRIVATE HIRE DURHAM.
Children and Young Peoples Services,Head of Education,Transport,230008,Contract Hire,11-Jan-2018,3384856-1238,"1,728.00",JDS PRIVATE HIRE DURHAM.
Children and Young Peoples Services,Head of Education,Transport,230008,Contract Hire,11-Jan-2018,3384856-1239,"2,080.00",JDS PRIVATE HIRE DURHAM.
Children and Young Peoples Services,Head of Education,Transport,230007,Contract Hire,11-Jan-2018,3384857-2720,"1,503.84",JEFF ANDERSON COACHES LTD.
Children and Young Peoples Services,Head of Education,Transport,230008,Contract Hire,11-Jan-2018,3384857-2715,"1,140.86",JEFF ANDERSON COACHES LTD.
Children and Young Peoples Services,Head of Education,Transport,230008,Contract Hire,11-Jan-2018,3384857-2716,"1,084.86",JEFF ANDERSON COACHES LTD.
Adult and Health Services,Head of Adults,Transport,230005,Contract Hire,11-Jan-2018,3384861-01122017,750.00,JOHN HUBBLE T/A HUBB`S TAXIS.
Children and Young Peoples Services,Head of Education,Transport,230007,Contract Hire,11-Jan-2018,3384863-119,725.00,JOHN ROBSON T/A ACE TAXIS.
Children and Young Peoples Services,Head of Education,Transport,230007,Contract Hire,11-Jan-2018,3384863-122-DEC17,510.00,JOHN ROBSON T/A ACE TAXIS.
Children and Young Peoples Services,Head of Education,Transport,230009,Contract Hire,11-Jan-2018,3384864-73,560.00,JOHN WARE T/A J & K TAXIS.
Children and Young Peoples Services,Head of Education,Transport,230009,Contract Hire,11-Jan-2018,3384865-723113,975.00,JOVIAL PRIVATE HIRE.
Children and Young Peoples Services,Head of Education,Transport,230008,Contract Hire,11-Jan-2018,3384865-M00904,975.00,JOVIAL PRIVATE HIRE.
Children and Young Peoples Services,Head of Education,Transport,230008,Contract Hire,11-Jan-2018,3384865-M01504,885.00,JOVIAL PRIVATE HIRE.
Children and Young Peoples Services,Head of Education,Transport,230008,Contract Hire,11-Jan-2018,3384865-M01704,660.00,JOVIAL PRIVATE HIRE.
Children and Young Peoples Services,Head of Education,Transport,230008,Contract Hire,11-Jan-2018,3384869-N012-DEC,"1,536.00",K & R TAXIS (STANLEY).
Dedicated Schools Grant,Dedicated Schools Grant,Transport,230010,Contract Hire,11-Jan-2018,3384869-PL006-DEC,"1,184.00",K & R TAXIS (STANLEY).
Children and Young Peoples Services,Head of Education,Transport,230008,Contract Hire,11-Jan-2018,3384871-04-N083,"1,360.00",KD TAXIS.
Children and Young Peoples Services,Head of Education,Transport,230008,Contract Hire,11-Jan-2018,3384872-005-DEC17,"1,232.00",KDH TAXIS.
Children and Young Peoples Services,Head of Education,Transport,230008,Contract Hire,11-Jan-2018,3384874-S027-DEC,"1,330.00",KEITH GIBSON T/A KEITH`S TAXIS.
Children and Young Peoples Services,Head of Education,Transport,230007,Contract Hire,11-Jan-2018,3384877-4-1220,750.00,KT TAXIS.
Adult and Health Services,Head of Adults,Transport,230005,Contract Hire,11-Jan-2018,3384878-KW814,570.00,KWIK CABS.
Adult and Health Services,Head of Adults,Transport,230005,Contract Hire,11-Jan-2018,3384878-KW815,570.00,KWIK CABS.
Children and Young Peoples Services,Head of Education,Transport,230008,Contract Hire,11-Jan-2018,3384878-KW811,770.00,KWIK CABS.
Children and Young Peoples Services,Head of Education,Transport,230008,Contract Hire,11-Jan-2018,3384878-KW812,700.00,KWIK CABS.
Children and Young Peoples Services,Head of Education,Transport,230008,Contract Hire,11-Jan-2018,3384879-3A-DEC,"1,190.00",L & R PRIVATE HIRE.
Adult and Health Services,Head of Adults,Transport,230005,Contract Hire,11-Jan-2018,3384884-1141,"1,120.00",LD TAXIS.
Children and Young Peoples Services,Head of Education,Transport,230006,Contract Hire,11-Jan-2018,3384884-1143,"1,408.00",LD TAXIS.
Children and Young Peoples Services,Head of Education,Transport,230008,Contract Hire,11-Jan-2018,3384884-1142,"1,120.00",LD TAXIS.
Children and Young Peoples Services,Head of Education,Transport,230007,Contract Hire,11-Jan-2018,3384886-4606,"4,500.00",LEE`S COACHES LTD.
Children and Young Peoples Services,Head of Education,Transport,230007,Contract Hire,11-Jan-2018,3384886-4606-4226,"3,000.00",LEE`S COACHES LTD.
Children and Young Peoples Services,Head of Education,Transport,230007,Contract Hire,11-Jan-2018,3384886-4606-4227,"2,175.00",LEE`S COACHES LTD.
Children and Young Peoples Services,Head of Education,Transport,230003,Contract Hire,11-Jan-2018,3384886-4608,"2,064.00",LEE`S COACHES LTD.
Children and Young Peoples Services,Head of Education,Transport,230008,Contract Hire,11-Jan-2018,3384887-203,"1,936.40",LEE`S TAXIS (SACRISTON).
Adult and Health Services,Head of Adults,Income,720044,Fees and Charges,11-Jan-2018,3384888-CAS-01-2018-042,"21,754.86",LIFEWAYS COMMUNITY CARE LTD.
Children and Young Peoples Services,Head of Education,Transport,230007,Contract Hire,11-Jan-2018,3384890-3714,892.50,LINCAB TAXIS.
Children and Young Peoples Services,Head of Education,Transport,230007,Contract Hire,11-Jan-2018,3384890-3720,512.00,LINCAB TAXIS.
Children and Young Peoples Services,Head of Education,Transport,230006,Contract Hire,11-Jan-2018,3384890-3712,"1,471.50",LINCAB TAXIS.
Children and Young Peoples Services,Head of Education,Transport,230012,Contract Hire,11-Jan-2018,3384890-3715,"1,211.20",LINCAB TAXIS.
Children and Young Peoples Services,Head of Education,Transport,230012,Contract Hire,11-Jan-2018,3384890-3717,"1,035.20",LINCAB TAXIS.
Children and Young Peoples Services,Head of Education,Transport,230008,Contract Hire,11-Jan-2018,3384890-3716,"1,735.20",LINCAB TAXIS.
Dedicated Schools Grant,Dedicated Schools Grant,Transport,230010,Contract Hire,11-Jan-2018,3384890-3718,"1,581.80",LINCAB TAXIS.
Children and Young Peoples Services,Head of Education,Transport,230008,Contract Hire,11-Jan-2018,3384892-3724,"1,424.00",LOCAL TRANSPORT LTD.
Children and Young Peoples Services,Head of Education,Transport,230008,Contract Hire,11-Jan-2018,3384896-24,"1,260.00",LORRAINES TAXIS.
Dedicated Schools Grant,Dedicated Schools Grant,Transport,230010,Contract Hire,11-Jan-2018,3384898-69,608.00,LUMLEY TAXIS.
Children and Young Peoples Services,Head of Education,Transport,230008,Contract Hire,11-Jan-2018,3384900-14,799.20,M&C`S CABS LTD.
Dedicated Schools Grant,Dedicated Schools Grant,Supplies and Services,384199,Miscellaneous Expenses,11-Jan-2018,3384901-3,810.00,MAGZ NETZLER COUNSELLING SERVICES.
Regeneration and Local Services,Technical Services,Stock,926900,Stock in hand-Inventory system,11-Jan-2018,3384902-122204,"7,163.20",MALLATITE LTD T/A MALLATITE PLASTICS LTD.
Regeneration and Local Services,Technical Services,Stock,926900,Stock in hand-Inventory system,11-Jan-2018,3384902-122206,"5,583.18",MALLATITE LTD T/A MALLATITE PLASTICS LTD.
Children and Young Peoples Services,Head of Education,Transport,230008,Contract Hire,11-Jan-2018,3384906-221217,"1,120.00",MARK MUSGROVE T/A MARKS TAXIS.
Regeneration and Local Services,Technical Services,Supplies and Services,304221,Equipment and Materials,11-Jan-2018,3384908-ZBB1203472,"2,132.86",MARSHALLS MONO LTD.
Regeneration and Local Services,Technical Services,Supplies and Services,304221,Equipment and Materials,11-Jan-2018,3384908-ZBB1265259,656.97,MARSHALLS MONO LTD.
Regeneration and Local Services,Technical Services,Supplies and Services,304221,Equipment and Materials,11-Jan-2018,3384908-ZBB1348055,"4,105.80",MARSHALLS MONO LTD.
Children and Young Peoples Services,Head of Education,Transport,230008,Contract Hire,11-Jan-2018,3384910-MCD73161,"1,064.00",MCDONALD TRAVEL.
Children and Young Peoples Services,Head of Education,Transport,230008,Contract Hire,11-Jan-2018,3384910-MCD73162,"1,036.00",MCDONALD TRAVEL.
Children and Young Peoples Services,Head of Education,Transport,230008,Contract Hire,11-Jan-2018,3384914-00928,"2,142.00",MICHAELS TRAVEL.
Transformation and Partnerships,Partnerships & Community Engagement Div.,Cap Exp on Grants & Other Financial Assistance (REFCUS),918004,Contributions to other bodies,11-Jan-2018,3384916-VOUCHER17AB-TEES001CSG16,580.00,MIDDLETON IN TEESDALE WOMENS INSTITUTE.
Children and Young Peoples Services,Head of Education,Transport,230008,Contract Hire,11-Jan-2018,3384923-KDC-011217,"1,280.00",MJ TIMNEY T/A KDC & C&M TAXIS.
Children and Young Peoples Services,Head of Education,Transport,230008,Contract Hire,11-Jan-2018,3384924-770,"1,800.00",MOLLYS TAXIS.
Regeneration and Local Services,Culture & Sport,Supplies and Services,324117,Provisions,11-Jan-2018,3384925-904278147,"3,326.40",MOLSON COORS BREWING COMPANY (UK) LTD.
Children and Young Peoples Services,Head of Education,Transport,230008,Contract Hire,11-Jan-2018,3384929-NO4,533.80,MR ALAN CARR FEATONBY T/A ALAN`S LUXURY PRIVATE HIRE.
Children and Young Peoples Services,Head of Education,Transport,230008,Contract Hire,11-Jan-2018,3384933-0304867,"1,120.00",MR GN ROBBINS T/A GNR MINIBUS HIRE.
Children and Young Peoples Services,Head of Education,Transport,230008,Contract Hire,11-Jan-2018,3384933-0304868,"1,120.00",MR GN ROBBINS T/A GNR MINIBUS HIRE.
Children and Young Peoples Services,Head of Education,Transport,230006,Contract Hire,11-Jan-2018,3384935-OC/12/17,756.00,MR J AGAR T/A PARK TAXIS.
Children and Young Peoples Services,Head of Education,Transport,230008,Contract Hire,11-Jan-2018,3384935-CT/12/17,608.00,MR J AGAR T/A PARK TAXIS.
Children and Young Peoples Services,Head of Education,Transport,230008,Contract Hire,11-Jan-2018,3384935-SFB/12/17,"1,327.20",MR J AGAR T/A PARK TAXIS.
Adult and Health Services,Head of Adults,Transport,230005,Contract Hire,11-Jan-2018,3384936-JK1509,"1,200.00",MR JOHN KNIGHTON T/A JK TAXIS.
Children and Young Peoples Services,Head of Education,Transport,230010,Contract Hire,11-Jan-2018,3384936-JK1507,930.00,MR JOHN KNIGHTON T/A JK TAXIS.
Children and Young Peoples Services,Head of Education,Transport,230008,Contract Hire,11-Jan-2018,3384936-JK1501,868.00,MR JOHN KNIGHTON T/A JK TAXIS.
Adult and Health Services,Head of Adults,Transport,230005,Contract Hire,11-Jan-2018,3384937-201743,500.00,MR JR FORT T/A JRF TAXIS.
